Workbook

Sheet Table des matières
A1: Fichier d'aide à la remise - reprise
B5: Généralités | E5: Infos nécessaires au compte scindé | H5: Remise-reprise 1 | K5: Remise-reprise 2 | N5: Reprise-reprise 3

Sheet Identification
B1: SEL | D1: Etablissement | E1: Rue, numéro | F1: COPO | G1: Commune
D2: CENTRE PSYCHO-MEDICO-SOCIAL DE LA CF | E2: Avenue du Onze Novembre, 57 | F2: 1040 | G2: ETTERBEEK | H2: CPMS | I2: SGS-CPMS | J2: 410
D3: CENTRE PSYCHO-MEDICO-SOCIAL DE LA CF | E3: Avenue de l'Armée,117 | F3: 1040 | G3: BRUXELLES | H3: CPMS | I3: SGS-CPMS | J3: 418
D4: CENTRE PSYCHO-MEDICO-SOCIAL DE LA CF | E4: Avenue Marie de Hongrie, 60A | F4: 1083 | G4: GANSHOREN | H4: CPMS | I4: SGS-CPMS | J4: 406
D5: CENTRE PSYCHO-MEDICO-SOCIAL (SPECIAL) | E5: Avenue Schaller, 89 | F5: 1160 | G5: BRUXELLES | H5: CPMS | I5: SGS-CPMS | J5: 431 | L5: Veuillez marquer d'un "X" dans la colonne bleue, uniquement la ligne correspondante à votre établissement.
D6: CENTRE PSYCHO-MEDICO-SOCIAL DE LA CF | E6: Avenue Kamerdelle, 15 | F6: 1180 | G6: UCCLE | H6: CPMS | I6: SGS-CPMS | J6: 425
D7: CENTRE PSYCHO-MEDICO-SOCIAL DE LA CF | E7: Avenue Jacques Brel, 30 | F7: 1200 | G7: WOLUWE-SAINT-LAMBERT | H7: CPMS | I7: SGS-CPMS | J7: 430
D8: CENTRE PSYCHO-MEDICO-SOCIAL DE LA CF | E8: Chaussée de Louvain, 72 | F8: 1300 | G8: WAVRE | H8: CPMS | I8: SGS-CPMS | J8: 429
D9: CENTRE PSYCHO-MEDICO-SOCIAL DE LA CF | E9: Avenue du Burlet, 23 | F9: 1400 | G9: NIVELLES | H9: CPMS | I9: SGS-CPMS | J9: 417
D10: CENTRE PSYCHO-MEDICO-SOCIAL DE LA CF | E10: Rue Saint Léonard, 378 | F10: 4000 | G10: LIEGE | H10: CPMS | I10: SGS-CPMS | J10: 411
D11: CENTRE PSYCHO-MEDICO-SOCIAL | E11: Rue de l'Eglise, 99 | F11: 4030 | G11: CHENEE | H11: CPMS | I11: SGS-CPMS | J11: 439
D12: CENTRE PSYCHO-MEDICO-SOCIAL DE LA CF | E12: Rue du Marais, 35 | F12: 4100 | G12: SERAING | H12: CPMS | I12: SGS-CPMS | J12: 419
D13: CENTRE PSYCHO-MEDICO-SOCIAL | E13: Rue Gustave Renier, 19 | F13: 4300 | G13: WAREMME | H13: CPMS | I13: SGS-CPMS | J13: 440
D14: CENTRE PSYCHO-MEDICO-SOCIAL (SPECIAL) | E14: Grand'Route, 197 | F14: 4400 | G14: FLEMALLE | H14: CPMS | I14: SGS-CPMS | J14: 433
D15: CENTRE PSYCHO-MEDICO-SOCIAL DE LA CF | E15: Rue des Augustins, 11 | F15: 4500 | G15: HUY | H15: CPMS | I15: SGS-CPMS | J15: 409
D16: CENTRE PSYCHO-MEDICO-SOCIAL DE LA CF | E16: Rue de la Wade, 9 | F16: 4600 | G16: VISE | H16: CPMS | I16: SGS-CPMS | J16: 428
D17: CENTRE PSYCHO-MEDICO-SOCIAL DE LA CF | E17: Rue du Palais, 27 Bte 5 | F17: 4800 | G17: VERVIERS | H17: CPMS | I17: SGS-CPMS | J17: 426
D18: CENTRE PSYCHO-MEDICO-SOCIAL (SPECIAL) | E18: Rue des Wallons, 42 | F18: 4800 | G18: VERVIERS | H18: CPMS | I18: SGS-CPMS | J18: 438
D19: CENTRE PSYCHO-MEDICO-SOCIAL DE LA CF | E19: Rue de la Sauvenière, 10A | F19: 4900 | G19: SPA | H19: CPMS | I19: SGS-CPMS | J19: 421
D20: CENTRE PSYCHO-MEDICO-SOCIAL DE LA CF | E20: Rue de Bruxelles, 34B | F20: 5000 | G20: NAMUR | H20: CPMS | I20: SGS-CPMS | J20: 415
D21: CENTRE PSYCHO-MEDICO-SOCIAL DE LA CF | E21: Rue Entrée Jacques, 68 | F21: 5030 | G21: GEMBLOUX | H21: CPMS | I21: SGS-CPMS | J21: 407
D22: CENTRE PSYCHO-MEDICO-SOCIAL DE LA CF | E22: Rue Reine Elisabeth, 26 | F22: 5060 | G22: TAMINES | H22: CPMS | I22: SGS-CPMS | J22: 422
D23: CENTRE PSYCHO-MEDICO-SOCIAL (SPECIAL) | E23: Rue de Géronsart, 160 | F23: 5100 | G23: JAMBES | H23: CPMS | I23: SGS-CPMS | J23: 434
D24: CENTRE PSYCHO-MEDICO-SOCIAL DE LA CF | E24: Rue St Pierre, 139 | F24: 5500 | G24: DINANT | H24: CPMS | I24: SGS-CPMS | J24: 404
D25: CENTRE PSYCHO-MEDICO-SOCIAL (SPECIAL) | E25: Rue de la Calamine, 36 | F25: 5600 | G25: PHILIPPEVILLE | H25: CPMS | I25: SGS-CPMS | J25: 437
D26: CENTRE PSYCHO-MEDICO-SOCIAL | E26: Rue du Bercet, 2 | F26: 5660 | G26: COUVIN | H26: CPMS | I26: SGS-CPMS | J26: 441
D27: CENTRE PSYCHO-MEDICO-SOCIAL DE LA CF | E27: Rue de la Science, 38 | F27: 6000 | G27: CHARLEROI | H27: CPMS | I27: SGS-CPMS | J27: 403
D28: CENTRE PSYCHO-MEDICO-SOCIAL DE LA CF | E28: Place des Martyrs, 31 | F28: 6041 | G28: GOSSELIES | H28: CPMS | I28: SGS-CPMS | J28: 408
D29: CENTRE PSYCHO-MEDICO-SOCIAL (SPECIAL) | E29: Rue des Gravelles, 49 | F29: 6200 | G29: CHATELET | H29: CPMS | I29: SGS-CPMS | J29: 432
D30: CENTRE PSYCHO-MEDICO-SOCIAL DE LA CF | E30: Drève des Alliés, 9A | F30: 6530 | G30: THUIN | H30: CPMS | I30: SGS-CPMS | J30: 423
D31: CENTRE PSYCHO-MEDICO-SOCIAL DE LA CF | E31: Rue de Sesselich, 61 | F31: 6700 | G31: ARLON | H31: CPMS | I31: SGS-CPMS | J31: 401
D32: CENTRE PSYCHO-MEDICO-SOCIAL DE LA CF | E32: Faubourg d'Arival, 39 | F32: 6760 | G32: VIRTON | H32: CPMS | I32: SGS-CPMS | J32: 427
D33: CENTRE PSYCHO-MEDICO-SOCIAL DE LA CF | E33: Avenue de la Gare, 10 | F33: 6840 | G33: NEUFCHATEAU | H33: CPMS | I33: SGS-CPMS | J33: 416
D34: CENTRE PSYCHO-MEDICO-SOCIAL DE LA CF | E34: Avenue de la Toison d'Or, 75 | F34: 6900 | G34: MARCHE-EN-FAMENNE | H34: CPMS | I34: SGS-CPMS | J34: 412
D35: CENTRE PSYCHO-MEDICO-SOCIAL (SPECIAL) | E35: Rue Mionvaux, 35 | F35: 6900 | G35: MARLOIE | H35: CPMS | I35: SGS-CPMS | J35: 435
D36: CENTRE PSYCHO-MEDICO-SOCIAL DE LA CF | E36: Avenue du Champ de Mars, 2 | F36: 7000 | G36: MONS | H36: CPMS | I36: SGS-CPMS | J36: 413
D37: CENTRE PSYCHO-MEDICO-SOCIAL (SPECIAL) | E37: Chaussée du Roeulx, 122 | F37: 7000 | G37: MONS | H37: CPMS | I37: SGS-CPMS | J37: 436
D38: CENTRE PSYCHO-MEDICO-SOCIAL DE LA CF | E38: Rue Léon Hachez, 38 | F38: 7060 | G38: SOIGNIES | H38: CPMS | I38: SGS-CPMS | J38: 420
D39: CENTRE PSYCHO-MEDICO-SOCIAL DE LA CF | E39: Rue Léon Moyaux, 82 | F39: 7140 | G39: MORLANWELZ | H39: CPMS | I39: SGS-CPMS | J39: 414
D40: CENTRE PSYCHO-MEDICO-SOCIAL DE LA CF | E40: Rue de l'Athénée, 37 | F40: 7370 | G40: DOUR | H40: CPMS | I40: SGS-CPMS | J40: 405
D41: CENTRE PSYCHO-MEDICO-SOCIAL DE LA CF | E41: Rue Beyaert, 39 | F41: 7500 | G41: TOURNAI | H41: CPMS | I41: SGS-CPMS | J41: 424
D42: CENTRE PSYCHO-MEDICO-SOCIAL DE LA CF | E42: Boulevard de l'Hôpital, 32 | F42: 7800 | G42: ATH | H42: CPMS | I42: SGS-CPMS | J42: 402
D43: EF CF DE HAMME-MILLE | E43: RUE RENÉ MÉNADA, 12 | F43: 1320 | G43: HAMME-MILLE (BEAUVECHAIN) | H43: FONDAMENTAL | I43: SGS-FO | J43: 222
D44: EF CF DE GENTINNES | E44: PLACE DE GENTINNES, 14 | F44: 1450 | G44: GENTINNES (CHASTRE) | H44: FONDAMENTAL | I44: SGS-FO | J44: 217
D45: EF CF DE NIL-ST-VINCENT | E45: RUE WARICHET, 1 | F45: 1457 | G45: NIL-SAINT-VINCENT (WALHAIN) | H45: FONDAMENTAL | I45: SGS-FO | J45: 244
D46: EF CF DE TUBIZE-CENTRE | E46: RUE FERRER, 15 | F46: 1480 | G46: TUBIZE | H46: FONDAMENTAL | I46: SGS-FO | J46: 255
D47: EF CF DE TUBIZE-RENARD | E47: RUE DE STIMBERT, 8 | F47: 1480 | G47: TUBIZE | H47: FONDAMENTAL | I47: SGS-FO | J47: 256
D48: EF CF DE FERRIÈRES | E48: RUE PRÉ DU FA, 7 | F48: 4190 | G48: FERRIERES | H48: FONDAMENTAL | I48: SGS-FO | J48: 211
D49: EF CF DE BURDINNE-CIPLET | E49: RUE DE VOÏD, 2 | F49: 4260 | G49: CIPLET (BRAIVES) | H49: FONDAMENTAL | I49: SGS-FO | J49: 204
D50: EF CF DE CRISNÉE | E50: RUE JEAN STASSART, 15 | F50: 4367 | G50: CRISNEE (FIZE-LE-MARSAL) | H50: FONDAMENTAL | I50: SGS-FO | J50: 205
D51: EF CF DE HERVE-BATTICE | E51: RUE DES ECOLES, 23 | F51: 4650 | G51: HERVE | H51: FONDAMENTAL | I51: SGS-FO | J51: 226
D52: EF CF DE EBEN-EMAEL | E52: RUE HAUTE, 65 | F52: 4690 | G52: EBEN-EMAEL | H52: FONDAMENTAL | I52: SGS-FO | J52: 206
D53: EF CF DE HEUSY | E53: AVENUE DU CHAÎNEUX, 30 | F53: 4802 | G53: HEUSY (VERVIERS) | H53: FONDAMENTAL | I53: SGS-FO | J53: 227
D54: EF CF DE LIMBOURG | E54: RUE GUILLAUME MAISIER, 56 | F54: 4830 | G54: LIMBOURG | H54: FONDAMENTAL | I54: SGS-FO | J54: 233
D55: EF CF DE STOUMONT | E55: RUE DE L'AMBLÈVE, 24 | F55: 4987 | G55: STOUMONT | H55: FONDAMENTAL | I55: SGS-FO | J55: 250
D56: EF CF DE LIERNEUX | E56: RUE DEVANT LA VAUX, 2 | F56: 4990 | G56: LIERNEUX | H56: FONDAMENTAL | I56: SGS-FO | J56: 232
D57: EF CF DE MALONNE | E57: RUE D'INSEVAUX, 72 | F57: 5020 | G57: MALONNE (NAMUR) | H57: FONDAMENTAL | I57: SGS-FO | J57: 234
D58: EF CF DE VEDRIN | E58: RUE PARMENTIER, 2 | F58: 5020 | G58: VEDRIN (NAMUR) | H58: FONDAMENTAL | I58: SGS-FO | J58: 257
D59: EF CF D'AUVELAIS | E59: RUE WILLY FÉLIX, 5 | F59: 5060 | G59: AUVELAIS (SAMBREVILLE) | H59: FONDAMENTAL | I59: SGS-FO | J59: 202
D60: EF CF DE FALISOLLE | E60: RUE DE LA LOGETTE, 4 | F60: 5060 | G60: FALISOLLE (SAMBREVILLE) | H60: FONDAMENTAL | I60: SGS-FO | J60: 210
D61: EF CF DE TAMINES | E61: RUE DE L'ENSEIGNEMENT, 25 | F61: 5060 | G61: TAMINES (SAMBREVILLE) | H61: FONDAMENTAL | I61: SGS-FO | J61: 252
D62: EF CF DE SOMBREFFE | E62: CHAUSSÉE DE NIVELLES, 79-81 | F62: 5140 | G62: SOMBREFFE | H62: FONDAMENTAL | I62: SGS-FO | J62: 248
D63: EF CF DE MOUSTIER S/SAMBRE | E63: RUE DE LA STATION, 113 | F63: 5190 | G63: MOUSTIER S/S (JEMEPPE S/S) | H63: FONDAMENTAL | I63: SGS-FO | J63: 242
D64: EF CF DE SPY | E64: RUE HAUTE, 60 | F64: 5190 | G64: SPY (JEMEPPE S/SAMBRE) | H64: FONDAMENTAL | I64: SGS-FO | J64: 249
D65: EF CF "YANNICK LEROY" D'EGHEZEE | E65: ROUTE DE GEMBLOUX, 10 | F65: 5310 | G65: EGHEZEE | H65: FONDAMENTAL | I65: SGS-FO | J65: 207
D66: EF CF DE GESVES | E66: CHAUSSÉE DE GRAMPTINNE, 118 | F66: 5340 | G66: GESVES | H66: FONDAMENTAL | I66: SGS-FO | J66: 219
D67: EF CF D'ANHÉE | E67: RUE GRANDE , 57 | F67: 5537 | G67: ANHEE | H67: FONDAMENTAL | I67: SGS-FO | J67: 201
D68: EF CF DE HASTIÈRE-LAVAUX | E68: PLACE EMILE BINET,1 | F68: 5540 | G68: HASTIERE | H68: FONDAMENTAL | I68: SGS-FO | J68: 223
D69: EF CF "CROIX-SCAILLE" DE GEDINNE | E69: RUE DE LA CROISETTE, 13 | F69: 5575 | G69: GEDINNE | H69: FONDAMENTAL | I69: SGS-FO | J69: 216
D70: EF CF DE HAVERSIN | E70: RUE DE HAID, 19 | F70: 5590 | G70: HAVERSIN (CINEY) | H70: FONDAMENTAL | I70: SGS-FO | J70: 224
D71: EF CF DE METTET | E71: RUE CROIX DE BOURGOGNE, 12 | F71: 5640 | G71: METTET | H71: FONDAMENTAL | I71: SGS-FO | J71: 239
D72: EF CF DE WALCOURT | E72: RUE DES BERGERIES, 4 | F72: 5650 | G72: WALCOURT | H72: FONDAMENTAL | I72: SGS-FO | J72: 259
D73: EF CF DE TRAZEGNIES | E73: RUE DES CLOUTIERS, | F73: 6183 | G73: TRAZEGNIES (COURCELLES) | H73: FONDAMENTAL | I73: SGS-FO | J73: 254
D74: EF CF DE FRASNES-LEZ-GOSSELIES | E74: RUE ZÉPHIRIN FLANDRE, 10 | F74: 6210 | G74: FRASNES-LEZ-GOSSELIES | H74: FONDAMENTAL | I74: SGS-FO | J74: 215
D75: EF CF DE GERPINNES | E75: RUE DE BERTRANSART, 6 | F75: 6280 | G75: GERPINNES | H75: FONDAMENTAL | I75: SGS-FO | J75: 218
D76: EF CF DE MOMIGNIES | E76: RUE DE LA GENDARMERIE, 10 | F76: 6590 | G76: MOMIGNIES | H76: FONDAMENTAL | I76: SGS-FO | J76: 240
D77: EF CF DE MARTELANGE | E77: RUE DE LA POSTE, 10 | F77: 6630 | G77: MARTELANGE | H77: FONDAMENTAL | I77: SGS-FO | J77: 236
D78: EF CF DE SIBRET | E78: VIRÉE DU RENARD, 6 | F78: 6640 | G78: SIBRET (VAUX-SUR-SURE) | H78: FONDAMENTAL | I78: SGS-FO | J78: 247
D79: EF CF DE HABAY | E79: RUE DE LA COURTIERE, 19 | F79: 6720 | G79: HABAY | H79: FONDAMENTAL | I79: SGS-FO | J79: 261
D80: EF CF DE MARBEHAN | E80: RUE DES PRÉS, 1 | F80: 6724 | G80: MARBEHAN (HABAY) | H80: FONDAMENTAL | I80: SGS-FO | J80: 235
D81: EF CF D'ETALLE | E81: RUE DU TERMEZART, 16 | F81: 6740 | G81: ETALLE | H81: FONDAMENTAL | I81: SGS-FO | J81: 208
D82: EF CF DE MUSSON | E82: PLACE ABBÉ GOFFINET, 22 | F82: 6750 | G82: MUSSON | H82: FONDAMENTAL | I82: SGS-FO | J82: 243
D83: EF CF DE SAINT-MARD | E83: RUE DU TEMPLE, 2 | F83: 6762 | G83: SAINT-MARD (VIRTON) | H83: FONDAMENTAL | I83: SGS-FO | J83: 246
D84: EF CF DE MESSANCY | E84: GRAND RUE, 108 | F84: 6780 | G84: MESSANCY | H84: FONDAMENTAL | I84: SGS-FO | J84: 238
D85: EF CF DE HALANZY | E85: RUE MATHIEU, 48 | F85: 6792 | G85: HALANZY (AUBANGE) | H85: FONDAMENTAL | I85: SGS-FO | J85: 221
D86: EF CF DE FLORENVILLE | E86: RUE DU MIROIR, 7 | F86: 6820 | G86: FLORENVILLE | H86: FONDAMENTAL | I86: SGS-FO | J86: 213
D87: EF CF DE LIBIN | E87: RUE DU CURÉ, 13 | F87: 6890 | G87: LIBIN | H87: FONDAMENTAL | I87: SGS-FO | J87: 231
D88: EF CF DE WELLIN | E88: RUE DE LA STATION, 31 | F88: 6920 | G88: WELLIN | H88: FONDAMENTAL | I88: SGS-FO | J88: 260
D89: EF CF DE FORRIÈRES | E89: RUE DE LA RAMÉE, 19 | F89: 6953 | G89: FORRIERES (NASSOGNE) | H89: FONDAMENTAL | I89: SGS-FO | J89: 214
D90: EF CF DE HOTTON | E90: AVENUE DE LA GARE, 42 | F90: 6990 | G90: HOTTON | H90: FONDAMENTAL | I90: SGS-FO | J90: 228
D91: EF CF DE JURBISE | E91: RUE DU MOUSTIER, 3 | F91: 7050 | G91: JURBISE | H91: FONDAMENTAL | I91: SGS-FO | J91: 230
D92: EF CF "ECOLE SOLAIRE" DE TOURNAI | E92: BOULEVARD LÉOPOLD, 6 | F92: 7500 | G92: TOURNAI | H92: FONDAMENTAL | I92: SGS-FO | J92: 253
D93: EF CF DE TAINTIGNIES | E93: RUE DES BOIS, 31 | F93: 7618 | G93: TAINTIGNIES (RUMES) | H93: FONDAMENTAL | I93: SGS-FO | J93: 251
D94: EF CF DE ANTOING | E94: PLACE BARA 10 | F94: 7640 | G94: ANTOING | H94: FONDAMENTAL | I94: SGS-FO | J94: 262
D95: EF CF DE HERSEAUX | E95: RUE DES FRONTALIERS, 42 | F95: 7712 | G95: HERSEAUX (MOUSCRON) | H95: FONDAMENTAL | I95: SGS-FO | J95: 225
D96: EF CF DE FLOBECQ | E96: RUE DE LA CRÊTE, 32 | F96: 7880 | G96: FLOBECQ | H96: FONDAMENTAL | I96: SGS-FO | J96: 212
D97: EF CF DE QUEVAUCAMPS | E97: RUE WAUTERS, 60 | F97: 7972 | G97: QUEVAUCAMPS (BELOEIL) | H97: FONDAMENTAL | I97: SGS-FO | J97: 245
D98: I.E.P.S.C.F. ANDERLECHT | E98: RUE LEON DELACROIX 28 | F98: 1070 | G98: ANDERLECHT | H98: PROMOTION SOCIALE | I98: SGS-PS | J98: 501
D99: I.E.P.S.C.F. EVERE | E99: AVENUE CONSTANT PERMEKE 4 | F99: 1140 | G99: EVERE | H99: PROMOTION SOCIALE | I99: SGS-PS | J99: 510
D100: I.E.P.S.C.F. WOLUWE-SAINT-PIERRE | E100: AVENUE ORBAN 73 | F100: 1150 | G100: WOLUWE-SAINT-PIERRE | H100: PROMOTION SOCIALE | I100: SGS-PS | J100: 531
D101: I.E.P.S.C.F. UCCLE | E101: RUE GATTI DE GAMOND 95 | F101: 1180 | G101: UCCLE | H101: PROMOTION SOCIALE | I101: SGS-PS | J101: 527
D102: I.E.P.S.C.F. BRAINE L'ALLEUD | E102: AVENUE DE MENDEN 21 | F102: 1420 | G102: BRAINE L'ALLEUD | H102: PROMOTION SOCIALE | I102: SGS-PS | J102: 505
D103: I.E.P.S.C.F. COURT-SAINT-ETIENNE | E103: AVENUE PAUL HENRICOT 1 | F103: 1490 | G103: COURT - SAINT - ETIENNE | H103: PROMOTION SOCIALE | I103: SGS-PS | J103: 507
D104: I.E.P.S.C.F. WAREMME | E104: RUE GUSTAVE RENIER 1 | F104: 4300 | G104: WAREMME | H104: PROMOTION SOCIALE | I104: SGS-PS | J104: 530
D105: I.E.P.S.C.F. ALLEUR | E105: RUE GEORGES TRUFFAUT 37 | F105: 4432 | G105: ALLEUR | H105: PROMOTION SOCIALE | I105: SGS-PS | J105: 500
D106: I.E.P.S.C.F. GRACE-HOLLOGNE | E106: RUE ANTOINE DEGIVE 1 | F106: 4460 | G106: GRACE-HOLLOGNE | H106: PROMOTION SOCIALE | I106: SGS-PS | J106: 512
D107: I.E.P.S.C.F. SAINT-GEORGES-SUR-MEUSE | E107: RUE ELOI FOUARGE 31 | F107: 4470 | G107: SAINT-GEORGES-SUR-MEUSE | H107: PROMOTION SOCIALE | I107: SGS-PS | J107: 523
D108: I.E.P.S.C.F. SOUMAGNE | E108: RUE DES PRAIRIES 40 | F108: 4630 | G108: SOUMAGNE | H108: PROMOTION SOCIALE | I108: SGS-PS | J108: 524
D109: I.E.P.S.C.F. BLEGNY | E109: ESPACE SIMONE VEIL 7 | F109: 4670 | G109: BLEGNY | H109: PROMOTION SOCIALE | I109: SGS-PS | J109: 504
D110: I.E.P.S.C.F. VERVIERS | E110: AVENUE JARDIN ECOLE 87 | F110: 4820 | G110: VERVIERS | H110: PROMOTION SOCIALE | I110: SGS-PS | J110: 528
D111: I.E.P.S.C.F. NAMUR CEFOR | E111: BOULEVARD CAUCHY 9-10 | F111: 5000 | G111: NAMUR CEFOR | H111: PROMOTION SOCIALE | I111: SGS-PS | J111: 518
D112: I.E.P.S.C.F. NAMUR CADETS | E112: PLACE DE L'ECOLE DES CADETS 6 | F112: 5000 | G112: NAMUR CADETS | H112: PROMOTION SOCIALE | I112: SGS-PS | J112: 519
D113: I.E.P.S.C.F. DINANT | E113: DOMAINE D'HERBUCHENNE | F113: 5500 | G113: DINANT | H113: PROMOTION SOCIALE | I113: SGS-PS | J113: 508
D114: I.E.P.S.C.F. PHILIPPEVILLE | E114: AVENUE DE SAMART 2B BOITE 2 | F114: 5600 | G114: PHILIPPEVILLE | H114: PROMOTION SOCIALE | I114: SGS-PS | J114: 521
D115: I.E.P.S.C.F. RANCE | E115: RUE PAULINE HUBERT 40/2 | F115: 6470 | G115: RANCE | H115: PROMOTION SOCIALE | I115: SGS-PS | J115: 522
D116: I.E.P.S.C.F. THUIN | E116: DREVE DES ALLIES 11 | F116: 6530 | G116: THUIN | H116: PROMOTION SOCIALE | I116: SGS-PS | J116: 525
D117: I.E.P.S.C.F. VIELSALM | E117: RUE DES CHASSEURS ARDENNAIS 1 | F117: 6690 | G117: VIELSALM | H117: PROMOTION SOCIALE | I117: SGS-PS | J117: 529
D118: I.E.P.S.C.F. ARLON | E118: CHEMIN DE WEYLER 2 | F118: 6700 | G118: ARLON | H118: PROMOTION SOCIALE | I118: SGS-PS | J118: 502
D119: I.E.P.S.C.F. LIBRAMONT | E119: AVENUE HERBOFIN 39 | F119: 6800 | G119: LIBRAMONT | H119: PROMOTION SOCIALE | I119: SGS-PS | J119: 514
D120: I.E.P.S.C.F. MARCHE-EN-FAMENNE | E120: AVENUE DE LA TOISON D'OR 71 | F120: 6900 | G120: MARCHE-EN-FAMENNE | H120: PROMOTION SOCIALE | I120: SGS-PS | J120: 515
D121: I.E.P.S.C.F. JEMAPPES | E121: AVENUE DU ROI ALBERT 643 | F121: 7012 | G121: JEMAPPES | H121: PROMOTION SOCIALE | I121: SGS-PS | J121: 513
D122: I.E.P.S.C.F. FRAMERIES | E122: RUE DU ONZE NOVEMBRE 2 | F122: 7080 | G122: FRAMERIES | H122: PROMOTION SOCIALE | I122: SGS-PS | J122: 511
D123: I.E.P.S.C.F. MORLANWELZ | E123: RUE RAOUL WAROCQUE 46 | F123: 7140 | G123: MORLANWELZ | H123: PROMOTION SOCIALE | I123: SGS-PS | J123: 516
D124: I.E.P.S.C.F. COLFONTAINE | E124: RUE CLEMENCEAU 60-62 | F124: 7340 | G124: COLFONTAINE | H124: PROMOTION SOCIALE | I124: SGS-PS | J124: 506
D125: I.E.P.S.C.F. DOUR | E125: RUE DE BOUSSU 84 | F125: 7370 | G125: DOUR | H125: PROMOTION SOCIALE | I125: SGS-PS | J125: 509
D126: I.E.P.S.C.F. TOURNAI | E126: RUE SAINT-BRICE 53 | F126: 7500 | G126: TOURNAI | H126: PROMOTION SOCIALE | I126: SGS-PS | J126: 526
D127: I.E.P.S.C.F. PERUWELZ | E127: BOULEVARD LEOPOLD III 40 | F127: 7600 | G127: PERUWELZ | H127: PROMOTION SOCIALE | I127: SGS-PS | J127: 520
D128: I.E.P.S.C.F. MOUSCRON | E128: PLACE DE LA JUSTICE 1 BP 155 | F128: 7700 | G128: MOUSCRON | H128: PROMOTION SOCIALE | I128: SGS-PS | J128: 517
D129: I.E.P.S.C.F. ATH | E129: RUE CARTON 5 | F129: 7800 | G129: ATH | H129: PROMOTION SOCIALE | I129: SGS-PS | J129: 503
D130: AR "GATTI DE GAMOND" DE BRUXELLES | E130: RUE DU MARAIS 65 | F130: 1000 | G130: BRUXELLES | H130: SECONDAIRE | I130: SGS-SE | J130: 18
D131: IACF DE STROMBEEK | E131: RUE DE MOLENBEEK 43 | F131: 1020 | G131: BRUXELLES | H131: SECONDAIRE | I131: SGS-SE | J131: 137
D132: AR DE BRUXELLES II | E132: RUE MARIE-CHRISTINE 37 | F132: 1020 | G132: BRUXELLES | H132: SECONDAIRE | I132: SGS-SE | J132: 17
D133: AR "RIVE GAUCHE" DE BRUXELLES | E133: RUE MARIE-CHRISTINE 83 | F133: 1020 | G133: BRUXELLES | H133: SECONDAIRE | I133: SGS-SE | J133: 20
D134: AR "ALFRED VERWEE" DE SCHAERBEEK | E134: RUE VERWEE 12 | F134: 1030 | G134: BRUXELLES (SCHAERBEEK) | H134: SECONDAIRE | I134: SGS-SE | J134: 32
D135: AR "JEAN ABSIL" D'ETTERBEEK | E135: AVENUE HANSEN-SOULIE 27 | F135: 1040 | G135: BRUXELLES (ETTERBEEK) | H135: SECONDAIRE | I135: SGS-SE | J135: 23
D136: AR "MADELEINE JACQUEMOTTE" D'IXELLES | E136: RUE DE LA CROIX, 40 | F136: 1050 | G136: BRUXELLES (IXELLES) | H136: SECONDAIRE | I136: SGS-SE | J136: 27
D137: AR "VICTOR HORTA" DE ST-GILLES | E137: RUE DE LA RHETORIQUE 16 | F137: 1060 | G137: BRUXELLES (ST-GILLES) | H137: SECONDAIRE | I137: SGS-SE | J137: 31
D138: IACF "MAURICE CAREME" D'ANDERLECHT | E138: RUE DE SWAEF 27 | F138: 1070 | G138: ANDERLECHT | H138: SECONDAIRE | I138: SGS-SE | J138: 155
D139: AR LEONARDO DA VINCI | E139: RUE CHOME-WYNS 5 | F139: 1070 | G139: BRUXELLES (ANDERLECHT) | H139: SECONDAIRE | I139: SGS-SE | J139: 21
D140: AR "SERGE CREUZ" DE MOLENBEEK-ST-JEAN | E140: AVENUE DU SIPPELBERG 2 | F140: 1080 | G140: BRUXELLES (MOLENBEEK- ST-JEAN) | H140: SECONDAIRE | I140: SGS-SE | J140: 30
D141: AR DE KOEKELBERG | E141: RUE OMER LEPREUX 15 | F141: 1081 | G141: BRUXELLES (KOEKELBERG) | H141: SECONDAIRE | I141: SGS-SE | J141: 29
D142: AR DE GANSHOREN | E142: RUE AUGUSTE DE COCK 1 | F142: 1083 | G142: BRUXELLES (GANSHOREN) | H142: SECONDAIRE | I142: SGS-SE | J142: 26
D143: AR DE JETTE | E143: AVENUE DE LEVIS MIREPOIX 100 | F143: 1090 | G143: BRUXELLES (JETTE) | H143: SECONDAIRE | I143: SGS-SE | J143: 28
D144: AR EVERE | E144: AVENUE CONSTANT PERMEKE 2 | F144: 1140 | G144: BRUXELLES (EVERE) | H144: SECONDAIRE | I144: SGS-SE | J144: 24
D145: AR "CROMMELYNCK" DE WOLUWE-ST-PIERRE | E145: AVENUE ORBAN 73 | F145: 1150 | G145: BRUXELLES (WOLUWÉ-ST-PIERRE) | H145: SECONDAIRE | I145: SGS-SE | J145: 37
D146: AR D'AUDERGHEM | E146: AVENUE DU PARC DE WOLUWE 25-27 | F146: 1160 | G146: BRUXELLES (AUDERGHEM) | H146: SECONDAIRE | I146: SGS-SE | J146: 22
D147: AR DE WATERMAEL-BOITSFORT | E147: RUE DE LA BERGERETTE | F147: 1170 | G147: BRUXELLES (WATERMAEL-BOITSFORT) | H147: SECONDAIRE | I147: SGS-SE | J147: 35
D148: AR D' UCCLE I | E148: AVENUE HOUZEAU 87 | F148: 1180 | G148: BRUXELLES (UCCLE) | H148: SECONDAIRE | I148: SGS-SE | J148: 33
D149: AR D' UCCLE II | E149: AVENUE DES TILLEULS 24 | F149: 1180 | G149: BRUXELLES (UCCLE) | H149: SECONDAIRE | I149: SGS-SE | J149: 34
D150: AR "ANDREE THOMAS" DE FOREST | E150: AVENUE REINE MARIE-HENRIETTE 47 | F150: 1190 | G150: BRUXELLES (FOREST) | H150: SECONDAIRE | I150: SGS-SE | J150: 25
D151: AR DE WOLUWE-SAINT-LAMBERT | E151: RUE DE L'ATHENEE ROYAL 75 77 | F151: 1200 | G151: BRUXELLES (WOLUWÉ-ST-LAMBERT) | H151: SECONDAIRE | I151: SGS-SE | J151: 36
D152: IACF "FOLON" DE WAVRE | E152: CHAUSSEE DES NERVIENS 25 | F152: 1300 | G152: WAVRE | H152: SECONDAIRE | I152: SGS-SE | J152: 153
D153: AR "MAURICE CAREME" DE WAVRE | E153: AVENUE HENRI LEPAGE 4 6 | F153: 1300 | G153: WAVRE | H153: SECONDAIRE | I153: SGS-SE | J153: 134
D154: AR DE RIXENSART | E154: RUE ALBERT CROY 3 | F154: 1330 | G154: RIXENSART | H154: SECONDAIRE | I154: SGS-SE | J154: 106
D155: AR "PAUL DELVAUX" D'OTTIGNIES | E155: AVENUE DES VILLAS 15 | F155: 1340 | G155: OTTIGNIES-LOUVAIN-LA-NEUVE (OTTIGNIES) | H155: SECONDAIRE | I155: SGS-SE | J155: 98
D156: AR DE JODOIGNE | E156: CHAUSSEE DE HANNUT 61 | F156: 1370 | G156: JODOIGNE | H156: SECONDAIRE | I156: SGS-SE | J156: 71
D157: IACF DE NIVELLES | E157: BOITE POSTALE 535 | F157: 1400 | G157: NIVELLES | H157: SECONDAIRE | I157: SGS-SE | J157: 145
D158: AR DE NIVELLES | E158: AVENUE DU CENTENAIRE 34 | F158: 1400 | G158: NIVELLES | H158: SECONDAIRE | I158: SGS-SE | J158: 97
D159: AR DE WATERLOO | E159: RUE DE LA STATION 118 | F159: 1410 | G159: WATERLOO | H159: SECONDAIRE | I159: SGS-SE | J159: 133
D160: AR "RIVA-BELLA" DE BRAINE-L'ALLEUD | E160: SQUARE RIVA-BELLA | F160: 1420 | G160: BRAINE-L'ALLEUD | H160: SECONDAIRE | I160: SGS-SE | J160: 15
D161: AR "CHARLES ROGIER" DE LIEGE | E161: RUE DES CLARISSES 13 | F161: 4000 | G161: LIEGE | H161: SECONDAIRE | I161: SGS-SE | J161: 76
D162: AR "FRAGNEE" DE LIEGE | E162: RUE DE FRAGNEE 73 | F162: 4000 | G162: LIEGE | H162: SECONDAIRE | I162: SGS-SE | J162: 77
D163: AR "LIEGE ATLAS" DE LIEGE | E163: QUAI SAINT-LEONARD 80 | F163: 4000 | G163: LIEGE | H163: SECONDAIRE | I163: SGS-SE | J163: 78
D164: AR "CHARLEMAGNE" DE JUPILLE | E164: RUE DE BOIS DE BREUX | F164: 4020 | G164: LIEGE (JUPILLE-SUR-MEUSE) | H164: SECONDAIRE | I164: SGS-SE | J164: 80
D165: AR DE CHENEE | E165: RUE BOURDON 32 | F165: 4032 | G165: LIEGE (CHENEE) | H165: SECONDAIRE | I165: SGS-SE | J165: 79
D166: AR DE HERSTAL | E166: RUE JEAN LAMBERT SAUVEUR | F166: 4040 | G166: HERSTAL | H166: SECONDAIRE | I166: SGS-SE | J166: 67
D167: AR "AIR PUR" DE SERAING | E167: RUE DES NATIONS-UNIES 1 | F167: 4100 | G167: SERAING | H167: SECONDAIRE | I167: SGS-SE | J167: 113
D168: AR "LUCIE DEJARDIN" DE SERAING | E168: RUE DE L'INDUSTRIE 127 | F168: 4100 | G168: SERAING | H168: SECONDAIRE | I168: SGS-SE | J168: 114
D169: AR D'ESNEUX | E169: RUE DE L'ATHENEE 6 | F169: 4130 | G169: ESNEUX | H169: SECONDAIRE | I169: SGS-SE | J169: 58
D170: IACF DE FERRIERES | E170: ROUTE DES ARDENNES 1 | F170: 4190 | G170: FERRIERES | H170: SECONDAIRE | I170: SGS-SE | J170: 55
D171: AR DE HANNUT | E171: RUE DE TIRLEMONT 22 | F171: 4280 | G171: HANNUT | H171: SECONDAIRE | I171: SGS-SE | J171: 66
D172: AR DE WAREMME | E172: RUE GUSTAVE RENIER | F172: 4300 | G172: WAREMME | H172: SECONDAIRE | I172: SGS-SE | J172: 132
D173: AR DE MONTEGNÉE - GRACE-HOLLOGNE | E173: RUE FELIX BERNARD 1 | F173: 4420 | G173: SAINT-NICOLAS (MONTEGNÉE) | H173: SECONDAIRE | I173: SGS-SE | J173: 111
D174: AR D'ALLEUR | E174: RUE GEORGES TRUFFAUT 37 | F174: 4432 | G174: ANS (ALLEUR) | H174: SECONDAIRE | I174: SGS-SE | J174: 2
D175: AR DE ST-GEORGES-SUR-MEUSE | E175: RUE ELOI FOUARGE 31 | F175: 4470 | G175: SAINT-GEORGES-SUR-MEUSE | H175: SECONDAIRE | I175: SGS-SE | J175: 108
D176: IACF "FILLES" DE HUY | E176: PLACE ST-DENIS 3 | F176: 4500 | G176: HUY | H176: SECONDAIRE | I176: SGS-SE | J176: 140
D177: ITCF DE HUY | E177: RUE SAINT-VICTOR 5 | F177: 4500 | G177: HUY | H177: SECONDAIRE | I177: SGS-SE | J177: 69
D178: AR DE HUY | E178: QUAI D'ARONA 5 | F178: 4500 | G178: HUY | H178: SECONDAIRE | I178: SGS-SE | J178: 68
D179: AR "PRINCE BAUDOUIN" DE MARCHIN | E179: RUE FOURNEAU 40 | F179: 4570 | G179: MARCHIN | H179: SECONDAIRE | I179: SGS-SE | J179: 83
D180: AR D'OUFFET | E180: RUE MOGNEE 21 | F180: 4590 | G180: OUFFET | H180: SECONDAIRE | I180: SGS-SE | J180: 99
D181: AR DE VISE | E181: RUE DU GOLLET 2 | F181: 4600 | G181: VISE | H181: SECONDAIRE | I181: SGS-SE | J181: 130
D182: AR DE SOUMAGNE | E182: RUE DES PRAIRIES | F182: 4630 | G182: SOUMAGNE | H182: SECONDAIRE | I182: SGS-SE | J182: 118
D183: AR "THIL LORRAIN" DE VERVIERS | E183: RUE THIL LORRAIN 1 3 | F183: 4800 | G183: VERVIERS | H183: SECONDAIRE | I183: SGS-SE | J183: 126
D184: AR "VERDI" DE VERVIERS | E184: RUE DES WALLONS 57 | F184: 4800 | G184: VERVIERS | H184: SECONDAIRE | I184: SGS-SE | J184: 127
D185: IACF DE DOLHAIN-LIMBOURG | E185: HORS LES PORTES 71 | F185: 4830 | G185: DOLHAIN-LIMBOURG | H185: SECONDAIRE | I185: SGS-SE | J185: 142
D186: AR DE WELKENRAEDT | E186: RUE GERARD DELVOYE 2 | F186: 4840 | G186: WELKENRAEDT | H186: SECONDAIRE | I186: SGS-SE | J186: 135
D187: AR DE PEPINSTER | E187: RUE DES JARDINS 4 | F187: 4860 | G187: PEPINSTER | H187: SECONDAIRE | I187: SGS-SE | J187: 101
D188: IACF "LE BRITANNIQUE" DE SPA | E188: RUE DE LA SAUVENIERE 8 | F188: 4900 | G188: SPA | H188: SECONDAIRE | I188: SGS-SE | J188: 149
D189: IACF "LOUISE WEISS" DE SPA | E189: AVENUE MARIE-HENRIETTE 28 | F189: 4900 | G189: SPA | H189: SECONDAIRE | I189: SGS-SE | J189: 150
D190: ATHENEE ROYAL ET ECOLE D'HOTELLERIE DE SPA | E190: RUE DES CAPUCINS 8 | F190: 4900 | G190: SPA | H190: SECONDAIRE | I190: SGS-SE | J190: 120
D191: AR D'AYWAILLE | E191: AVENUE FRANCOIS CORNESSE 48 | F191: 4920 | G191: AYWAILLE | H191: SECONDAIRE | I191: SGS-SE | J191: 8
D192: AR DE WAIMES | E192: RUE DES HETRES 2 A | F192: 4950 | G192: WAIMES | H192: SECONDAIRE | I192: SGS-SE | J192: 131
D193: AR "ARDENNE - HAUTES FAGNES" DE MALMEDY | E193: ROUTE DE FALIZE 21 | F193: 4960 | G193: MALMEDY | H193: SECONDAIRE | I193: SGS-SE | J193: 81
D194: ITCF "FELICIEN ROPS" DE NAMUR | E194: RUE DU QUATRIEME GENIE 2 | F194: 5000 | G194: NAMUR | H194: SECONDAIRE | I194: SGS-SE | J194: 91
D195: ITCF "HENRI MAUS" DE NAMUR | E195: PLACE DE L'ECOLE DES CADETS 4 | F195: 5000 | G195: NAMUR | H195: SECONDAIRE | I195: SGS-SE | J195: 92
D196: LYCEE DE LA CF DE NAMUR | E196: RUE LELIEVRE 10 | F196: 5000 | G196: NAMUR | H196: SECONDAIRE | I196: SGS-SE | J196: 93
D197: AR "FRANCOIS BOVESSE" DE NAMUR | E197: RUE DU COLLEGE 8 | F197: 5000 | G197: NAMUR | H197: SECONDAIRE | I197: SGS-SE | J197: 90
D198: IACF DE ST SERVAIS | E198: RUE MUZET 47 | F198: 5002 | G198: ST SERVAIS | H198: SECONDAIRE | I198: SGS-SE | J198: 144
D199: IACF "SUARLEE" DE NAMUR | E199: CHAUSSEE DE NIVELLES 204 | F199: 5020 | G199: NAMUR | H199: SECONDAIRE | I199: SGS-SE | J199: 156
D200: I T C F "AGRO-ALIMENTAIRES" DE SUARLEE | E200: CHAUSSEE DE NIVELLES 204 | F200: 5020 | G200: NAMUR (SUARLÉE) | H200: SECONDAIRE | I200: SGS-SE | J200: 95
... 144 more rows

Sheet Gestionnaires
A1: L'ordonnateur :
A2: Civilité | G2: Exercice: | H2: =RIGHT(TEXT(C12,"jj/mm/aaaa"),4) -> 1900
A3: Titre
A4: Nom
A5: Prénom
A6: Matricule
A7: Le comptable sortant 1: | D7: Le comptable sortant 2: | J7: Le comptable sortant 3:
A8: Civilité | D8: Civilité | G8: Exercice précédent | I8: =H2-1 -> 1899 | J8: Civilité
A9: Nom | D9: Nom | J9: Nom
A10: Prénom | D10: Prénom | J10: Prénom
A11: Matricule | D11: Matricule | J11: Matricule
A12: Date de sortie du comptable | D12: Date de sortie du comptable | J12: Date de sortie du comptable
A13: Rue, N° | D13: Rue, N° | J13: Rue, N°
A14: Code postal | D14: Code postal | J14: Code postal
A15: Commune | D15: Commune | J15: Commune
A16: Date de naissance | D16: Date de naissance | J16: Date de naissance
A17: Date du constat de la rem-rep | D17: Date du constat de la rem-rep | J17: Date du constat de la rem-rep
A18: Le comptable entrant 1 : | D18: Le comptable entrant 2: | J18: Le comptable entrant 3:
A19: Civilité | D19: Civilité | J19: Civilité
A20: Nom | D20: Nom | J20: Nom
A21: Prénom | D21: Prénom | J21: Prénom
A22: Matricule | D22: Matricule | J22: Matricule
A23: Date de naissance | D23: Date de naissance | J23: Date de naissance
A25: Identification des comptes | C25: Numéro IBAN
A26: Compte dotation
A27: Placement 1
A28: Placement 2
A29: Placement 3
A30: Placement 4
A31: Placement 5

Sheet Gestion impression
A1: ="Remise-Reprise du "&TEXT(Gestionnaires!C12,"jj/mm/aaaa")&" - Sortie de "&" "&Gestionnaires!C8&" "&Gestionnaires!C10&" "&UPPER(Gestionnaires!C9) -> Remise-Reprise du 00/01/1900 - Sortie de
A11: ="Remise-Reprise du "&TEXT(Gestionnaires!F12,"jj/mm/aaaa")&" - Sortie de "&" "&Gestionnaires!F8&" "&Gestionnaires!F10&" "&UPPER(Gestionnaires!F9) -> Remise-Reprise du 00/01/1900 - Sortie de
A21: ="Remise-Reprise du "&TEXT(Gestionnaires!L12,"jj/mm/aaaa")&" - Sortie de "&" "&Gestionnaires!L8&" "&Gestionnaires!L10&" "&UPPER(Gestionnaires!L9) -> Remise-Reprise du 00/01/1900 - Sortie de

Sheet Reports
A2: ="Report au 31 décembre "&Gestionnaires!I8 -> Report au 31 décembre 1899
A4: Caisse | D4: 0
A5: Dotation | D5: 0
A6: Placement 1 | D6: 0
A7: Placement 2 | D7: 0
A8: Placement 3 | D8: 0
A9: Placement 4 | D9: 0
A10: Placement 5 | D10: 0
A11: PV déficit | D11: 0
A12: Sous-totaux | D12: =SUM(C4:D11) -> 0
A13: Mouvements de fonds | D13: 0
A14: Totaux | D14: =D12-C13 -> 0
A15: Opérations courantes | C15: 2A | D15: 2B
A16: Intendance | C16: 0 | D16: 0
A17: Fonctionnement | C17: 0 | D17: 0
A18: Fond de réserve | C18: 0 | D18: 0
A19: Total OC | C19: =SUM(C16:C18) -> 0 | D19: =SUM(D16:D18) -> 0
A20: Opérations en capital | C20: 0 | D20: 0
A21: Opérations pour ordre
A22: Tiers | C22: 0 | D22: 0
A23: Trésor | C23: 0 | D23: 0
A24: Total PO | C24: =SUM(C22:C23) -> 0 | D24: =SUM(D22:D23) -> 0
A25: Sous-totaux | C25: =SUM(C16:C18,C20,C22:C23) -> 0 | D25: =SUM(D16:D18,D20,D22:D23) -> 0
A26: Transferts | C26: 0 | D26: 0
A27: Totaux | C27: =C25-C26 -> 0 | D27: =D25-D26 -> 0

Sheet Caisse 1
A1: ="Encodage de la caisse à la date du "&TEXT(Gestionnaires!C12,"jj/mm/aaaa") -> Encodage de la caisse à la date du 00/01/1900
B3: 0 | C3: x | D3: 1 | E3: cents = | F3: =(B3*D3)/100 -> 0
B4: 0 | C4: x | D4: 2 | E4: cents = | F4: =(B4*D4)/100 -> 0 | I4: ="Renseignez ici les devises contenues en caisse à la date du "&TEXT(Gestionnaires!C12,"jj/mm/aaaa")&" jour de sortie de "&Gestionnaires!C8&" "&Gestionnaires!C10&" " &UPPER(Gestionnaires!C9) -> Renseignez ici les devises contenues en caisse à la date du 00/01/1900 jour de sortie de
B5: 0 | C5: x | D5: 5 | E5: cents = | F5: 0
B6: 0 | C6: x | D6: 10 | E6: cents = | F6: 0
B7: 0 | C7: x | D7: 20 | E7: cents = | F7: 0
B8: 0 | C8: x | D8: 50 | E8: cents = | F8: 0
B9: 0 | C9: x | D9: 1 | E9: Euro = | F9: =B9*D9 -> 0
B10: 0 | C10: x | D10: 2 | E10: Euros = | F10: 0 | I10: Ne complétez que la colonne jaune
B11: 0 | C11: x | D11: 5 | E11: Euros = | F11: 0
B12: 0 | C12: x | D12: 10 | E12: Euros = | F12: 0
B13: 0 | C13: x | D13: 20 | E13: Euros = | F13: 0
B14: 0 | C14: x | D14: 50 | E14: Euros = | F14: 0
B15: 0 | C15: x | D15: 100 | E15: Euros = | F15: 0
B16: 0 | C16: x | D16: 200 | E16: Euros = | F16: 0
B17: 0 | C17: x | D17: 500 | E17: Euros = | F17: 0
B18: Total | F18: =SUM(F3:F17) -> 0

Sheet AP sortie
A1: ="Etat des comptes et des avoirs à la date du "&TEXT(Gestionnaires!C12,"jj/mm/aaaa") -> Etat des comptes et des avoirs à la date du 00/01/1900
A2: ="Compte jaune du "&TEXT(Gestionnaires!C12,"jj/mm/aaaa") -> Compte jaune du 00/01/1900
C3: Recettes | D3: Dépenses | E3: Solde remis | G3: Créances à recouvrer | K3: Créances à liquider
A4: Caisse | C4: 0 | D4: 0 | E4: =C4-D4 -> 0 | G4: Opérations courantes | I4: =SUM(I5:I6) -> 0 | K4: Opérations courantes | M4: A honorer | N4: Fact. Impayées | O4: Fact. Ordonnancées | P4: Total
A5: Dotation | C5: 0 | D5: 0 | E5: =C5-D5 -> 0 | G5: Intendance | I5: 0 | K5: Intendance | M5: 0 | N5: 0 | O5: 0 | P5: =SUM(M5:O5) -> 0
A6: Placement 1 | C6: 0 | D6: 0 | E6: 0 | G6: Autres | I6: 0 | K6: Autres | M6: 0 | N6: 0 | O6: 0 | P6: =SUM(M6:O6) -> 0
A7: Placement 2 | C7: 0 | D7: 0 | E7: 0 | G7: Opérations en capital | I7: 0 | K7: Opérations en capital | M7: 0 | N7: 0 | O7: 0 | P7: 0
A8: Placement 3 | C8: 0 | D8: 0 | E8: 0 | G8: Opérations pour ordre | I8: =SUM(I9:I10) -> 0 | K8: Opérations pour ordre
A9: Placement 4 | C9: 0 | D9: 0 | E9: 0 | G9: Tiers | I9: 0 | K9: Tiers | M9: 0 | N9: 0 | O9: 0 | P9: 0
A10: Placement 5 | C10: 0 | D10: 0 | E10: 0 | G10: Trésor | I10: 0 | K10: Trésor | M10: 0 | N10: 0 | O10: 0 | P10: 0
A11: PV déficit | C11: 0 | D11: 0 | E11: 0 | G11: Total | I11: =SUM(I5,I6,I7,I9,I10,) -> 0 | K11: Total | M11: =SUM(M5:M10) -> 0 | N11: =SUM(N5:N10) -> 0 | O11: =SUM(O5:O10) -> 0 | P11: =SUM(P5:P10) -> 0
A12: Sous-totaux | C12: =SUM(C4:C11) -> 0 | D12: =SUM(D4:D11) -> 0 | E12: 0
A13: Mouvements de fonds | C13: 0 | D13: 0 | E13: 0 | M13: Total | N13: hors pensions
A14: Totaux | C14: =C12-C13 -> 0 | D14: =D12-D13 -> 0 | E14: 0 | G14: Pensions anticipatives | I14: 0 | K14: Comptes créditeurs | M14: 0 | N14: =M14-I14 -> 0
A15: Opérations courantes
A16: Intendance | C16: 0 | D16: 0 | E16: =C16-D16 -> 0
A17: Fonctionnement | C17: 0 | D17: 0 | E17: =C17-D17 -> 0
A18: Fond de réserve | C18: 0 | D18: 0 | E18: =C18-D18 -> 0 | G18: Magasin | L18: Energie
A19: Total OC | C19: =SUM(C16:C18) -> 0 | D19: =SUM(D16:D18) -> 0 | E19: =C19-D19 -> 0 | G19: Stock alimentation | J19: 0 | L19: Type | M19: Qté | N19: Unité | O19: Prix unitaire | P19: Montant
A20: Opérations en capital | C20: 0 | D20: 0 | E20: =C20-D20 -> 0 | G20: Stock des produits d'entretien | J20: 0 | L20: Mazout | M20: 0 | N20: litres à | O20: 0 | P20: =M20*O20 -> 0
A21: Opérations pour ordre | G21: Stock de pharmacie | J21: 0 | L21: Gaz | M21: 0 | N21: litres à | O21: 0 | P21: =M21*O21 -> 0
A22: Tiers | C22: 0 | D22: 0 | E22: =C22-D22 -> 0 | G22: Stock matériel de bureau | J22: 0 | L22: Charbon | N22: Kg | P22: =M22*O22 -> 0
A23: Trésor | C23: 0 | D23: 0 | E23: 0 | G23: Stock matières premières | J23: 0 | L23: Autres à préciser
A24: Total PO | C24: =SUM(C22:C23) -> 0 | D24: =SUM(D22:D23) -> 0 | E24: 0 | G24: Stock fournitures scolaires | J24: 0 | P24: 0
A25: Sous-totaux | C25: =C19+C20+C24 -> 0 | D25: =D19+D20+D24 -> 0 | E25: 0 | G25: Stock autres | J25: 0 | L25: Total | P25: =SUM(P20:P22,P24) -> 0
A26: Transferts | C26: 0 | D26: 0 | E26: 0 | G26: Total | J26: =SUM(J19:J25) -> 0
A27: Totaux | C27: =C25-C26 -> 0 | D27: =D25-D26 -> 0 | E27: 0
L32: Tickets en circulation
G33: Autres valeurs | L33: Tickets | M33: 0
G34: Timbres | I34: 0
G35: Autres à préciser
I36: 0
I37: 0
I38: 0
G39: Total | I39: =SUM(I34,I36:I38) -> 0

Sheet Impression PV caisse
A1: Procès-verbal de caisse | C1: du service | D1: =LOOKUP("X",Identification!B2:B344,Identification!D2:D344) -> 
D2: =LOOKUP("X",Identification!B2:B344,Identification!E2:E344) -> 
D3: =LOOKUP("X",Identification!B2:B344,Identification!F2:F344&" "&Identification!G2:G344) -> 
C6: =Gestionnaires!C2 -> 0 | D6: =IF(C6="Monsieur","Ordonnateur","Ordonnatrice") -> Ordonnatrice | F6: =Gestionnaires!C8 -> 0
A7: ="Le"&" "&TEXT(Gestionnaires!C12,"jj/mm/AAAA") -> Le 00/01/1900 | B7: =" Nous," -> Nous, | C7: =Gestionnaires!C5 -> 0 | D7: Avons requis | F7: =Gestionnaires!C10 -> 0
C8: =UPPER(Gestionnaires!C4) ->  | F8: =UPPER(Gestionnaires!C9) -> 
A10: Comptable de l'établissement repris ci-dessus, de nous présenter les valeurs et autres espèces existant dans sa caisse et avons dressés le bordereau ci-après, à savoir:
A13: NUMERAIRES ET VALEURS
D15: ='Caisse 1'!B3 -> 0 | E15: Pièces de 1 cent = | F15: ='Caisse 1'!F3 -> 0
D16: ='Caisse 1'!B4 -> 0 | E16: Pièces de 2 cents = | F16: ='Caisse 1'!F4 -> 0
D17: ='Caisse 1'!B5 -> 0 | E17: Pièces de 5 cents = | F17: ='Caisse 1'!F5 -> 0
D18: ='Caisse 1'!B6 -> 0 | E18: Pièces de 10 cents = | F18: ='Caisse 1'!F6 -> 0
D19: ='Caisse 1'!B7 -> 0 | E19: Pièces de 20 cents = | F19: ='Caisse 1'!F7 -> 0
D20: ='Caisse 1'!B8 -> 0 | E20: Pièces de 50 cents = | F20: ='Caisse 1'!F8 -> 0
D21: ='Caisse 1'!B9 -> 0 | E21: Pièces de 1 Euro = | F21: ='Caisse 1'!F9 -> 0
D22: ='Caisse 1'!B10 -> 0 | E22: Pièces de 2 Euros = | F22: ='Caisse 1'!F10 -> 0
A23: Caisse = | C23: ='AP sortie'!E4 -> 0 | D23: ='Caisse 1'!B11 -> 0 | E23: bilets de 5 Euros = | F23: ='Caisse 1'!F11 -> 0
A24: Dotation = | C24: ='AP sortie'!E5 -> 0 | D24: ='Caisse 1'!B12 -> 0 | E24: bilets de 10 Euros = | F24: ='Caisse 1'!F12 -> 0
A25: Placement 1 = | C25: ='AP sortie'!E6 -> 0 | D25: ='Caisse 1'!B13 -> 0 | E25: bilets de 20 Euros = | F25: ='Caisse 1'!F13 -> 0
A26: Placement 2 = | C26: ='AP sortie'!E7 -> 0 | D26: ='Caisse 1'!B14 -> 0 | E26: bilets de 50 Euros = | F26: ='Caisse 1'!F14 -> 0
A27: Placement 3 = | C27: ='AP sortie'!E8 -> 0 | D27: ='Caisse 1'!B15 -> 0 | E27: bilets de 100 Euros = | F27: ='Caisse 1'!F15 -> 0
A28: Placement 4 = | C28: ='AP sortie'!E9 -> 0 | D28: ='Caisse 1'!B16 -> 0 | E28: bilets de 200 Euros = | F28: ='Caisse 1'!F16 -> 0
A29: Placement 5 = | C29: ='AP sortie'!E10 -> 0 | D29: ='Caisse 1'!B17 -> 0 | E29: bilets de 500 Euros = | F29: ='Caisse 1'!F17 -> 0
A30: TOTAL = | C30: =SUM(C23:C29) -> 0 | D30: TOTAL = | F30: ='Caisse 1'!F18 -> 0
A32: =IF('AP sortie'!E11<>0, ("Attention : Déficit présent pour un montant de "&'AP sortie'!E11&" "&"Euro"),"") -> 
A34: Nous étant fait présenter immédiatement le Journal-Centralisateur du Comptable, nous avons arrêté:
A36: La recette à la somme de :
A37: =ConvNumberLetter(('AP sortie'!C14-'AP sortie'!C11),1,1) -> Euro
A38: La dépense à la somme de :
A39: =ConvNumberLetter('AP sortie'!D14,1,1) -> Euro
A40: L'excédent de la recette sur la dépense à celle de:
A41: =ConvNumberLetter(('AP sortie'!E14-'AP sortie'!E11),1,1) -> Euro
A43: ="Après quoi, nous avons clos et arrêté le présent procès-verbal que "&IF(Gestionnaires!C8="Monsieur","le","la")&" "&"Comptable a signé avec nous." -> Après quoi, nous avons clos et arrêté le présent procès-verbal que la Comptable a signé avec nous.
A45: ="Fait à"&" "&LOOKUP("X",Identification!B2:B344,Identification!G2:G344)&", le "& TEXT(Gestionnaires!C17,"jj/mm/AAAA") -> 
B47: =IF(Gestionnaires!C8="Monsieur","Le","La")&" "&"comptable, " -> La comptable, | E47: =IF(Gestionnaires!C2="Monsieur","L'ordonnateur,","L'ordonnatrice,") -> L'ordonnatrice,

Sheet PV de remise-reprise
A1: Procès verbal de remise-reprise des comptes
A3: ="Les "&IF(OR(Gestionnaires!C8="Monsieur", Gestionnaires!C19="Monsieur"),"soussignés, ","soussignées, ")&Gestionnaires!C10&" "&UPPER(Gestionnaires!C9)&", comptable "&IF(Gestionnaires!C8="Monsieur","sortant ","sortante ")&"de l'établissement "&LOOKUP("X",Identification!B2:B344,Identification!D2:D344)&" et "&Gestionnaires!C21&" "&UPPER(Gestionnaires!C20)&", successeur, ont procédé à la remise et à la reprise des comptes de l'établissement précité qui, en date du "&TEXT(Gestionnaires!C12,"jj/mm/aaaa")&", ont été établis comme suit :" -> 
A6: I. LIVRE CENTRALISATEUR
A8: Livres centralisateurs
C9: Recettes | D9: Dépenses | E9: Solde remis
A10: Caisse | C10: ='AP sortie'!C4 -> 0 | D10: ='AP sortie'!D4 -> 0 | E10: ='AP sortie'!E4 -> 0
A11: Dotation | C11: ='AP sortie'!C5 -> 0 | D11: ='AP sortie'!D5 -> 0 | E11: ='AP sortie'!E5 -> 0
A12: Placement 1 | C12: ='AP sortie'!C6 -> 0 | D12: ='AP sortie'!D6 -> 0 | E12: ='AP sortie'!E6 -> 0
A13: Placement 2 | C13: ='AP sortie'!C7 -> 0 | D13: ='AP sortie'!D7 -> 0 | E13: ='AP sortie'!E7 -> 0
A14: Placement 3 | C14: ='AP sortie'!C8 -> 0 | D14: ='AP sortie'!D8 -> 0 | E14: ='AP sortie'!E8 -> 0
A15: Placement 4 | C15: ='AP sortie'!C9 -> 0 | D15: ='AP sortie'!D9 -> 0 | E15: ='AP sortie'!E9 -> 0
A16: Placement 5 | C16: ='AP sortie'!C10 -> 0 | D16: ='AP sortie'!D10 -> 0 | E16: ='AP sortie'!E10 -> 0
A17: Deficit (-) | C17: ='AP sortie'!C11 -> 0 | D17: ='AP sortie'!D11 -> 0 | E17: ='AP sortie'!E11 -> 0
A18: Sous-totaux | C18: ='AP sortie'!C12-'AP sortie'!C11 -> 0 | D18: ='AP sortie'!D12-'AP sortie'!D11 -> 0 | E18: ='AP sortie'!E12-'AP sortie'!E11 -> 0
A19: Mouvements de fonds | C19: ='AP sortie'!C13 -> 0 | D19: ='AP sortie'!D13 -> 0 | E19: ='AP sortie'!E13 -> 0
A20: Totaux | C20: =C18-C19 -> 0 | D20: =D18-D19 -> 0 | E20: 0
A22: Opérations courantes | C22: =SUM(C23:C24) -> 0 | D22: =SUM(D23:D24) -> 0 | E22: =C22-D22 -> 0
A23: Intendance | C23: ='AP sortie'!C16 -> 0 | D23: ='AP sortie'!D16 -> 0 | E23: ='AP sortie'!E16 -> 0
A24: Autres | C24: ='AP sortie'!C17 -> 0 | D24: ='AP sortie'!D17 -> 0 | E24: ='AP sortie'!E17 -> 0
A25: Fond de réserve | C25: ='AP sortie'!C18 -> 0 | D25: ='AP sortie'!D18 -> 0 | E25: ='AP sortie'!E18 -> 0
A26: Opérations en capital | C26: ='AP sortie'!C20 -> 0 | D26: ='AP sortie'!D20 -> 0 | E26: ='AP sortie'!E20 -> 0
A27: Opérations pour ordre | C27: ='AP sortie'!C24 -> 0 | D27: ='AP sortie'!D24 -> 0 | E27: ='AP sortie'!E24 -> 0
A28: Sous-totaux | C28: ='AP sortie 3'!C25 -> 0 | D28: ='AP sortie 3'!D25 -> 0 | E28: ='AP sortie 3'!E25 -> 0
A29: Transferts | C29: ='AP sortie'!C26 -> 0 | D29: ='AP sortie'!D26 -> 0 | E29: ='AP sortie'!E26 -> 0
A30: Totaux | C30: ='AP sortie'!C27 -> 0 | D30: ='AP sortie'!D27 -> 0 | E30: ='AP sortie'!E27 -> 0
A32: II. CREANCES A RECOUVRER
C34: Créances à recouvrer
C35: Opérations courantes | E35: ='AP sortie'!I4 -> 0
C36: Intendance | E36: ='AP sortie'!I5 -> 0
C37: Autres | E37: ='AP sortie'!I6 -> 0
C38: Opérations en capital | E38: ='AP sortie'!I7 -> 0
C39: Opérations pour ordre | E39: ='AP sortie'!I8 -> 0
C40: Tiers | E40: ='AP sortie'!I9 -> 0
C41: Trésor | E41: ='AP sortie'!I10 -> 0
C42: Total | E42: ='AP sortie'!I11 -> 0
A50: III. CREANCES A LIQUIDER
A52: Opérations courantes | C52: A honorer | D52: Fact. Impayées | E52: Fact. Ordonnancées | F52: Total
A53: Intendance | C53: ='AP sortie'!M5 -> 0 | D53: ='AP sortie'!N5 -> 0 | E53: ='AP sortie'!O5 -> 0 | F53: ='AP sortie'!P5 -> 0
A54: Autres | C54: ='AP sortie'!M6 -> 0 | D54: ='AP sortie'!N6 -> 0 | E54: ='AP sortie'!O6 -> 0 | F54: ='AP sortie'!P6 -> 0
A55: Opérations en capital | C55: ='AP sortie'!M7 -> 0 | D55: ='AP sortie'!N7 -> 0 | E55: ='AP sortie'!O7 -> 0 | F55: ='AP sortie'!P7 -> 0
A56: Opérations pour ordre
A57: Tiers | C57: ='AP sortie'!M9 -> 0 | D57: ='AP sortie'!N9 -> 0 | E57: ='AP sortie'!O9 -> 0 | F57: ='AP sortie'!P9 -> 0
A58: Trésor | C58: ='AP sortie'!M10 -> 0 | D58: ='AP sortie'!N10 -> 0 | E58: ='AP sortie'!O10 -> 0 | F58: ='AP sortie'!P10 -> 0
A59: Totaux | C59: ='AP sortie'!M11 -> 0 | D59: ='AP sortie'!N11 -> 0 | E59: ='AP sortie'!O11 -> 0 | F59: ='AP sortie'!P11 -> 0
A61: IV. MAGASIN
B63: Stock alimentation | E63: ='AP sortie'!J19 -> 0
B64: Stock des produits d'entretien | E64: ='AP sortie'!J20 -> 0
B65: Stock de pharmacie | E65: ='AP sortie'!J21 -> 0
B66: Stock matériel de bureau | E66: ='AP sortie'!J22 -> 0
B67: Stock matières premières | E67: ='AP sortie'!J23 -> 0
B68: Stock fournitures scolaires | E68: ='AP sortie'!J24 -> 0
B69: Stock autres | E69: ='AP sortie'!J25 -> 0
B70: Total | E70: ='AP sortie'!J26 -> 0
A71: V. ENERGIE
B74: Type | C74: Qté | D74: Unité | E74: Prix unitaire | F74: Montant
B75: Mazout | C75: ='AP sortie'!M20 -> 0 | D75: litres à | E75: ='AP sortie'!O20 -> 0 | F75: ='AP sortie'!P20 -> 0
B76: Gaz | C76: ='AP sortie'!M21 -> 0 | E76: ='AP sortie'!O21 -> 0 | F76: ='AP sortie'!P21 -> 0
B77: Charbon | C77: ='AP sortie'!M22 -> 0 | D77: Kg | E77: ='AP sortie'!O22 -> 0 | F77: ='AP sortie'!P22 -> 0
B78: Autres à préciser
B79: ='AP sortie'!L24 -> 0 | F79: ='AP sortie'!P24 -> 0
B80: Total | F80: ='AP sortie'!P25 -> 0
A82: VI. AUTRES VALEURS
C85: Timbres | E85: ='AP sortie'!I34 -> 0
C86: Autres à préciser
C87: ='AP sortie'!G36 -> 0 | E87: ='AP sortie'!I36 -> 0
C88: ='AP sortie'!G37 -> 0 | E88: ='AP sortie'!I37 -> 0
C89: ='AP sortie'!G38 -> 0 | E89: ='AP sortie'!I38 -> 0
C90: Total | E90: ='AP sortie'!I39 -> 0
A91: VII. TICKET
C94: Ticket en circulation | E94: ='AP sortie'!M33 -> 0
A99: ="VIII. BILAN DU "&TEXT(Gestionnaires!C12,"jj/mm/aaaa") -> VIII. BILAN DU 00/01/1900
B102: ACTIF
C103: Comptes financiers (I) | E103: =E20 -> 0
C104: Créances à recouvrer (II) | E104: =E42 -> 0
C105: Magasins et autres (IV+V+VI) | E105: =E70+F80+E90 -> 0
C106: Solde négatif | E106: =IF((E103+E104+E105)-(E112+E113+E114+E115)>0,0,ABS((E103+E104+E105)-(E112+E113+E114+E115))) -> 0
C107: TOTAL | E107: =SUM(E103:E106) -> 0
B111: PASSIF
C112: Pensions anticipatives | E112: ='AP sortie'!I14 -> 0
C113: Comptes créditeurs | E113: ='AP sortie'!N14 -> 0
C114: Tickets en circulation (VII) | E114: ='AP sortie'!M33 -> 0
C115: Créances à liquider (III) | E115: ='AP sortie'!P11 -> 0
C116: Solde bénéficiaire | E116: =IF((E103+E104+E105)-(E112+E113+E114+E115)<0,0,ABS((E103+E104+E105)-(E112+E113+E114+E115))) -> 0
C117: TOTAL | E117: =SUM(E112:E116) -> 0
A120: ="Fait à "&LOOKUP("X",Identification!B2:B344,Identification!G2:G344)&", le "&TEXT(Gestionnaires!C17,"jj/mm/aaaa") -> 
B124: =IF(Gestionnaires!C8="Monsieur","Le ","La ")&"comptable "&IF(Gestionnaires!C8="Monsieur","sortant,","sortante,") -> La comptable sortante, | E124: =IF(Gestionnaires!C19="Monsieur","Le ","La ")&"comptable "&IF(Gestionnaires!C19="Monsieur","entrant,","entrante,") -> La comptable entrante,
B127: =Gestionnaires!C10&" "&UPPER(Gestionnaires!C9) ->  | E127: =Gestionnaires!C21&" "&UPPER(Gestionnaires!C20) -> 

Sheet Impression Cpte fin de gestion
A1: Etablissement : | C1: =LOOKUP("X",Identification!B2:B344,Identification!D2:D344) -> 
A3: Adresse : | C3: =LOOKUP("X",Identification!B2:B344,Identification!E2:E344) -> 
C4: =LOOKUP("X",Identification!B2:B344,Identification!F2:F344&" "&Identification!G2:G344) -> 
A7: Comptes fnanciers | C7: Caisse: | D7: ="---------" -> ---------
C8: Dotation 091 : | D8: =Gestionnaires!C26 -> 0
C9: Placement 1 : | D9: =Gestionnaires!C27 -> 0
C10: Placement 2 : | D10: =Gestionnaires!C28 -> 0
C11: Placement 3 : | D11: =Gestionnaires!C29 -> 0
C12: Placement 4 : | D12: =Gestionnaires!C30 -> 0
C13: Placement 5 : | D13: =Gestionnaires!C31 -> 0
A15: ="Comptable : " -> Comptable : | B15: =Gestionnaires!C10&" "&UPPER(Gestionnaires!C9) -> 
A18: COMPTE DE FIN DE GESTION
A20: ="Remis par "&IF(Gestionnaires!C8="Monsieur","Monsieur ","Madame ")&Gestionnaires!C10&" "&Gestionnaires!C9&" "&IF(Gestionnaires!C8="Monsieur","né le ","née le ")&TEXT(Gestionnaires!C16,"jj/mm/aaaa") -> Remis par Madame née le 00/01/1900
A22: =IF(Gestionnaires!C8="Monsieur","Domicilié : ","Domiciliée : ") -> Domiciliée : | B22: =Gestionnaires!C13 -> 0
B23: =Gestionnaires!C14&" "&UPPER(Gestionnaires!C15) -> 
A25: Comptable de | B25: =LOOKUP("X",Identification!B2:B344,Identification!D2:D344) -> 
A27: ="Conformément à l'article 7 de la loi du 29 octobre 1846, pour les recettes et les dépenses faites par "&IF(Gestionnaires!C8="Monsieur","lui ","elle ")&"pendant l'année "&RIGHT(TEXT(Gestionnaires!C12,"jj/mm/aaaa"),4)&" jusqu'au "&TEXT(Gestionnaires!C12,"jj/mm/aaaa")&" inclus." -> Conformément à l'article 7 de la loi du 29 octobre 1846, pour les recettes et les dépenses faites par elle pendant l'année 1900 jusqu'au 00/01/1900 inclus.
A49: A. Resultat du compte rendu au 31 décembre de l'année précédente
A51: =IF(Gestionnaires!C8="Monsieur","Le ","La ")&"comptable reporte ici, comme formant le premier article du présent compte, l'excédent des recettes sur les dépenses à la date du 31 décembre "&Gestionnaires!I8&" et dont "&IF(Gestionnaires!C8="Monsieur","il ","elle ")&"a été "&IF(Gestionnaires!C8="Monsieur","constaté ","constatée ")&"reliquataire par le compte établi à la même époque et qui a été précédemment adressé à la Cour des Comptes." -> La comptable reporte ici, comme formant le premier article du présent compte, l'excédent des recettes sur les dépenses à la date du 31 décembre 1899 et dont elle a été constatée reliquataire par le compte établi à la même époque et qui a été précédemment adressé à la Cour des Comptes.
A53: ="Lequel excédent s'élevant à "&ConvNumberLetter((Reports!D12-Reports!D11),1,1)&" est représenté par le svaleurs que "&IF(Gestionnaires!C8="Monsieur","le ","la ")&"comptable avait en caisse le 31/12/"&Gestionnaires!I8&", à savoir :" -> Lequel excédent s'élevant à Euro est représenté par le svaleurs que la comptable avait en caisse le 31/12/1899, à savoir :
C55: Caisse | D55: =Reports!D4 -> 0
C56: Dotation | D56: =Reports!D5 -> 0
C57: Placement 1 | D57: =Reports!D6 -> 0
C58: Placement 2 | D58: =Reports!D7 -> 0
C59: Placement 3 | D59: =Reports!D8 -> 0
C60: Placement 4 | D60: =Reports!D9 -> 0
C61: Placement 5 | D61: =Reports!D10 -> 0
C62: Total (A) | D62: =Reports!D12-Reports!D11 -> 0
A66: B. RECETTES
A68: ="Reçu par "&IF(Gestionnaires!C8="Monsieur","le ","la ")&"comptable la somme de "&ConvNumberLetter(('AP sortie'!C27 -Reports!D27),1,1)&" représentant les recouvrements effectués pendant l'année "&Gestionnaires!H2&" sur les Services à gestion séparées de l'Enseignement :" -> Reçu par la comptable la somme de Euro représentant les recouvrements effectués pendant l'année 1900 sur les Services à gestion séparées de l'Enseignement :
C71: Opérations courantes | E71: ='AP sortie'!C19-Reports!D19 -> 0
D72: Intendance | E72: ='AP sortie'!C16-Reports!D16 -> 0
D73: Autres | E73: =('AP sortie'!C17-Reports!D17)+('AP sortie'!C18-Reports!D18) -> 0
C75: Opérations en capital | E75: ='AP sortie'!C20-Reports!D20 -> 0
C77: Opérations pour ordre | E77: ='AP sortie'!C24-Reports!D24 -> 0
D78: Tiers | E78: ='AP sortie'!C22-Reports!D22 -> 0
D79: Trésor | E79: ='AP sortie'!C23-Reports!D23 -> 0
C81: Transferts | E81: ='AP sortie'!C26 -> 0
C82: TOTAL (B) | E82: ='AP sortie'!C27-Reports!D27 -> 0
C84: ="Déficit en "&Gestionnaires!H2&" :" -> Déficit en 1900 : | E84: ='AP sortie'!C11-Reports!D11 -> 0 | F84: ="*" -> *
A92: C. DEPENSES
A94: ="Dépensé par "&IF(Gestionnaires!C33="Monsieur","le ","la ")&"comptable la somme de "&ConvNumberLetter('AP sortie'!D27,1,1)&" euros se décomposant comme suit :" -> Dépensé par la comptable la somme de Euro euros se décomposant comme suit :
C98: Opérations courantes | E98: ='AP sortie'!D19 -> 0
D99: Intendance | E99: ='AP sortie'!D16 -> 0
D100: Autres | E100: ='AP sortie'!D17+'AP sortie'!D18 -> 0
C102: Opérations en capital | E102: ='AP sortie'!D20 -> 0
C104: Opérations pour ordre | E104: ='AP sortie'!D24 -> 0
D105: Tiers | E105: ='AP sortie'!D22 -> 0
D106: Trésor | E106: ='AP sortie'!D23 -> 0
C108: Transferts | E108: ='AP sortie'!D26 -> 0
C109: TOTAL (C) | E109: ='AP sortie'!D27 -> 0
A112: D. RESULTATS
A114: Valeurs existant en caisse au 31 décembre d e l'année précédente : | D114: =D62 -> 0 | F114: (A)
A115: =" + Recettes pendant l'année "&Gestionnaires!H2&" :" -> + Recettes pendant l'année 1900 : | D115: =E82 -> 0 | F115: (B)
A116: Total des sommes à justifier : | D116: =SUM(D114:E115) -> 0
A117: =" - Dépenses pendant l'année "&Gestionnaires!H2&" :" -> - Dépenses pendant l'année 1900 : | D117: =E109 -> 0 | F117: (C)
A118: ="Excédent des recettes sur les dépenses :" -> Excédent des recettes sur les dépenses : | D118: =D116-D117 -> 0
A119: ="- Déficit en "&Gestionnaires!H2&" :" -> - Déficit en 1900 : | D119: =E84 -> 0 | F119: ="*" -> *
A120: Réalité de la trésorie : | D120: =D118-D119 -> 0
A123: =IF(Gestionnaires!C8="Monsieur","Le ","La ")&IF(Gestionnaires!C33="Monsieur","soussigné, ","soussignée, ")&Gestionnaires!C10&" "&Gestionnaires!C9&" "&"comptable de "&LOOKUP("X",Identification!B2:B344,Identification!D2:D344)&"," -> 
A124: ="affirme sous peine de droit, véritable dans toutes ses parties, le présent compte qui est le résumé des recettes et des dépenses effectuées par "&IF(Gestionnaires!C8="Monsieur","lui ","elle ")&" pendant la durée de sa gestion." -> affirme sous peine de droit, véritable dans toutes ses parties, le présent compte qui est le résumé des recettes et des dépenses effectuées par elle pendant la durée de sa gestion.
A127: ="Fait à "&LOOKUP("X",Identification!B2:B344,Identification!G2:G344&", "&"le "&TEXT(Gestionnaires!C17,"jj/mm/aaaa")) ->  | E127: =IF(Gestionnaires!C8="Monsieur","Le ","La ") &"comptable," -> La comptable,
A131: E. REMARQUES EVENTUELLES (Manuscrites) :

Sheet Caisse 2
A1: ="Encodage de la caisse à la date du "&TEXT(Gestionnaires!F12,"jj/mm/aaaa") -> Encodage de la caisse à la date du 00/01/1900
B3: 0 | C3: x | D3: 1 | E3: cents = | F3: =(B3*D3)/100 -> 0
B4: 0 | C4: x | D4: 2 | E4: cents = | F4: =(B4*D4)/100 -> 0 | I4: ="Renseignez ici les devises contenues en caisse à la date du "&TEXT(Gestionnaires!F12,"jj/mm/aaaa")&" jour de sortie de "&Gestionnaires!F8&" "&Gestionnaires!F10&" " &UPPER(Gestionnaires!F9) -> Renseignez ici les devises contenues en caisse à la date du 00/01/1900 jour de sortie de
B5: 0 | C5: x | D5: 5 | E5: cents = | F5: 0
B6: 0 | C6: x | D6: 10 | E6: cents = | F6: 0
B7: 0 | C7: x | D7: 20 | E7: cents = | F7: 0
B8: 0 | C8: x | D8: 50 | E8: cents = | F8: 0
B9: 0 | C9: x | D9: 1 | E9: Euro = | F9: =B9*D9 -> 0 | I9: Ne complétez que la colonne bleue
B10: 0 | C10: x | D10: 2 | E10: Euros = | F10: 0
B11: 0 | C11: x | D11: 5 | E11: Euros = | F11: 0
B12: 0 | C12: x | D12: 10 | E12: Euros = | F12: 0
B13: 0 | C13: x | D13: 20 | E13: Euros = | F13: 0
B14: 0 | C14: x | D14: 50 | E14: Euros = | F14: 0
B15: 0 | C15: x | D15: 100 | E15: Euros = | F15: 0
B16: 0 | C16: x | D16: 200 | E16: Euros = | F16: 0
B17: 0 | C17: x | D17: 500 | E17: Euros = | F17: 0
B18: Total | F18: =SUM(F3:F17) -> 0

Sheet AP sortie 2
A1: ="Etat des comptes et des avoirs à la date du "&TEXT(Gestionnaires!F12,"jj/mm/aaaa") -> Etat des comptes et des avoirs à la date du 00/01/1900
A2: ="Compte jaune du "&TEXT(Gestionnaires!F12,"jj/mm/aaaa") -> Compte jaune du 00/01/1900
C3: Recettes | D3: Dépenses | E3: Solde remis | G3: Créances à recouvrer | K3: Créances à liquider
A4: Caisse | C4: 0 | D4: 0 | E4: =C4-D4 -> 0 | G4: Opérations courantes | I4: =SUM(I5:I6) -> 0 | K4: Opérations courantes | M4: A honorer | N4: Fact. Impayées | O4: Fact. Ordonnancées | P4: Total
A5: Dotation | C5: 0 | D5: 0 | E5: =C5-D5 -> 0 | G5: Intendance | I5: 0 | K5: Intendance | M5: 0 | N5: 0 | O5: 0 | P5: =SUM(M5:O5) -> 0
A6: Placement 1 | C6: 0 | D6: 0 | E6: 0 | G6: Autres | I6: 0 | K6: Autres | M6: 0 | N6: 0 | O6: 0 | P6: =SUM(M6:O6) -> 0
A7: Placement 2 | C7: 0 | D7: 0 | E7: 0 | G7: Opérations en capital | I7: 0 | K7: Opérations en capital | M7: 0 | N7: 0 | O7: 0 | P7: 0
A8: Placement 3 | C8: 0 | D8: 0 | E8: 0 | G8: Opérations pour ordre | I8: =SUM(I9:I10) -> 0 | K8: Opérations pour ordre
A9: Placement 4 | C9: 0 | D9: 0 | E9: 0 | G9: Tiers | I9: 0 | K9: Tiers | M9: 0 | N9: 0 | O9: 0 | P9: 0
A10: Placement 5 | C10: 0 | D10: 0 | E10: 0 | G10: Trésor | I10: 0 | K10: Trésor | M10: 0 | N10: 0 | O10: 0 | P10: 0
A11: PV déficit | C11: 0 | D11: 0 | E11: 0 | G11: Total | I11: =SUM(I5,I6,I7,I9,I10,) -> 0 | K11: Total | M11: =SUM(M5:M10) -> 0 | N11: =SUM(N5:N10) -> 0 | O11: =SUM(O5:O10) -> 0 | P11: =SUM(P5:P10) -> 0
A12: Sous-totaux | C12: =SUM(C4:C11) -> 0 | D12: =SUM(D4:D11) -> 0 | E12: 0
A13: Mouvements de fonds | C13: 0 | D13: 0 | E13: 0 | M13: Total | N13: hors pensions
A14: Totaux | C14: =C12-C13 -> 0 | D14: =D12-D13 -> 0 | E14: 0 | G14: Pensions anticipatives | I14: 0 | K14: Comptes créditeurs | M14: 0 | N14: =M14-I14 -> 0
A15: Opérations courantes
A16: Intendance | C16: 0 | D16: 0 | E16: =C16-D16 -> 0 | G16: Magasin | L16: Energie
A17: Fonctionnement | C17: 0 | D17: 0 | E17: =C17-D17 -> 0 | G17: Stock alimentation | J17: 0 | L17: Type | M17: Qté | N17: Unité | O17: Prix unitaire | P17: Montant
A18: Fond de réserve | C18: 0 | D18: 0 | E18: =C18-D18 -> 0 | G18: Stock des produits d'entretien | J18: 0 | L18: Mazout | M18: 0 | N18: litres à | O18: 0 | P18: =M18*O18 -> 0
A19: Total OC | C19: =SUM(C16:C18) -> 0 | D19: =SUM(D16:D18) -> 0 | E19: =C19-D19 -> 0 | G19: Stock de pharmacie | J19: 0 | L19: Gaz | N19: litres à | P19: =M19*O19 -> 0
A20: Opérations en capital | C20: 0 | D20: 0 | E20: =C20-D20 -> 0 | G20: Stock matériel de bureau | J20: 0 | L20: Charbon | N20: Kg | P20: =M20*O20 -> 0
A21: Opérations pour ordre | G21: Stock matières premières | J21: 0 | L21: Autres à préciser
A22: Tiers | C22: 0 | D22: 0 | E22: =C22-D22 -> 0 | G22: Stock fournitures sclaires | J22: 0 | P22: 0
A23: Trésor | C23: 0 | D23: 0 | E23: 0 | G23: Stock Autres | J23: 0 | L23: Total | P23: =SUM(P18:P20,P22) -> 0
A24: Total PO | C24: =SUM(C22:C23) -> 0 | D24: =SUM(D22:D23) -> 0 | E24: 0 | G24: Total | J24: =SUM(J17:J23) -> 0
A25: Sous-totaux | C25: =C19+C20+C24 -> 0 | D25: =D19+D20+D24 -> 0 | E25: 0
A26: Transferts | C26: 0 | D26: 0 | E26: 0 | G26: Autres valeurs | L26: Tickets en circulation
A27: Totaux | C27: =C25-C26 -> 0 | D27: =D25-D26 -> 0 | E27: 0 | G27: Timbres | I27: 0 | L27: Tickets | M27: 0
G28: Autres à préciser
I29: 0
I30: 0
I31: 0
G32: Total | I32: =SUM(I27,I29:I31) -> 0

Sheet Impression PV caisse (2)
A1: Procès-verbal de caisse | C1: du service | D1: =LOOKUP("X",Identification!B2:B344,Identification!D2:D344) -> 
D2: =LOOKUP("X",Identification!B2:B344,Identification!E2:E344) -> 
D3: =LOOKUP("X",Identification!B2:B344,Identification!F2:F344&" "&Identification!G2:G344) -> 
C6: =Gestionnaires!C2 -> 0 | D6: =IF(C6="Monsieur","Ordonnateur","Ordonnatrice") -> Ordonnatrice | F6: =Gestionnaires!F8 -> 0
A7: ="Le"&" "&TEXT(Gestionnaires!F12,"jj/mm/AAAA") -> Le 00/01/1900 | B7: =" Nous," -> Nous, | C7: =Gestionnaires!C5 -> 0 | D7: Avons requis | F7: =Gestionnaires!F10 -> 0
C8: =UPPER(Gestionnaires!C4) ->  | F8: =UPPER(Gestionnaires!F9) -> 
A10: Comptable de l'établissement repris ci-dessus, de nous présenter les valeurs et autres espèces existant dans sa caisse et avons dressés le bordereau ci-après, à savoir:
A13: NUMERAIRES ET VALEURS
D15: ='Caisse 2'!B3 -> 0 | E15: Pièces de 1 cent = | F15: ='Caisse 2'!F3 -> 0
D16: ='Caisse 2'!B4 -> 0 | E16: Pièces de 2 cents = | F16: ='Caisse 2'!F4 -> 0
D17: ='Caisse 2'!B5 -> 0 | E17: Pièces de 5 cents = | F17: ='Caisse 2'!F5 -> 0
D18: ='Caisse 2'!B6 -> 0 | E18: Pièces de 10 cents = | F18: ='Caisse 2'!F6 -> 0
D19: ='Caisse 2'!B7 -> 0 | E19: Pièces de 20 cents = | F19: ='Caisse 2'!F7 -> 0
D20: ='Caisse 2'!B8 -> 0 | E20: Pièces de 50 cents = | F20: ='Caisse 2'!F8 -> 0
D21: ='Caisse 2'!B9 -> 0 | E21: Pièces de 1 Euro = | F21: ='Caisse 2'!F9 -> 0
D22: ='Caisse 2'!B10 -> 0 | E22: Pièces de 2 Euros = | F22: ='Caisse 2'!F10 -> 0
A23: Caisse = | C23: ='AP sortie 2'!E4 -> 0 | D23: ='Caisse 2'!B11 -> 0 | E23: bilets de 5 Euros = | F23: ='Caisse 2'!F11 -> 0
A24: Dotation = | C24: ='AP sortie 2'!E5 -> 0 | D24: ='Caisse 2'!B12 -> 0 | E24: bilets de 10 Euros = | F24: ='Caisse 2'!F12 -> 0
A25: Placement 1 = | C25: ='AP sortie 2'!E6 -> 0 | D25: ='Caisse 2'!B13 -> 0 | E25: bilets de 20 Euros = | F25: ='Caisse 2'!F13 -> 0
A26: Placement 2 = | C26: ='AP sortie 2'!E7 -> 0 | D26: ='Caisse 2'!B14 -> 0 | E26: bilets de 50 Euros = | F26: ='Caisse 2'!F14 -> 0
A27: Placement 3 = | C27: ='AP sortie 2'!E8 -> 0 | D27: ='Caisse 2'!B15 -> 0 | E27: bilets de 100 Euros = | F27: ='Caisse 2'!F15 -> 0
A28: Placement 4 = | C28: ='AP sortie 2'!E9 -> 0 | D28: ='Caisse 2'!B16 -> 0 | E28: bilets de 200 Euros = | F28: ='Caisse 2'!F16 -> 0
A29: Placement 5 = | C29: ='AP sortie 2'!E10 -> 0 | D29: ='Caisse 2'!B17 -> 0 | E29: bilets de 500 Euros = | F29: ='Caisse 2'!F17 -> 0
A30: TOTAL = | C30: =SUM(C23:C29) -> 0 | D30: TOTAL = | F30: ='Caisse 2'!F18 -> 0
A32: =IF('AP sortie 2'!E11<>0, ("Attention : Déficit présent pour un montant de "&'AP sortie 2'!E11&" "&"Euro"),"") -> 
A34: Nous étant fait présenter immédiatement le Journal-Centralisateur du Comptable, nous avons arrêté:
A36: La recette à la somme de :
A37: =ConvNumberLetter(('AP sortie 2'!C14-'AP sortie 2'!C11),1,1) -> Euro
A38: La dépense à la somme de :
A39: =ConvNumberLetter('AP sortie 2'!D14,1,1) -> Euro
A40: L'excédent de la recette sur la dépense à celle de:
A41: =ConvNumberLetter(('AP sortie 2'!E14-'AP sortie 2'!E11),1,1) -> Euro
A43: ="Après quoi, nous avons clos et arrêté le présent procès-verbal que "&IF(Gestionnaires!F8="Monsieur","le","la")&" "&"Comptable a signé avec nous." -> Après quoi, nous avons clos et arrêté le présent procès-verbal que la Comptable a signé avec nous.
A45: ="Fait à"&" "&LOOKUP("X",Identification!B2:B344,Identification!G2:G344)&", le "& TEXT(Gestionnaires!F17,"jj/mm/AAAA") -> 
B47: =IF(Gestionnaires!F8="Monsieur","Le","La")&" "&"comptable, " -> La comptable, | E47: =IF(Gestionnaires!C2="Monsieur","L'ordonnateur,","L'ordonnatrice,") -> L'ordonnatrice,

Sheet PV de remise-reprise (2)
A1: Procès verbal de remise-reprise des comptes
A3: ="Les "&IF(OR(Gestionnaires!F8="Monsieur", Gestionnaires!F19="Monsieur"),"soussignés, ","soussignées, ")&Gestionnaires!F10&" "&UPPER(Gestionnaires!F9)&", comptable "&IF(Gestionnaires!F8="Monsieur","sortant ","sortante ")&"de l'établissement "&LOOKUP("X",Identification!B2:B344,Identification!D2:D344)&" et "&Gestionnaires!F21&" "&UPPER(Gestionnaires!F20)&", successeur, ont procédé à la remise et à la reprise des comptes de l'établissement précité qui, en date du "&TEXT(Gestionnaires!F12,"jj/mm/aaaa")&", ont été établis comme suit :" -> 
A6: I. LIVRE CENTRALISATEUR
A8: Livres centralisateurs
C9: Recettes | D9: Dépenses | E9: Solde remis
A10: Caisse | C10: ='AP sortie 2'!C4 -> 0 | D10: ='AP sortie 2'!D4 -> 0 | E10: ='AP sortie 2'!E4 -> 0
A11: Dotation | C11: ='AP sortie 2'!C5 -> 0 | D11: ='AP sortie 2'!D5 -> 0 | E11: ='AP sortie 2'!E5 -> 0
A12: Placement 1 | C12: ='AP sortie 2'!C6 -> 0 | D12: ='AP sortie 2'!D6 -> 0 | E12: ='AP sortie 2'!E6 -> 0
A13: Placement 2 | C13: ='AP sortie 2'!C7 -> 0 | D13: ='AP sortie 2'!D7 -> 0 | E13: ='AP sortie 2'!E7 -> 0
A14: Placement 3 | C14: ='AP sortie 2'!C8 -> 0 | D14: ='AP sortie 2'!D8 -> 0 | E14: ='AP sortie 2'!E8 -> 0
A15: Placement 4 | C15: ='AP sortie 2'!C9 -> 0 | D15: ='AP sortie 2'!D9 -> 0 | E15: ='AP sortie 2'!E9 -> 0
A16: Placement 5 | C16: ='AP sortie 2'!C10 -> 0 | D16: ='AP sortie 2'!D10 -> 0 | E16: ='AP sortie 2'!E10 -> 0
A17: Deficit (-) | C17: ='AP sortie 2'!C11 -> 0 | D17: ='AP sortie 2'!D11 -> 0 | E17: ='AP sortie 2'!E11 -> 0
A18: Sous-totaux | C18: ='AP sortie 2'!C12 -'AP sortie 2'!C11 -> 0 | D18: ='AP sortie 2'!D12 -'AP sortie 2'!D11 -> 0 | E18: ='AP sortie 2'!E12 -'AP sortie 2'!E11 -> 0
A19: Mouvements de fonds | C19: ='AP sortie 2'!C13 -> 0 | D19: ='AP sortie 2'!D13 -> 0 | E19: ='AP sortie 2'!E13 -> 0
A20: Totaux | C20: =C18-C19 -> 0 | D20: =D18-D19 -> 0 | E20: 0
A22: Opérations courantes | C22: =SUM(C23:C24) -> 0 | D22: =SUM(D23:D24) -> 0 | E22: =C22-D22 -> 0
A23: Intendance | C23: ='AP sortie 2'!C16 -> 0 | D23: ='AP sortie 2'!D16 -> 0 | E23: ='AP sortie 2'!E16 -> 0
A24: Autres | C24: ='AP sortie 2'!C17 -> 0 | D24: ='AP sortie 2'!D17 -> 0 | E24: ='AP sortie 2'!E17 -> 0
A25: Fond de réserve | C25: ='AP sortie 2'!C18 -> 0 | D25: ='AP sortie 2'!D18 -> 0 | E25: ='AP sortie 2'!E18 -> 0
A26: Opérations en capital | C26: ='AP sortie 2'!C20 -> 0 | D26: ='AP sortie 2'!D20 -> 0 | E26: ='AP sortie 2'!E20 -> 0
A27: Opérations pour ordre | C27: ='AP sortie 2'!C24 -> 0 | D27: ='AP sortie 2'!D24 -> 0 | E27: ='AP sortie 2'!E24 -> 0
A28: Sous-totaux | C28: ='AP sortie 2'!C25 -> 0 | D28: ='AP sortie 2'!D25 -> 0 | E28: ='AP sortie 2'!E25 -> 0
A29: Transferts | C29: ='AP sortie 2'!C26 -> 0 | D29: ='AP sortie 2'!D26 -> 0 | E29: ='AP sortie 2'!E26 -> 0
A30: Totaux | C30: ='AP sortie 2'!C27 -> 0 | D30: ='AP sortie 2'!D27 -> 0 | E30: ='AP sortie 2'!E27 -> 0
A32: II. CREANCES A RECOUVRER
C34: Créances à recouvrer
C35: Opérations courantes | E35: ='AP sortie 2'!I4 -> 0
C36: Intendance | E36: ='AP sortie 2'!I5 -> 0
C37: Autres | E37: ='AP sortie 2'!I6 -> 0
C38: Opérations en capital | E38: ='AP sortie 2'!I7 -> 0
C39: Opérations pour ordre | E39: ='AP sortie 2'!I8 -> 0
C40: Tiers | E40: ='AP sortie 2'!I9 -> 0
C41: Trésor | E41: ='AP sortie 2'!I10 -> 0
C42: Total | E42: ='AP sortie 2'!I11 -> 0
A50: III. CREANCES A LIQUIDER
A52: Opérations courantes | C52: A honorer | D52: Fact. Impayées | E52: Fact. Ordonnancées | F52: Total
A53: Intendance | C53: ='AP sortie 2'!M5 -> 0 | D53: ='AP sortie 2'!N5 -> 0 | E53: ='AP sortie 2'!O5 -> 0 | F53: ='AP sortie 2'!P5 -> 0
A54: Autres | C54: ='AP sortie 2'!M6 -> 0 | D54: ='AP sortie 2'!N6 -> 0 | E54: ='AP sortie 2'!O6 -> 0 | F54: ='AP sortie 2'!P6 -> 0
A55: Opérations en capital | C55: ='AP sortie 2'!M7 -> 0 | D55: ='AP sortie 2'!N7 -> 0 | E55: ='AP sortie 2'!O7 -> 0 | F55: ='AP sortie 2'!P7 -> 0
A56: Opérations pour ordre
A57: Tiers | C57: ='AP sortie 2'!M9 -> 0 | D57: ='AP sortie 2'!N9 -> 0 | E57: ='AP sortie 2'!O9 -> 0 | F57: ='AP sortie 2'!P9 -> 0
A58: Trésor | C58: ='AP sortie 2'!M10 -> 0 | D58: ='AP sortie 2'!N10 -> 0 | E58: ='AP sortie 2'!O10 -> 0 | F58: ='AP sortie 2'!P10 -> 0
A59: Total | C59: ='AP sortie 2'!M11 -> 0 | D59: ='AP sortie 2'!N11 -> 0 | E59: ='AP sortie 2'!O11 -> 0 | F59: ='AP sortie 2'!P11 -> 0
A61: IV. MAGASIN
B63: Stock alimentation | E63: ='AP sortie 2'!J17 -> 0
B64: Stock des produits d'entretien | E64: ='AP sortie 2'!J18 -> 0
B65: Stock de pharmacie | E65: ='AP sortie 2'!J19 -> 0
B66: Stock matériel de bureau | E66: ='AP sortie 2'!J20 -> 0
B67: Stock matières premières | E67: ='AP sortie 2'!J21 -> 0
B68: Stock fournitures scolaires | E68: ='AP sortie 2'!J22 -> 0
B69: Stock autres | E69: ='AP sortie 2'!J23 -> 0
B70: Total | E70: ='AP sortie 2'!J24 -> 0
A71: V. ENERGIE
B74: Type | C74: Qté | D74: Unité | E74: Prix unitaire | F74: Montant
B75: Mazout | C75: ='AP sortie 2'!M18 -> 0 | D75: litres à | E75: ='AP sortie 2'!O18 -> 0 | F75: ='AP sortie 2'!P18 -> 0
B76: Gaz | C76: ='AP sortie 2'!M19 -> 0 | E76: ='AP sortie 2'!O19 -> 0 | F76: ='AP sortie 2'!P19 -> 0
B77: Charbon | C77: ='AP sortie 2'!M20 -> 0 | D77: Kg | E77: ='AP sortie 2'!O20 -> 0 | F77: ='AP sortie 2'!P20 -> 0
B78: Autres à préciser
B79: ='AP sortie 2'!L22 -> 0 | F79: ='AP sortie 2'!P22 -> 0
B80: Total | F80: ='AP sortie 2'!P23 -> 0
A82: VI. AUTRES VALEURS
C85: Timbres | E85: ='AP sortie 2'!I27 -> 0
C86: Autres à préciser
C87: ='AP sortie 2'!G29 -> 0 | E87: ='AP sortie 2'!I29 -> 0
C88: ='AP sortie 2'!G30 -> 0 | E88: ='AP sortie 2'!I30 -> 0
C89: ='AP sortie 2'!G31 -> 0 | E89: ='AP sortie 2'!I31 -> 0
C90: Total | E90: ='AP sortie 2'!I32 -> 0
A91: VII. TICKET
C94: Ticket en circulation | E94: ='AP sortie 2'!M27 -> 0
A99: ="VIII. BILAN DU "&TEXT(Gestionnaires!F12,"jj/mm/aaaa") -> VIII. BILAN DU 00/01/1900
B102: ACTIF
C103: Comptes financiers (I) | E103: =E20 -> 0
C104: Créances à recouvrer (II) | E104: =E42 -> 0
C105: Magasins et autres (IV+V+VI) | E105: =E70+F80+E90 -> 0
C106: Solde négatif | E106: =IF((E103+E104+E105)-(E112+E113+E114+E115)>0,0,ABS((E103+E104+E105)-(E112+E113+E114+E115))) -> 0
C107: TOTAL | E107: =SUM(E103:E106) -> 0
B111: PASSIF
C112: Pensions anticipatives | E112: ='AP sortie 2'!I14 -> 0
C113: Comptes créditeurs | E113: ='AP sortie 2'!N14 -> 0
C114: Tickets en circulation (VII) | E114: ='AP sortie 2'!M27 -> 0
C115: Créances à liquider (III) | E115: ='AP sortie 2'!P11 -> 0
C116: Solde bénéficiaire | E116: =IF((E103+E104+E105)-(E112+E113+E114+E115)<0,0,ABS((E103+E104+E105)-(E112+E113+E114+E115))) -> 0
C117: TOTAL | E117: =SUM(E112:E116) -> 0
A120: ="Fait à "&LOOKUP("X",Identification!B2:B344,Identification!G2:G344)&", le "&TEXT(Gestionnaires!F17,"jj/mm/aaaa") -> 
B124: =IF(Gestionnaires!F8="Monsieur","Le ","La ")&"comptable "&IF(Gestionnaires!F8="Monsieur","sortant,","sortante,") -> La comptable sortante, | E124: =IF(Gestionnaires!F19="Monsieur","Le ","La ")&"comptable "&IF(Gestionnaires!F19="Monsieur","entrant,","entrante,") -> La comptable entrante,
B127: =Gestionnaires!F10&" "&UPPER(Gestionnaires!F9) ->  | E127: =Gestionnaires!F21&" "&UPPER(Gestionnaires!F20) -> 

Sheet Impression Cpte fin de gest (2)
A1: Etablissement : | C1: =LOOKUP("X",Identification!B2:B344,Identification!D2:D344) -> 
A3: Adresse : | C3: =LOOKUP("X",Identification!B2:B344,Identification!E2:E344) -> 
C4: =LOOKUP("X",Identification!B2:B344,Identification!F2:F344&" "&Identification!G2:G344) -> 
A7: Comptes fnanciers | C7: Caisse: | D7: ="---------" -> ---------
C8: Dotation 091 : | D8: =Gestionnaires!C26 -> 0
C9: Placement 1 : | D9: =Gestionnaires!C27 -> 0
C10: Placement 2 : | D10: =Gestionnaires!C28 -> 0
C11: Placement 3 : | D11: =Gestionnaires!C29 -> 0
C12: Placement 4 : | D12: =Gestionnaires!C30 -> 0
C13: Placement 5 : | D13: =Gestionnaires!C31 -> 0
A15: ="Comptable : " -> Comptable : | B15: =Gestionnaires!F10&" "&UPPER(Gestionnaires!F9) -> 
A18: COMPTE DE FIN DE GESTION
A20: ="Remis par "&IF(Gestionnaires!F8="Monsieur","Monsieur ","Madame ")&Gestionnaires!F10&" "&Gestionnaires!F9&" "&IF(Gestionnaires!F8="Monsieur","né le ","née le ")&TEXT(Gestionnaires!F16,"jj/mm/aaaa") -> Remis par Madame née le 00/01/1900
A22: =IF(Gestionnaires!F8="Monsieur","Domicilié : ","Domiciliée : ") -> Domiciliée : | B22: =Gestionnaires!F13 -> 0
B23: =Gestionnaires!F14&" "&UPPER(Gestionnaires!F15) -> 
A25: Comptable de | B25: =LOOKUP("X",Identification!B2:B344,Identification!D2:D344) -> 
A27: ="Conformément à l'article 7 de la loi du 29 octobre 1846, pour les recettes et les dépenses faites par "&IF(Gestionnaires!F8="Monsieur","lui ","elle ")&"pendant l'année "&RIGHT(TEXT(Gestionnaires!F12,"jj/mm/aaaa"),4)&" du "&TEXT((Gestionnaires!C12+1),"jj/mm/aaaa")&" jusqu'au "&TEXT((Gestionnaires!F12),"jj/mm/aaaa")&" inclus." -> Conformément à l'article 7 de la loi du 29 octobre 1846, pour les recettes et les dépenses faites par elle pendant l'année 1900 du 01/01/1900 jusqu'au 00/01/1900 inclus.
A49: A. Resultat du compte rendu au 31 décembre de l'année précédente
A51: =IF(Gestionnaires!F8="Monsieur","Le ","La ")&"comptable reporte ici, comme formant le premier article du présent compte, l'excédent des recettes sur les dépenses à la date du 31 décembre "&Gestionnaires!I8&" et dont "&IF(Gestionnaires!F8="Monsieur","il ","elle ")&"a été "&IF(Gestionnaires!F8="Monsieur","constaté ","constatée ")&"reliquataire par le compte établi à la même époque et qui a été précédemment adressé à la Cour des Comptes." -> La comptable reporte ici, comme formant le premier article du présent compte, l'excédent des recettes sur les dépenses à la date du 31 décembre 1899 et dont elle a été constatée reliquataire par le compte établi à la même époque et qui a été précédemment adressé à la Cour des Comptes.
A53: ="Lequel excédent s'élevant à "&ConvNumberLetter(Reports!D12-Reports!D11,1,1)&" euros est représenté par les valeurs que "&IF(Gestionnaires!F8="Monsieur","le ","la ")&"comptable avait en caisse le 31/12/"&Gestionnaires!I8&", à savoir :" -> Lequel excédent s'élevant à Euro euros est représenté par les valeurs que la comptable avait en caisse le 31/12/1899, à savoir :
C55: Caisse | D55: =Reports!D4 -> 0
C56: Dotation | D56: =Reports!D5 -> 0
C57: Placement 1 | D57: =Reports!D6 -> 0
C58: Placement 2 | D58: =Reports!D7 -> 0
C59: Placement 3 | D59: =Reports!D8 -> 0
C60: Placement 4 | D60: =Reports!D9 -> 0
C61: Placement 5 | D61: =Reports!D10 -> 0
C62: Total (A) | D62: =Reports!D12-Reports!D11 -> 0
A66: B. RECETTES
A68: ="Reçu par "&IF(Gestionnaires!F8="Monsieur","le ","la ")&"comptable la somme de "&ConvNumberLetter(('AP sortie 2'!C27-Reports!D27),1,1)&" euros représentant les recouvrements effectués pendant l'année "&Gestionnaires!H2&" sur les Services à gestion séparées de l'Enseignement :" -> Reçu par la comptable la somme de Euro euros représentant les recouvrements effectués pendant l'année 1900 sur les Services à gestion séparées de l'Enseignement :
C70: ="Rem-rep du "&TEXT(Gestionnaires!C12,"jj/mm/aaaa") -> Rem-rep du 00/01/1900 | D70: ="Rem-rep du "&TEXT(Gestionnaires!F12,"jj/mm/aaaa") -> Rem-rep du 00/01/1900 | E70: Total
A72: Opérations courantes | C72: ='Impression Cpte fin de gestion'!E71 -> 0 | D72: =E72-C72 -> 0 | E72: ='AP sortie 2'!C19-Reports!D19 -> 0
B73: Intendance | C73: ='Impression Cpte fin de gestion'!E72 -> 0 | D73: =E73-C73 -> 0 | E73: ='AP sortie 2'!C16-Reports!D16 -> 0
B74: Autres | C74: ='Impression Cpte fin de gestion'!E73 -> 0 | D74: 0 | E74: =('AP sortie 2'!C17-Reports!D17)+('AP sortie 2'!C18-Reports!D18) -> 0
A76: Opérations en capital | C76: ='Impression Cpte fin de gestion'!E75 -> 0 | D76: 0 | E76: ='AP sortie 2'!C20-Reports!D20 -> 0
A78: Opérations pour ordre | C78: ='Impression Cpte fin de gestion'!E77 -> 0 | D78: 0 | E78: ='AP sortie 2'!C24--Reports!D24 -> 0
B79: Tiers | C79: ='Impression Cpte fin de gestion'!E78 -> 0 | D79: 0 | E79: ='AP sortie 2'!C22-Reports!D22 -> 0
B80: Trésor | C80: ='Impression Cpte fin de gestion'!E79 -> 0 | D80: 0 | E80: ='AP sortie 2'!C23-Reports!D23 -> 0
A82: Transferts | C82: ='Impression Cpte fin de gestion'!E81 -> 0 | D82: =E82-C82 -> 0 | E82: ='AP sortie 2'!C26 -> 0
A83: TOTAL (B) | C83: ='Impression Cpte fin de gestion'!E82 -> 0 | D83: 0 | E83: ='AP sortie 2'!C27-Reports!C27 -> 0
A85: ="Déficit en "&Gestionnaires!H2&" :" -> Déficit en 1900 : | C85: ='Impression Cpte fin de gestion'!E84 -> 0 | D85: =E85-C85 -> 0 | E85: ='AP sortie 2'!C11 -> 0 | F85: ="*" -> *
A92: C. DEPENSES
A94: ="Dépensé par "&IF(Gestionnaires!C8="Monsieur","le ","la ")&"comptable la somme de "&ConvNumberLetter('AP sortie 2'!D27,1,1)&" euros se décomposant comme suit :" -> Dépensé par la comptable la somme de Euro euros se décomposant comme suit :
C96: ="Rem-rep du "&TEXT(Gestionnaires!C12,"jj/mm/aaaa") -> Rem-rep du 00/01/1900 | D96: ="Rem-rep du "&TEXT(Gestionnaires!F12,"jj/mm/aaaa") -> Rem-rep du 00/01/1900 | E96: Total
A98: Opérations courantes | C98: ='Impression Cpte fin de gestion'!E98 -> 0 | D98: =E98-C98 -> 0 | E98: ='AP sortie 2'!D19 -> 0
B99: Intendance | C99: ='Impression Cpte fin de gestion'!E99 -> 0 | D99: =E99-C99 -> 0 | E99: ='AP sortie 2'!D16 -> 0
B100: Autres | C100: ='Impression Cpte fin de gestion'!E100 -> 0 | D100: 0 | E100: ='AP sortie 2'!D17+'AP sortie 2'!D18 -> 0
A102: Opérations en capital | C102: ='Impression Cpte fin de gestion'!E102 -> 0 | D102: 0 | E102: ='AP sortie 2'!D20 -> 0
A104: Opérations pour ordre | C104: ='Impression Cpte fin de gestion'!E104 -> 0 | D104: 0 | E104: ='AP sortie 2'!D24 -> 0
B105: Tiers | C105: ='Impression Cpte fin de gestion'!E105 -> 0 | D105: 0 | E105: ='AP sortie 2'!D22 -> 0
B106: Trésor | C106: ='Impression Cpte fin de gestion'!E106 -> 0 | D106: 0 | E106: ='AP sortie 2'!D23 -> 0
A108: Transferts | C108: ='Impression Cpte fin de gestion'!E108 -> 0 | D108: =E108-C108 -> 0 | E108: ='AP sortie 2'!D26 -> 0
A109: TOTAL (C) | C109: ='Impression Cpte fin de gestion'!E109 -> 0 | D109: 0 | E109: ='AP sortie 2'!D27 -> 0
A112: D. RESULTATS
A114: Valeurs existant en caisse au 31 décembre d e l'année précédente : | D114: =D62 -> 0 | F114: (A) | G114: ="+" -> +
A115: ="Recettes pendant l'année "&Gestionnaires!H2&" :" -> Recettes pendant l'année 1900 : | D115: =E83 -> 0 | F115: (B)
A116: Total des sommes à justifier : | D116: =SUM(D114:E115) -> 0 | G116: ="-" -> -
A117: ="Dépenses pendant l'année "&Gestionnaires!H2&" :" -> Dépenses pendant l'année 1900 : | D117: =E109 -> 0 | F117: (C)
A118: ="Excédent des recettes sur les dépenses :" -> Excédent des recettes sur les dépenses : | D118: =D116-D117 -> 0
A119: ="- Déficit en "&Gestionnaires!H2&" :" -> - Déficit en 1900 : | D119: =E85 -> 0 | F119: ="*" -> *
A120: Réalité de la trésorie : | D120: =D118-D119 -> 0
A122: =IF(Gestionnaires!F8="Monsieur","Le ","La ")&IF(Gestionnaires!F8="Monsieur","soussigné, ","soussignée, ")&Gestionnaires!F10&" "&Gestionnaires!F9&" "&"comptable de "&LOOKUP("X",Identification!B2:B344,Identification!D2:D344)&"," -> 
A123: ="affirme sous peine de droit, véritable dans toutes ses parties, le présent compte qui est le résumé des recettes et des dépenses effectuées par"&IF(Gestionnaires!F33="Monsieur","Le ","La ")&" pendant la durée de sa gestion" -> affirme sous peine de droit, véritable dans toutes ses parties, le présent compte qui est le résumé des recettes et des dépenses effectuées parLa pendant la durée de sa gestion
A126: ="Fait à "&LOOKUP("X",Identification!B2:B344,Identification!G2:G344&", "&"le "&TEXT(Gestionnaires!F17,"jj/mm/aaaa")) ->  | E126: =IF(Gestionnaires!F8="Monsieur","Le ","La ") &"comptable," -> La comptable,
A130: E. REMARQUES EVENTUELLES (Manuscrites) :

Sheet Caisse 3
A1: Encodage de la caisse à la date de la remise-reprise
B3: 0 | C3: x | D3: 1 | E3: cents = | F3: =(B3*D3)/100 -> 0 | I3: ="Renseignez ici les devises contenues en caisse à la date du "&TEXT(Gestionnaires!L12,"jj/mm/aaaa")&" jour de sortie de "&Gestionnaires!L8&" "&Gestionnaires!L10&" " &UPPER(Gestionnaires!L9) -> Renseignez ici les devises contenues en caisse à la date du 00/01/1900 jour de sortie de
B4: 0 | C4: x | D4: 2 | E4: cents = | F4: =(B4*D4)/100 -> 0
B5: 0 | C5: x | D5: 5 | E5: cents = | F5: 0
B6: 0 | C6: x | D6: 10 | E6: cents = | F6: 0
B7: 0 | C7: x | D7: 20 | E7: cents = | F7: 0
B8: 0 | C8: x | D8: 50 | E8: cents = | F8: 0 | I8: Ne complétez que la colonne jaune
B9: 0 | C9: x | D9: 1 | E9: Euro = | F9: =B9*D9 -> 0
B10: 0 | C10: x | D10: 2 | E10: Euros = | F10: 0
B11: 0 | C11: x | D11: 5 | E11: Euros = | F11: 0
B12: 0 | C12: x | D12: 10 | E12: Euros = | F12: 0
B13: 0 | C13: x | D13: 20 | E13: Euros = | F13: 0
B14: 0 | C14: x | D14: 50 | E14: Euros = | F14: 0
B15: 0 | C15: x | D15: 100 | E15: Euros = | F15: 0
B16: 0 | C16: x | D16: 200 | E16: Euros = | F16: 0
B17: 0 | C17: x | D17: 500 | E17: Euros = | F17: 0
B18: Total | F18: =SUM(F3:F17) -> 0 | J18: Accueil

Sheet AP sortie 3
A1: ="Etat des comptes et des avoirs à la date du "&TEXT(Gestionnaires!L12,"jj/mm/aaaa") -> Etat des comptes et des avoirs à la date du 00/01/1900
A2: ="Compte jaune du "&TEXT(Gestionnaires!L12,"jj/mm/aaaa") -> Compte jaune du 00/01/1900
C3: Recettes | D3: Dépenses | E3: Solde remis | G3: Créances à recouvrer | K3: Créances à liquider
A4: Caisse | C4: 0 | D4: 0 | E4: =C4-D4 -> 0 | G4: Opérations courantes | I4: =SUM(I5:I6) -> 0 | K4: Opérations courantes | M4: A honorer | N4: Fact. Impayées | O4: Fact. Ordonnancées | P4: Total
A5: Dotation | C5: 0 | D5: 0 | E5: =C5-D5 -> 0 | G5: Intendance | I5: 0 | K5: Intendance | M5: 0 | N5: 0 | O5: 0 | P5: =SUM(M5:O5) -> 0
A6: Placement 1 | C6: 0 | D6: 0 | E6: 0 | G6: Autres | I6: 0 | K6: Autres | M6: 0 | N6: 0 | O6: 0 | P6: =SUM(M6:O6) -> 0
A7: Placement 2 | C7: 0 | D7: 0 | E7: 0 | G7: Opérations en capital | I7: 0 | K7: Opérations en capital | M7: 0 | N7: 0 | O7: 0 | P7: 0
A8: Placement 3 | C8: 0 | D8: 0 | E8: 0 | G8: Opérations pour ordre | I8: =SUM(I9:I10) -> 0 | K8: Opérations pour ordre
A9: Placement 4 | C9: 0 | D9: 0 | E9: 0 | G9: Tiers | I9: 0 | K9: Tiers | M9: 0 | N9: 0 | O9: 0 | P9: 0
A10: Placement 5 | C10: 0 | D10: 0 | E10: 0 | G10: Trésor | I10: 0 | K10: Trésor | M10: 0 | N10: 0 | O10: 0 | P10: 0
A11: PV déficit | C11: 0 | D11: 0 | E11: 0 | G11: Total | I11: =SUM(I5,I6,I7,I9,I10,) -> 0 | K11: Total | M11: =SUM(M5:M10) -> 0 | N11: =SUM(N5:N10) -> 0 | O11: =SUM(O5:O10) -> 0 | P11: =SUM(P5:P10) -> 0
A12: Sous-totaux | C12: =SUM(C4:C11) -> 0 | D12: =SUM(D4:D11) -> 0 | E12: 0
A13: Mouvements de fonds | C13: 0 | D13: 0 | E13: 0 | M13: Total | N13: hors pensions
A14: Totaux | C14: =C12-C13 -> 0 | D14: =D12-D13 -> 0 | E14: 0 | G14: Pensions anticipatives | I14: 0 | K14: Comptes créditeurs | M14: 0 | N14: =M14-I14 -> 0
A15: Opérations courantes
A16: Intendance | C16: 0 | D16: 0 | E16: =C16-D16 -> 0
A17: Fonctionnement | C17: 0 | D17: 0 | E17: 0 | G17: Magasin | L17: Energie
A18: Fond de réserve | C18: 0 | D18: 0 | E18: 0 | G18: Stock alimentation | J18: 0 | L18: Type | M18: Qté | N18: Unité | O18: Prix unitaire | P18: Montant
A19: Total OC | C19: =SUM(C16:C18) -> 0 | D19: =SUM(D16:D18) -> 0 | E19: 0 | G19: Stock des produits d'entretien | J19: 0 | L19: Mazout | N19: litres à | P19: =M19*O19 -> 0
A20: Opérations en capital | C20: 0 | D20: 0 | E20: 0 | G20: Stock de pharmacie | J20: 0 | L20: Gaz | N20: litres à | P20: =M20*O20 -> 0
A21: Opérations pour ordre | G21: Stock matériel de bureau | J21: 0 | L21: Charbon | N21: Kg | P21: =M21*O21 -> 0
A22: Tiers | C22: 0 | D22: 0 | E22: 0 | G22: Stock matières premières | J22: 0 | L22: Autres à préciser
A23: Trésor | C23: 0 | D23: 0 | E23: 0 | G23: Stokc fournitures scolaires | J23: 0 | P23: 0
A24: Total PO | C24: =SUM(C22:C23) -> 0 | D24: =SUM(D22:D23) -> 0 | E24: 0 | G24: Stock Autres | J24: 0 | L24: Total | P24: =SUM(P19:P21,P23) -> 0
A25: Sous-totaux | C25: =C19+C20+C24 -> 0 | D25: =D19+D20+D24 -> 0 | E25: =C25-D25 -> 0 | G25: Total | J25: =SUM(J18:J24) -> 0
A26: Transferts | C26: 0 | D26: 0 | E26: =C26-D26 -> 0
A27: Totaux | C27: =C25-C26 -> 0 | D27: =D25-D26 -> 0 | E27: 0 | G27: Autres valeurs | L27: Tickets en circulation
G28: Timbres | I28: 0 | L28: Tickets | M28: 0
G29: Autres à préciser
I30: 0
I31: 0
I32: 0
G33: Total | I33: =SUM(I28,I30:I32) -> 0

Sheet Impression PV caisse (3)
A1: Procès-verbal de caisse | C1: du service | D1: =LOOKUP("X",Identification!B2:B344,Identification!D2:D344) -> 
D2: =LOOKUP("X",Identification!B2:B344,Identification!E2:E344) -> 
D3: =LOOKUP("X",Identification!B2:B344,Identification!F2:F344&" "&Identification!G2:G344) -> 
C6: =Gestionnaires!C2 -> 0 | D6: =IF(C6="Monsieur","Ordonnateur","Ordonnatrice") -> Ordonnatrice | F6: =Gestionnaires!L8 -> 0
A7: ="Le"&" "&TEXT(Gestionnaires!L12,"jj/mm/AAAA") -> Le 00/01/1900 | B7: =" Nous," -> Nous, | C7: =Gestionnaires!C5 -> 0 | D7: Avons requis | F7: =Gestionnaires!L10 -> 0
C8: =UPPER(Gestionnaires!C4) ->  | F8: =UPPER(Gestionnaires!L9) -> 
A10: Comptable de l'établissement repris ci-dessus, de nous présenter les valeurs et autres espèces existant dans sa caisse et avons dressés le bordereau ci-après, à savoir:
A13: NUMERAIRES ET VALEURS
D15: ='Caisse 3'!B3 -> 0 | E15: Pièces de 1 cent = | F15: ='Caisse 3'!F3 -> 0
D16: ='Caisse 3'!B4 -> 0 | E16: Pièces de 2 cents = | F16: ='Caisse 3'!F4 -> 0
D17: ='Caisse 3'!B5 -> 0 | E17: Pièces de 5 cents = | F17: ='Caisse 3'!F5 -> 0
D18: ='Caisse 3'!B6 -> 0 | E18: Pièces de 10 cents = | F18: ='Caisse 3'!F6 -> 0
D19: ='Caisse 3'!B7 -> 0 | E19: Pièces de 20 cents = | F19: ='Caisse 3'!F7 -> 0
D20: ='Caisse 3'!B8 -> 0 | E20: Pièces de 50 cents = | F20: ='Caisse 3'!F8 -> 0
D21: ='Caisse 3'!B9 -> 0 | E21: Pièces de 1 Euro = | F21: ='Caisse 3'!F9 -> 0
D22: ='Caisse 3'!B10 -> 0 | E22: Pièces de 2 Euros = | F22: ='Caisse 3'!F10 -> 0
A23: Caisse = | C23: ='AP sortie 3'!E4 -> 0 | D23: ='Caisse 3'!B11 -> 0 | E23: bilets de 5 Euros = | F23: ='Caisse 3'!F11 -> 0
A24: Dotation = | C24: ='AP sortie 3'!E5 -> 0 | D24: ='Caisse 3'!B12 -> 0 | E24: bilets de 10 Euros = | F24: ='Caisse 3'!F12 -> 0
A25: Placement 1 = | C25: ='AP sortie 3'!E6 -> 0 | D25: ='Caisse 3'!B13 -> 0 | E25: bilets de 20 Euros = | F25: ='Caisse 3'!F13 -> 0
A26: Placement 2 = | C26: ='AP sortie 3'!E7 -> 0 | D26: ='Caisse 3'!B14 -> 0 | E26: bilets de 50 Euros = | F26: ='Caisse 3'!F14 -> 0
A27: Placement 3 = | C27: ='AP sortie 3'!E8 -> 0 | D27: ='Caisse 3'!B15 -> 0 | E27: bilets de 100 Euros = | F27: ='Caisse 3'!F15 -> 0
A28: Placement 4 = | C28: ='AP sortie 3'!E9 -> 0 | D28: ='Caisse 3'!B16 -> 0 | E28: bilets de 200 Euros = | F28: ='Caisse 3'!F16 -> 0
A29: Placement 5 = | C29: ='AP sortie 3'!E10 -> 0 | D29: ='Caisse 3'!B17 -> 0 | E29: bilets de 500 Euros = | F29: ='Caisse 3'!F17 -> 0
A30: TOTAL = | C30: =SUM(C23:C29) -> 0 | D30: TOTAL = | F30: ='Caisse 3'!F18 -> 0
A32: =IF('AP sortie 3'!E11<>0, ("Attention : Déficit présent pour un montant de "&'AP sortie 3'!E11&" "&"Euro"),"") -> 
A34: Nous étant fait présenter immédiatement le Journal-Centralisateur du Comptable, nous avons arrêté:
A36: La recette à la somme de :
A37: =ConvNumberLetter(('AP sortie 3'!C14-'AP sortie 3'!C11),1,1) -> Euro
A38: La dépense à la somme de :
A39: =ConvNumberLetter('AP sortie 3'!D14,1,1) -> Euro
A40: L'excédent de la recette sur la dépense à celle de:
A41: =ConvNumberLetter(('AP sortie 3'!E14-'AP sortie 3'!E11),1,1) -> Euro
A43: ="Après quoi, nous avons clos et arrêté le présent procès-verbal que "&IF(Gestionnaires!L8="Monsieur","le","la")&" "&"Comptable a signé avec nous." -> Après quoi, nous avons clos et arrêté le présent procès-verbal que la Comptable a signé avec nous.
A45: ="Fait à"&" "&LOOKUP("X",Identification!B2:B344,Identification!G2:G344)&", le "& TEXT(Gestionnaires!L17,"jj/mm/AAAA") -> 
B47: =IF(Gestionnaires!L8="Monsieur","Le","La")&" "&"comptable, " -> La comptable, | E47: =IF(Gestionnaires!C2="Monsieur","L'ordonnateur,","L'ordonnatrice,") -> L'ordonnatrice,

Sheet PV de remise-reprise (3)
A1: Procès verbal de remise-reprise des comptes
A3: ="Les "&IF(OR(Gestionnaires!L8="Monsieur", Gestionnaires!L19="Monsieur"),"soussignés, ","soussignées, ")&Gestionnaires!L10&" "&UPPER(Gestionnaires!L9)&", comptable "&IF(Gestionnaires!L8="Monsieur","sortant ","sortante ")&"de l'établissement "&LOOKUP("X",Identification!B2:B344,Identification!D2:D344)&" et "&Gestionnaires!L21&" "&UPPER(Gestionnaires!L20)&", successeur, ont procédé à la remise et à la reprise des comptes de l'établissement précité qui, en date du "&TEXT(Gestionnaires!L12,"jj/mm/aaaa")&", ont été établis comme suit :" -> 
A6: I. LIVRE CENTRALISATEUR
A8: Livres centralisateurs
C9: Recettes | D9: Dépenses | E9: Solde remis
A10: Caisse | C10: ='AP sortie 3'!C4 -> 0 | D10: ='AP sortie 3'!D4 -> 0 | E10: ='AP sortie 3'!E4 -> 0
A11: Dotation | C11: ='AP sortie 3'!C5 -> 0 | D11: ='AP sortie 3'!D5 -> 0 | E11: ='AP sortie 3'!E5 -> 0
A12: Placement 1 | C12: ='AP sortie 3'!C6 -> 0 | D12: ='AP sortie 3'!D6 -> 0 | E12: ='AP sortie 3'!E6 -> 0
A13: Placement 2 | C13: ='AP sortie 3'!C7 -> 0 | D13: ='AP sortie 3'!D7 -> 0 | E13: ='AP sortie 3'!E7 -> 0
A14: Placement 3 | C14: ='AP sortie 3'!C8 -> 0 | D14: ='AP sortie 3'!D8 -> 0 | E14: ='AP sortie 3'!E8 -> 0
A15: Placement 4 | C15: ='AP sortie 3'!C9 -> 0 | D15: ='AP sortie 3'!D9 -> 0 | E15: ='AP sortie 3'!E9 -> 0
A16: Placement 5 | C16: ='AP sortie 3'!C10 -> 0 | D16: ='AP sortie 3'!D10 -> 0 | E16: ='AP sortie 3'!E10 -> 0
A17: Deficit (-) | C17: ='AP sortie 3'!C11 -> 0 | D17: ='AP sortie 3'!D11 -> 0 | E17: ='AP sortie 3'!E11 -> 0
A18: Sous-totaux | C18: ='AP sortie 3'!C12-'AP sortie 3'!C11 -> 0 | D18: ='AP sortie 3'!D12-'AP sortie 3'!D11 -> 0 | E18: ='AP sortie 3'!E12-'AP sortie 3'!E11 -> 0
A19: Mouvements de fonds | C19: ='AP sortie 3'!C13 -> 0 | D19: ='AP sortie 3'!D13 -> 0 | E19: ='AP sortie 3'!E13 -> 0
A20: Totaux | C20: =C18-C19 -> 0 | D20: =D18-D19 -> 0 | E20: 0
A22: Opérations courantes | C22: =SUM(C23:C24) -> 0 | D22: =SUM(D23:D24) -> 0 | E22: =C22-D22 -> 0
A23: Intendance | C23: ='AP sortie 3'!C16 -> 0 | D23: ='AP sortie 3'!D16 -> 0 | E23: ='AP sortie 3'!E16 -> 0
A24: Autres | C24: ='AP sortie 3'!C17 -> 0 | D24: ='AP sortie 3'!D17 -> 0 | E24: ='AP sortie 3'!E17 -> 0
A25: Fond de réserve | C25: ='AP sortie 3'!C18 -> 0 | D25: ='AP sortie 3'!D18 -> 0 | E25: ='AP sortie 3'!E18 -> 0
A26: Opérations en capital | C26: ='AP sortie 3'!C20 -> 0 | D26: ='AP sortie 3'!D20 -> 0 | E26: ='AP sortie 3'!E20 -> 0
A27: Opérations pour ordre | C27: ='AP sortie 3'!C24 -> 0 | D27: ='AP sortie 3'!D24 -> 0 | E27: ='AP sortie 3'!E24 -> 0
A28: Transferts | C28: ='AP sortie 3'!C26 -> 0 | D28: ='AP sortie 3'!D26 -> 0 | E28: ='AP sortie 3'!E26 -> 0
A29: Totaux | C29: ='AP sortie 3'!C27 -> 0 | D29: ='AP sortie 3'!D27 -> 0 | E29: ='AP sortie 3'!E27 -> 0
A31: II. CREANCES A RECOUVRER
C33: Créances à recouvrer
C34: Opérations courantes | E34: ='AP sortie 3'!I4 -> 0
C35: Intendance | E35: ='AP sortie 3'!I5 -> 0
C36: Autres | E36: ='AP sortie 3'!I6 -> 0
C37: Opérations en capital | E37: ='AP sortie 3'!I7 -> 0
C38: Opérations pour ordre | E38: ='AP sortie 3'!I8 -> 0
C39: Tiers | E39: ='AP sortie 3'!I9 -> 0
C40: Trésor | E40: ='AP sortie 3'!I10 -> 0
C41: Total | E41: ='AP sortie 3'!I11 -> 0
A50: III. CREANCES A LIQUIDER
A52: Opérations courantes | C52: A honorer | D52: Fact. Impayées | E52: Fact. Ordonnancées | F52: Total
A53: Intendance | C53: ='AP sortie 3'!M5 -> 0 | D53: ='AP sortie 3'!N5 -> 0 | E53: ='AP sortie 3'!O5 -> 0 | F53: ='AP sortie 3'!P5 -> 0
A54: Autres | C54: ='AP sortie 3'!M6 -> 0 | D54: ='AP sortie 3'!N6 -> 0 | E54: ='AP sortie 3'!O6 -> 0 | F54: ='AP sortie 3'!P6 -> 0
A55: Opérations en capital | C55: ='AP sortie 3'!M7 -> 0 | D55: ='AP sortie 3'!N7 -> 0 | E55: ='AP sortie 3'!O7 -> 0 | F55: ='AP sortie 3'!P7 -> 0
A56: Opérations pour ordre
A57: Tiers | C57: ='AP sortie 3'!M9 -> 0 | D57: ='AP sortie 3'!N9 -> 0 | E57: ='AP sortie 3'!O9 -> 0 | F57: ='AP sortie 3'!P9 -> 0
A58: Trésor | C58: ='AP sortie 3'!M10 -> 0 | D58: ='AP sortie 3'!N10 -> 0 | E58: ='AP sortie 3'!O10 -> 0 | F58: ='AP sortie 3'!P10 -> 0
A59: Total | C59: ='AP sortie 3'!M11 -> 0 | D59: ='AP sortie 3'!N11 -> 0 | E59: ='AP sortie 3'!O11 -> 0 | F59: ='AP sortie 3'!P11 -> 0
A61: IV. MAGASIN
B63: Stock alimentation | E63: ='AP sortie 3'!J18 -> 0
B64: Stock des produits d'entretien | E64: ='AP sortie 3'!J19 -> 0
B65: Stock de pharmacie | E65: ='AP sortie 3'!J20 -> 0
B66: Stock matériel de bureau | E66: ='AP sortie 3'!J21 -> 0
B67: Stock matières premières | E67: ='AP sortie 3'!J22 -> 0
B68: Stock fournitures scolaires | E68: ='AP sortie 3'!J23 -> 0
B69: Autres stock | E69: ='AP sortie 3'!J24 -> 0
B70: Total | E70: ='AP sortie 3'!J25 -> 0
A71: V. ENERGIE
B74: Type | C74: Qté | D74: Unité | E74: Prix unitaire | F74: Montant
B75: Mazout | C75: ='AP sortie 3'!M19 -> 0 | D75: litres à | E75: ='AP sortie 3'!O19 -> 0 | F75: ='AP sortie 3'!P19 -> 0
B76: Gaz | C76: ='AP sortie 3'!M20 -> 0 | E76: ='AP sortie 3'!O20 -> 0 | F76: ='AP sortie 3'!P20 -> 0
B77: Charbon | C77: ='AP sortie 3'!M21 -> 0 | D77: Kg | E77: ='AP sortie 3'!O21 -> 0 | F77: ='AP sortie 3'!P21 -> 0
B78: Autres à préciser
B79: ='AP sortie 3'!L23 -> 0 | F79: ='AP sortie 3'!P23 -> 0
B80: Total | F80: ='AP sortie 3'!P24 -> 0
A82: VI. AUTRES VALEURS
C85: Timbres | E85: ='AP sortie 3'!I28 -> 0
C86: Autres à préciser
C87: ='AP sortie 3'!G30 -> 0 | E87: ='AP sortie 3'!I30 -> 0
C88: ='AP sortie 3'!G31 -> 0 | E88: ='AP sortie 3'!I31 -> 0
C89: ='AP sortie 3'!G32 -> 0 | E89: ='AP sortie 3'!I32 -> 0
C90: Total | E90: ='AP sortie 3'!I33 -> 0
A91: VII. TICKET
C94: Ticket en circulation | E94: ='AP sortie 3'!M28 -> 0
A100: ="VIII. BILAN DU "&TEXT(Gestionnaires!C12,"jj/mm/aaaa") -> VIII. BILAN DU 00/01/1900
B103: ACTIF
C104: Comptes financiers (I) | E104: =E20 -> 0
C105: Créances à recouvrer (II) | E105: =E41 -> 0
C106: Magasins et autres (IV+V+VI) | E106: =E70+F80+E90 -> 0
C107: Solde négatif | E107: =IF((E104+E105+E106)-(E113+E114+E115+E116)>0,0,ABS((E104+E105+E106)-(E113+E114+E115+E116))) -> 0
C108: TOTAL | E108: =SUM(E104:E107) -> 0
B112: PASSIF
C113: Pensions anticipatives | E113: ='AP sortie 3'!I14 -> 0
C114: Comptes créditeurs | E114: ='AP sortie 3'!N14 -> 0
C115: Tickets en circulation (VII) | E115: ='AP sortie 3'!M28 -> 0
C116: Créances à liquider (III) | E116: ='AP sortie 3'!P11 -> 0
C117: Solde bénéficiaire | E117: =IF((E104+E105+E106)-(E113+E114+E115+E116)<0,0,ABS((E104+E105+E106)-(E113+E114+E115+E116))) -> 0
C118: TOTAL | E118: =SUM(E113:E117) -> 0
A121: ="Fait à "&LOOKUP("X",Identification!B2:B344,Identification!G2:G344)&", le "&TEXT(Gestionnaires!L17,"jj/mm/aaaa") -> 
B125: =IF(Gestionnaires!L8="Monsieur","Le ","La ")&"comptable "&IF(Gestionnaires!L8="Monsieur","sortant,","sortante,") -> La comptable sortante, | E125: =IF(Gestionnaires!L19="Monsieur","Le ","La ")&"comptable "&IF(Gestionnaires!L19="Monsieur","entrant,","entrante,") -> La comptable entrante,
B128: =Gestionnaires!L10&" "&UPPER(Gestionnaires!L9) ->  | E128: =Gestionnaires!L21&" "&UPPER(Gestionnaires!L20) -> 

Sheet Impression Cpte fin de gest (3)
A1: Etablissement : | C1: =LOOKUP("X",Identification!B2:B344,Identification!D2:D344) -> 
A3: Adresse : | C3: =LOOKUP("X",Identification!B2:B344,Identification!E2:E344) -> 
C4: =LOOKUP("X",Identification!B2:B344,Identification!F2:F344&" "&Identification!G2:G344) -> 
A7: Comptes fnanciers | C7: Caisse: | D7: ="---------" -> ---------
C8: Dotation 091 : | D8: =Gestionnaires!C26 -> 0
C9: Placement 1 : | D9: =Gestionnaires!C27 -> 0
C10: Placement 2 : | D10: =Gestionnaires!C28 -> 0
C11: Placement 3 : | D11: =Gestionnaires!C29 -> 0
C12: Placement 4 : | D12: =Gestionnaires!C30 -> 0
C13: Placement 5 : | D13: =Gestionnaires!C31 -> 0
A15: ="Comptable : " -> Comptable : | B15: =Gestionnaires!L10&" "&UPPER(Gestionnaires!L9) -> 
A18: COMPTE DE FIN DE GESTION
A20: ="Remis par "&IF(Gestionnaires!L8="Monsieur","Monsieur ","Madame ")&Gestionnaires!L10&" "&Gestionnaires!L9&" "&IF(Gestionnaires!L8="Monsieur","né le ","née le ")&TEXT(Gestionnaires!L16,"jj/mm/aaaa") -> Remis par Madame née le 00/01/1900
A22: =IF(Gestionnaires!L8="Monsieur","Domicilié : ","Domiciliée : ") -> Domiciliée : | B22: =Gestionnaires!L13 -> 0
B23: =Gestionnaires!L14&" "&UPPER(Gestionnaires!L15) -> 
A25: Comptable de | B25: =LOOKUP("X",Identification!B2:B344,Identification!D2:D344) -> 
A27: ="Conformément à l'article 7 de la loi du 29 octobre 1846, pour les recettes et les dépenses faites par "&IF(Gestionnaires!L8="Monsieur","lui ","elle ")&"pendant l'année "&RIGHT(TEXT(Gestionnaires!L12,"jj/mm/aaaa"),4)&" jusqu'au "&TEXT(Gestionnaires!L12,"jj/mm/aaaa")&" inclus." -> Conformément à l'article 7 de la loi du 29 octobre 1846, pour les recettes et les dépenses faites par elle pendant l'année 1900 jusqu'au 00/01/1900 inclus.
A49: A. Resultat du compte rendu au 31 décembre de l'année précédente
A51: =IF(Gestionnaires!L8="Monsieur","Le ","La ")&"comptable reporte ici, comme formant le premier article du présent compte, l'excédent des recettes sur les dépenses à la date du 31 décembre "&Gestionnaires!I8&" et dont "&IF(Gestionnaires!L8="Monsieur","il ","elle "&"a été "&IF(Gestionnaires!C8="Monsieur","constaté ","constatée ")&"reliquataire par le compte établi à la même époque et qui a été précédemment adressé à la Cour des Comptes.") -> La comptable reporte ici, comme formant le premier article du présent compte, l'excédent des recettes sur les dépenses à la date du 31 décembre 1899 et dont elle a été constatée reliquataire par le compte établi à la même époque et qui a été précédemment adressé à la Cour des Comptes.
A53: ="Lequel excédent s'élevant à "&ConvNumberLetter((Reports!D12-Reports!D11),1,1)&" euros est représenté par le svaleurs que "&IF(Gestionnaires!C8="Monsieur","le ","la ")&"comptable avait en caisse le 31/12/"&Gestionnaires!I8&", à savoir :" -> Lequel excédent s'élevant à Euro euros est représenté par le svaleurs que la comptable avait en caisse le 31/12/1899, à savoir :
C55: Caisse | D55: =Reports!D4 -> 0
C56: Dotation | D56: =Reports!D5 -> 0
C57: Placement 1 | D57: =Reports!D6 -> 0
C58: Placement 2 | D58: =Reports!D7 -> 0
C59: Placement 3 | D59: =Reports!D8 -> 0
C60: Placement 4 | D60: =Reports!D9 -> 0
C61: Placement 5 | D61: =Reports!D10 -> 0
C62: Total (A) | D62: =Reports!D12-Reports!D11 -> 0
A66: B. RECETTES
A68: ="Reçu par "&IF(Gestionnaires!C8="Monsieur","le ","la ")&"comptable la somme de "&ConvNumberLetter('AP sortie 3'!C27-Reports!C27,1,1)&"euros représentant les recouvrements effectués pendant l'année "&Gestionnaires!H2&" sur les Services à gestion séparées de l'Enseignement :" -> Reçu par la comptable la somme de Euro euros représentant les recouvrements effectués pendant l'année 1900 sur les Services à gestion séparées de l'Enseignement :
C70: ="Rem-rep du "&TEXT(Gestionnaires!C12,"jj/mm/aaaa") -> Rem-rep du 00/01/1900 | D70: ="Rem-rep du "&TEXT(Gestionnaires!F12,"jj/mm/aaaa") -> Rem-rep du 00/01/1900 | E70: ="Rem-rep du "&TEXT(Gestionnaires!L12,"jj/mm/aaaa") -> Rem-rep du 00/01/1900 | F70: Total
A72: Opérations courantes | C72: ='Impression Cpte fin de gestion'!E71 -> 0 | D72: ='Impression Cpte fin de gest (2)'!D72 -> 0 | E72: =F72-(C72+D72) -> 0 | F72: ='AP sortie 3'!C19-Reports!D19 -> 0
B73: Intendance | C73: ='Impression Cpte fin de gestion'!E72 -> 0 | D73: ='Impression Cpte fin de gest (2)'!D73 -> 0 | E73: =F73-(C73+D73) -> 0 | F73: ='AP sortie 3'!C16-Reports!D16 -> 0
B74: Autres | C74: ='Impression Cpte fin de gestion'!E73 -> 0 | D74: ='Impression Cpte fin de gest (2)'!D74 -> 0 | E74: =F74-(C74+D74) -> 0 | F74: ='AP sortie 3'!C17-Reports!D17 -> 0
A76: Opérations en capital | C76: ='Impression Cpte fin de gestion'!E75 -> 0 | D76: ='Impression Cpte fin de gest (2)'!D76 -> 0 | E76: 0 | F76: ='AP sortie 3'!C20-Reports!D20 -> 0
A78: Opérations pour ordre | C78: ='Impression Cpte fin de gestion'!E77 -> 0 | D78: ='Impression Cpte fin de gest (2)'!D78 -> 0 | E78: 0 | F78: ='AP sortie 3'!C24-Reports!D24 -> 0
B79: Tiers | C79: ='Impression Cpte fin de gestion'!E78 -> 0 | D79: ='Impression Cpte fin de gest (2)'!D79 -> 0 | E79: 0 | F79: ='AP sortie 3'!C22-Reports!D22 -> 0
B80: Trésor | C80: ='Impression Cpte fin de gestion'!E79 -> 0 | D80: ='Impression Cpte fin de gest (2)'!D80 -> 0 | E80: 0 | F80: ='AP sortie 3'!C23-Reports!D23 -> 0
A82: Transferts | C82: ='Impression Cpte fin de gestion'!E81 -> 0 | D82: ='Impression Cpte fin de gest (2)'!D82 -> 0 | E82: 0 | F82: ='AP sortie 3'!D26 -> 0
A83: TOTAL (B) | C83: ='Impression Cpte fin de gestion'!E82 -> 0 | D83: ='Impression Cpte fin de gest (2)'!D83 -> 0 | E83: 0 | F83: ='AP sortie 3'!C27-Reports!D27 -> 0
A85: ="Déficit en "&Gestionnaires!H2&" :" -> Déficit en 1900 : | C85: ='Impression Cpte fin de gestion'!E84 -> 0 | D85: ='Impression Cpte fin de gest (2)'!D85 -> 0 | E85: =F85-(C85+D85) -> 0 | F85: ='AP sortie 3'!C11 -> 0 | G85: ="*" -> *
A92: C. DEPENSES
A94: ="Dépensé par "&IF(Gestionnaires!C33="Monsieur","le ","la ")&"comptable la somme de "&ConvNumberLetter('AP sortie 3'!D27,1,1)&" euros se décomposant comme suit :" -> Dépensé par la comptable la somme de Euro euros se décomposant comme suit :
C96: ="Rem-rep du "&TEXT(Gestionnaires!C12,"jj/mm/aaaa") -> Rem-rep du 00/01/1900 | D96: ="Rem-rep du "&TEXT(Gestionnaires!F12,"jj/mm/aaaa") -> Rem-rep du 00/01/1900 | E96: ="Rem-rep du "&TEXT(Gestionnaires!L12,"jj/mm/aaaa") -> Rem-rep du 00/01/1900 | F96: Total
A98: Opérations courantes | C98: ='Impression Cpte fin de gestion'!E98 -> 0 | D98: ='Impression Cpte fin de gest (2)'!D98 -> 0 | E98: =F98-(C98+D98) -> 0 | F98: ='AP sortie 3'!D19 -> 0
B99: Intendance | C99: ='Impression Cpte fin de gestion'!E99 -> 0 | D99: ='Impression Cpte fin de gest (2)'!D99 -> 0 | E99: =F99-(C99+D99) -> 0 | F99: ='AP sortie 3'!D16 -> 0
B100: Autres | C100: ='Impression Cpte fin de gestion'!E100 -> 0 | D100: ='Impression Cpte fin de gest (2)'!D100 -> 0 | E100: 0 | F100: ='AP sortie 3'!D17 -> 0
A102: Opérations en capital | C102: ='Impression Cpte fin de gestion'!E102 -> 0 | D102: ='Impression Cpte fin de gest (2)'!D102 -> 0 | E102: 0 | F102: ='AP sortie 3'!D20 -> 0
A104: Opérations pour ordre | C104: ='Impression Cpte fin de gestion'!E104 -> 0 | D104: ='Impression Cpte fin de gest (2)'!D104 -> 0 | E104: 0 | F104: ='AP sortie 3'!D24 -> 0
B105: Tiers | C105: ='Impression Cpte fin de gestion'!E105 -> 0 | D105: ='Impression Cpte fin de gest (2)'!D105 -> 0 | E105: 0 | F105: ='AP sortie 3'!D22 -> 0
B106: Trésor | C106: ='Impression Cpte fin de gestion'!E106 -> 0 | D106: ='Impression Cpte fin de gest (2)'!D106 -> 0 | E106: 0 | F106: ='AP sortie 3'!D23 -> 0
A108: Transferts | C108: ='Impression Cpte fin de gestion'!E108 -> 0 | D108: ='Impression Cpte fin de gest (2)'!D108 -> 0 | E108: 0 | F108: ='AP sortie 3'!D26 -> 0
A109: TOTAL (C) | C109: ='Impression Cpte fin de gestion'!E109 -> 0 | D109: ='Impression Cpte fin de gest (2)'!D109 -> 0 | E109: 0 | F109: ='AP sortie 3'!D27 -> 0
A112: D. RESULTATS
A114: Valeurs existant en caisse au 31 décembre d e l'année précédente : | D114: =D62 -> 0 | F114: (A) | G114: ="+" -> +
A115: ="Recettes pendant l'année "&Gestionnaires!H2&" :" -> Recettes pendant l'année 1900 : | D115: =F83 -> 0 | F115: (B)
A116: Total des sommes à justifier : | D116: =SUM(D114:E115) -> 0 | G116: ="-" -> -
A117: ="Dépenses pendant l'année "&Gestionnaires!H2&" :" -> Dépenses pendant l'année 1900 : | D117: =F109 -> 0 | F117: (C)
A118: ="Excédent des recettes sur les dépenses :" -> Excédent des recettes sur les dépenses : | D118: =D116-D117 -> 0
A119: ="- Déficit en "&Gestionnaires!H2&" :" -> - Déficit en 1900 : | D119: =F85 -> 0 | F119: ="*" -> *
A120: Réalité de la trésorie : | D120: =D118-D119 -> 0
A122: =IF(Gestionnaires!L28="Monsieur","Le ","La ")&IF(Gestionnaires!L28="Monsieur","soussigné, ","soussignée, ")&Gestionnaires!L10&" "&Gestionnaires!L9&" "&"comptable de "&LOOKUP("X",Identification!B2:B344,Identification!D2:D344)&"," -> 
A123: ="affirme sous peine de droit, véritable dans toutes ses parties, le présent compte qui est le résumé des recettes et des dépenses effectuées par "&IF(Gestionnaires!L28="Monsieur","lui ","elle ")&" pendant la durée de sa gestion" -> affirme sous peine de droit, véritable dans toutes ses parties, le présent compte qui est le résumé des recettes et des dépenses effectuées par elle pendant la durée de sa gestion
A126: ="Fait à "&LOOKUP("X",Identification!B2:B344,Identification!G2:G344&", "&"le "&TEXT(Gestionnaires!L17,"jj/mm/aaaa")) ->  | E126: =IF(Gestionnaires!L28="Monsieur","Le ","La ") &"comptable," -> La comptable,
A130: E. REMARQUES EVENTUELLES (Manuscrites) :

Sheet 1er semestre
A2: Livre centralisateur 1er semestre (30 JUIN)
C3: Recettes | D3: Dépenses | E3: Solde remis
A4: Caisse | C4: 0 | D4: 0 | E4: =C4-D4 -> 0
A5: Dotation | C5: 0 | D5: 0 | E5: =C5-D5 -> 0
A6: Placement 1 | C6: 0 | D6: 0 | E6: 0
A7: Placement 2 | C7: 0 | D7: 0 | E7: 0
A8: Placement 3 | C8: 0 | D8: 0 | E8: 0
A9: Placement 4 | C9: 0 | D9: 0 | E9: 0
A10: Placement 5 | C10: 0 | D10: 0 | E10: 0
A11: PV déficit | C11: 0 | D11: 0 | E11: 0
A12: Sous-totaux | C12: =SUM(C4:C11) -> 0 | D12: =SUM(D4:D11) -> 0 | E12: 0
A13: Mouvements de fonds | C13: 0 | D13: 0 | E13: 0
A14: Totaux | C14: =C12-C13 -> 0 | D14: =D12-D13 -> 0 | E14: 0
A15: Opérations courantes
A16: Intendance | C16: 0 | D16: 0 | E16: =C16-D16 -> 0
A17: Fonctionnement | C17: 0 | D17: 0 | E17: 0
A18: Fond de réserve | C18: 0 | D18: 0 | E18: 0
A19: Total OC | C19: =SUM(C16:C18) -> 0 | D19: =SUM(D16:D18) -> 0 | E19: 0
A20: Opérations en capital | C20: 0 | D20: 0 | E20: 0
A21: Opérations pour ordre
A22: Tiers | C22: 0 | D22: 0 | E22: 0
A23: Trésor | C23: 0 | D23: 0 | E23: 0
A24: Total PO | C24: =SUM(C22:C23) -> 0 | D24: =SUM(D22:D23) -> 0 | E24: =C24-D24 -> 0
A25: Sous-totaux | C25: =C19+C20+C24 -> 0 | D25: =D19+D20+D24 -> 0 | E25: =C25-D25 -> 0
A26: Transferts | C26: 0 | D26: 0 | E26: =C26-D26 -> 0
A27: Totaux | C27: =C25-C26 -> 0 | D27: =D25-D26 -> 0 | E27: =C27-D27 -> 0

Sheet 2ème semestre
A2: Livres centralisateurs 2ème semestre (31 décembre)
C3: Recettes | D3: Dépenses | E3: Solde remis
A4: Caisse | C4: 0 | D4: 0 | E4: 0
A5: Dotation | C5: 0 | D5: 0 | E5: 0
A6: Placement 1 | C6: 0 | D6: 0 | E6: 0
A7: Placement 2 | C7: 0 | D7: 0 | E7: =C7-D7 -> 0
A8: Placement 3 | C8: 0 | D8: 0 | E8: 0
A9: Placement 4 | C9: 0 | D9: 0 | E9: 0
A10: Placement 5 | C10: 0 | D10: 0 | E10: 0
A11: PV déficit | C11: 0 | D11: 0 | E11: 0
A12: Sous-totaux | C12: =SUM(C4:C11) -> 0 | D12: =SUM(D4:D11) -> 0 | E12: 0
A13: Mouvements de fonds | C13: 0 | D13: 0 | E13: 0
A14: Totaux | C14: =C12-C13 -> 0 | D14: =D12-D13 -> 0 | E14: 0
A15: Opérations courantes
A16: Intendance | C16: 0 | D16: 0 | E16: =C16-D16 -> 0
A17: Fonctionnement | C17: 0 | D17: 0 | E17: 0
A18: Fond de réserve | C18: 0 | D18: 0 | E18: 0
A19: Total OC | C19: =SUM(C16:C18) -> 0 | D19: =SUM(D16:D18) -> 0 | E19: 0
A20: Opérations en capital | C20: 0 | D20: 0 | E20: 0
A21: Opérations pour ordre
A22: Tiers | C22: 0 | D22: 0 | E22: 0
A23: Trésor | C23: 0 | D23: 0 | E23: 0
A24: Total PO | C24: =SUM(C22:C23) -> 0 | D24: =SUM(D22:D23) -> 0 | E24: 0
A25: Sous-totaux | C25: =C19+C20+C24 -> 0 | D25: =D19+D20+D24 -> 0 | E25: =C25-D25 -> 0
A26: Transferts | C26: 0 | D26: 0 | E26: =C26-D26 -> 0
A27: Totaux | C27: =C25-C26 -> 0 | D27: =D25-D26 -> 0 | E27: =C27-D27 -> 0

Sheet Jaune 31-12 (hidden)
A1: ANNEE 2014 | H1: DEUXIEME SEMESTRE
A2: 1 | B2: 2 | D2: 3 | E2: 4 | G2: 5 | H2: 6 | I2: 7 | J2: 8 | L2: 9 | M2: 10
A3: COMPTES | D3: RECETTES | I3: DEPENSES
B4: SOLDE AU 31/12 DE L'ANNEE PRECEDENTE | D4: RECETTES DE L'ANNEE EN COURS | H4: TOTAL GENERAL DES RECETTES | I4: DEPENSES DE L'ANNEE EN COURS | M4: A JUSTIFIER AU 31/12/2014
D5: 01/01/2014 au 30/06/2014 | E5: 01/07/2014 au 31/08/2014 | F5: 01/09/2014 au 31/12/2014 | G5: TOTAL COL 3+4 | H5: COL 2+5 | I5: 01/01/2014 au 30/06/2014 | J5: 01/07/2014 au 31/08/2014 | K5: 01/09/2014 au 31/12/2014 | L5: TOTAL COL 7+8 | M5: COL 6-9
A6: CPTE CAISSE | B6: 0 | E6: 0 | F6: 0 | G6: =SUM(D6:F6) -> 0 | H6: =(B6+G6) -> 0 | J6: 0 | K6: 0 | L6: =SUM(I6:K6) -> 0 | M6: =(H6-L6) -> 0
A7: CPTE COURANT | B7: 0 | E7: 0 | F7: 0 | G7: 0 | H7: 0 | J7: 0 | K7: 0 | L7: 0 | M7: 0
A8: CPTE PLACEMENT N°1 | E8: 0 | F8: 0 | G8: 0 | H8: 0 | I8: 0 | J8: 0 | K8: 0 | L8: 0 | M8: 0
A9: CPTE PLACEMENT N°2
A10: CPTE PLACEMENT N°3
A11: CPTE PLACEMENT N°4
A12: CPTE PLACEMENT N°5
A13: PV DE DEFICIT | B13: 0 | D13: 0 | E13: 0 | F13: 0 | G13: 0 | H13: 0 | I13: 0 | J13: 0 | K13: 0 | L13: 0 | M13: 0
A14: SOUS-TOTAL | B14: =SUM(B6:B13) -> 0 | D14: =SUM(D6:D13) -> 0 | E14: =SUM(E6:E13) -> 0 | F14: =SUM(F6:F13) -> 0 | G14: 0 | H14: 0 | I14: =SUM(I6:I13) -> 0 | J14: =SUM(J6:J13) -> 0 | K14: =SUM(K6:K13) -> 0 | L14: 0 | M14: 0
A15: MOUV. DE FONDS | B15: 0 | E15: 0 | F15: 0 | H15: 0 | J15: 0 | K15: =F15 -> 0 | L15: 0 | M15: 0
A16: TOTAL | B16: =(B14-B15) -> 0 | D16: =(D14-D15) -> 0 | E16: =(E14-E15) -> 0 | F16: =(F14-F15) -> 0 | G16: 0 | H16: 0 | I16: =(I14-I15) -> 0 | J16: =(J14-J15) -> 0 | K16: =(K14-K15) -> 0 | L16: 0 | M16: 0
A17: OP. COURANTES | B17: 2a | C17: 2b
A18: INTENDANCE | F18: 0 | G18: =SUM(D18:F18) -> 0 | H18: =(C18+G18) -> 0 | K18: 0 | L18: =SUM(I18:K18) -> 0 | M18: =(H18-L18) -> 0
A19: FONCTIONNEMENT | F19: 0 | G19: =SUM(D19:F19) -> 0 | H19: =(C19+G19) -> 0 | K19: 0 | L19: =SUM(I19:K19) -> 0 | M19: =(H19-L19) -> 0
A20: RESERVE | F20: 0 | G20: =SUM(D20:F20) -> 0 | H20: =(C20+G20) -> 0 | K20: 0 | L20: =SUM(I20:K20) -> 0 | M20: =(H20-L20) -> 0
A21: TOTAL | F21: =SUM(F18:F20) -> 0 | G21: =SUM(D21:F21) -> 0 | H21: =(C21+G21) -> 0 | K21: =SUM(K18:K20) -> 0 | L21: =SUM(I21:K21) -> 0 | M21: =(H21-L21) -> 0
A22: OP. DE CAPITAL | D22: 0 | E22: 0 | F22: 0 | G22: =SUM(D22:F22) -> 0 | H22: =(C22+G22) -> 0 | J22: 0 | K22: 0 | L22: =SUM(I22:K22) -> 0 | M22: =(H22-L22) -> 0
A23: OP. POUR ORDRE
A24: TIERS | B24: 0 | C24: =SUM(B24) -> 0 | D24: 0 | E24: 0 | F24: 0 | G24: =SUM(D24:F24) -> 0 | H24: =(C24+G24) -> 0 | I24: 0 | J24: 0 | K24: 0 | L24: =SUM(I24:K24) -> 0 | M24: =(H24-L24) -> 0
A25: TRESOR | B25: 0 | C25: =SUM(B25) -> 0 | D25: 0 | E25: 0 | F25: 0 | G25: =SUM(D25:F25) -> 0 | H25: =(C25+G25) -> 0 | I25: 0 | J25: 0 | K25: 0 | L25: =SUM(I25:K25) -> 0 | M25: =(H25-L25) -> 0
A26: DIVERS | B26: 0 | C26: =SUM(B26) -> 0 | D26: 0 | E26: 0 | F26: 0 | G26: =SUM(D26:F26) -> 0 | H26: =(C26+G26) -> 0 | I26: 0 | J26: 0 | K26: 0 | L26: =SUM(I26:K26) -> 0 | M26: =(H26-L26) -> 0
A27: TOTAL | B27: =SUM(B24:B26) -> 0 | C27: =SUM(B27) -> 0 | D27: =SUM(D24:D26) -> 0 | E27: =SUM(E24:E26) -> 0 | F27: =SUM(F24:F26) -> 0 | G27: =SUM(D27:F27) -> 0 | H27: =(C27+G27) -> 0 | I27: =SUM(I24:I26) -> 0 | J27: =SUM(J24:J26) -> 0 | K27: =SUM(K24:K26) -> 0 | L27: =SUM(I27:K27) -> 0 | M27: =(H27-L27) -> 0
A28: TOTAL GENERAL | B28: =(B21+B22+B27) -> 0 | C28: =(C21+C22+C27) -> 0 | D28: =(D21+D22+D27) -> 0 | E28: =(E21+E22+E27) -> 0 | F28: =(F21+F22+F27) -> 0 | G28: =SUM(D28:F28) -> 0 | H28: =(C28+G28) -> 0 | I28: =(I21+I22+I27) -> 0 | J28: =(J21+J22+J27) -> 0 | K28: =(K21+K22+K27) -> 0 | L28: =SUM(I28:K28) -> 0 | M28: =(H28-L28) -> 0
A31: CERTIFIE CONFORME AUX ECRITURES | H31: VU ET APPROUVE
A32: FAIT A , LE | H32: =A32 -> FAIT A , LE
A33: LE (LA) COMPTABLE, | H33: LE (LA) CHEF D'ETABLISSEMENT,
C38: Nom du (de la) comptable | J38: Nom du directeur

Sheet Compte scindé
A1: ="Compte scindé de "&LOOKUP("X",Identification!B2:B344,Identification!D2:D344)&" - Année "&RIGHT(TEXT(Gestionnaires!C12,"jj/mm/aaaa"),4) ->  | J1: =A1 -> 
A2: 1 | B2: 2 | D2: 3 | E2: 4 | F2: 5 | G2: 6 | I2: 7 | J2: 8 | K2: 9 | L2: 10 | M2: 11 | N2: 12 | O2: 13 | P2: 15 | Q2: 15
A3: COMPTES | D3: RECETTES | K3: DEPENSES
B4: SOLDE AU 31/12 DE L'ANNEE PRECEDENTE | D4: RECETTES DE L'ANNEE EN COURS | J4: TOTAL GENERAL DES RECETTES | K4: DEPENSES DE L'ANNEE EN COURS | P4: TOTAL GENERAL DES DEPENSES | Q4: ="A justifier au 31/12/"&Gestionnaires!H2 -> A justifier au 31/12/1900
D5: Du 1er janvier au 2 mai | E5: Du 3 mai au 3 juin | F5: Du 4 juin au 30 juin | G5: N/A. | H5: Du 1 juillet au 31 décembre | I5: Total des colonnes 3 à 7 | K5: =D5 -> Du 1er janvier au 2 mai | L5: =E5 -> Du 3 mai au 3 juin | M5: Du 4 juin au 30 juin | N5: N/A. | O5: Du 1 juillet au 31 décembre | Q5: COL 6-9
A6: CPTE CAISSE | B6: =Reports!D4 -> 0 | D6: 1532.4 | E6: 7404.33 | F6: 3136.2 | G6: 0 | H6: 0 | I6: =SUM(D6:H6) -> 12072.93 | J6: =B6+I6 -> 12072.93 | K6: 0 | L6: 7687.03 | M6: 4387.03 | N6: 0 | O6: 0 | P6: =SUM(K6:O6) -> 12074.06 | Q6: =(J6-P6) -> -1.13
A7: CPTE COURANT | B7: =Reports!D5 -> 0 | D7: 254.3 | E7: 99915.32 | F7: 10525.38 | G7: 0 | H7: 0 | I7: =SUM(D7:H7) -> 110695 | J7: =B7+I7 -> 110695 | K7: 15044.73 | L7: 85029.7 | M7: 45615.35 | N7: 0 | O7: 0 | P7: =SUM(K7:O7) -> 145689.78 | Q7: -34994.78
A8: CPTE PLAC. N°1 | B8: =Reports!D6 -> 0 | D8: 70.18 | E8: 58.52 | F8: 0 | G8: 0 | H8: 0 | I8: 128.7 | J8: 128.7 | K8: 0 | L8: 0 | M8: 0 | N8: 0 | O8: 0 | P8: 0 | Q8: 128.7
A9: CPTE PLAC. N°2 | B9: =Reports!D7 -> 0 | D9: 0 | E9: 0 | F9: 0 | G9: 0 | H9: 0 | I9: 0 | J9: 0 | K9: 0 | L9: 0 | M9: 0 | N9: 0 | O9: 0 | P9: 0 | Q9: 0
A10: CPTE PLAC. N°3 | B10: =Reports!D8 -> 0 | D10: 0 | E10: 0 | F10: 0 | G10: 0 | H10: 0 | I10: 0 | J10: 0 | K10: 0 | L10: 0 | M10: 0 | N10: 0 | O10: 0 | P10: 0 | Q10: 0
A11: CPTE PLAC. N°4 | B11: =Reports!D9 -> 0 | D11: 0 | E11: 0 | F11: 0 | G11: 0 | H11: 0 | I11: 0 | J11: 0 | K11: 0 | L11: 0 | M11: 0 | N11: 0 | O11: 0 | P11: 0 | Q11: 0 | R11: Avoir en caisse = Totaux financiers - Déficit
A12: CPTE PLAC. N°5 | B12: =Reports!D10 -> 0 | D12: 0 | E12: 0 | F12: 0 | G12: 0 | H12: 0 | I12: 0 | J12: 0 | K12: 0 | L12: 0 | M12: 0 | N12: 0 | O12: 0 | P12: 0 | Q12: 0
A13: PV DE DEFICIT | B13: =Reports!D11 -> 0 | D13: 0 | E13: 0 | F13: 0 | G13: 0 | H13: 0 | I13: 0 | J13: 0 | K13: 0 | L13: 0 | M13: 0 | N13: 0 | O13: 0 | P13: 0 | Q13: 0
A14: SOUS-TOTAL | B14: =Reports!D12 -> 0 | D14: 1856.88 | E14: 107378.17 | F14: 13661.58 | G14: 0 | H14: 0 | I14: 122896.63 | J14: 122896.63 | K14: 15044.73 | L14: 92716.73 | M14: 50002.38 | N14: 0 | O14: 0 | P14: 157763.84 | Q14: -34867.21 | R14: =Q14 -> -34867.21
A15: MOUV. DE FONDS | B15: =Reports!D13 -> 0 | D15: 0 | E15: 7689.46 | F15: 4387.03 | G15: 0 | H15: 0 | I15: 12076.49 | J15: 12076.49 | K15: 0 | L15: 7689.46 | M15: 4387.03 | N15: 0 | O15: 0 | P15: 12076.49 | Q15: 0 | R15: ="(-)"&Q13 -> (-)0
A16: TOTAL | B16: =Reports!D14 -> 0 | D16: 1856.88 | E16: 99688.71 | F16: 9274.55 | G16: 0 | H16: 0 | I16: 110820.14 | J16: 110820.14 | K16: 15044.73 | L16: 85027.27 | M16: 45615.35 | N16: 0 | O16: 0 | P16: 145687.35 | Q16: -34867.21 | R16: =Q16-Q13 -> -34867.21
A17: OP. COURANTES | B17: 2A | C17: 2B
A18: INTENDANCE | B18: =Reports!C16 -> 0 | C18: =Reports!D16 -> 0 | D18: 1647.2 | E18: 7678.3 | F18: 3530.3 | G18: 0 | H18: 0 | I18: 12855.8 | J18: =C18+I18 -> 12855.8 | K18: 1382.9 | L18: 6074.1 | M18: 2087.48 | N18: 0 | O18: 0 | P18: 9544.48 | Q18: =(J18-P18) -> 3311.32
A19: FONCTIONNEMENT | B19: =Reports!C17 -> 0 | C19: =Reports!D17 -> 0 | D19: 209.68 | E19: 92010.41 | F19: 5744.25 | G19: 0 | H19: 0 | I19: 97964.34 | J19: =C19+I19 -> 97964.34 | K19: 12695.04 | L19: 78374.18 | M19: 43527.87 | N19: 0 | O19: 0 | P19: 134597.09 | Q19: =(J19-P19) -> -36632.75
A20: RESERVE | B20: =Reports!C18 -> 0 | C20: =Reports!D18 -> 0 | D20: 0 | E20: 0 | F20: 0 | G20: 0 | H20: 0 | I20: 0 | J20: =C20+I20 -> 0 | K20: 0 | L20: 0 | M20: 0 | N20: 0 | O20: 0 | P20: 0 | Q20: =(J20-P20) -> 0
A21: TOTAL | B21: =Reports!C19 -> 0 | C21: =Reports!D19 -> 0 | D21: 1856.88 | E21: 99688.71 | F21: 9274.55 | G21: 0 | H21: 0 | I21: 110820.14 | J21: =C21+I21 -> 110820.14 | K21: 14077.94 | L21: 84448.28 | M21: 45615.35 | N21: 0 | O21: 0 | P21: 144141.57 | Q21: =(J21-P21) -> -33321.43
A22: OP. DE CAPITAL | B22: =Reports!C20 -> 0 | C22: =Reports!D20 -> 0 | D22: 10000 | E22: 0 | F22: -10000 | G22: 0 | H22: 0 | I22: 0 | J22: =C22+I22 -> 0 | K22: 966.79 | L22: 578.99 | M22: -1545.78 | N22: 0 | O22: 0 | P22: 0 | Q22: =(J22-P22) -> 0
A23: OP. POUR ORDRE
A24: TIERS | B24: =Reports!C22 -> 0 | C24: =Reports!D22 -> 0 | D24: 0 | E24: 0 | F24: 0 | G24: 0 | H24: 0 | I24: 0 | J24: =C24+I24 -> 0 | K24: 0 | L24: 0 | M24: 0 | N24: 0 | O24: 0 | P24: 0 | Q24: =(J24-P24) -> 0
A25: TRESOR | B25: =Reports!C23 -> 0 | C25: =Reports!D23 -> 0 | D25: 0 | E25: 0 | F25: 0 | G25: 0 | H25: 0 | I25: 0 | J25: 0 | K25: 0 | L25: 0 | M25: 0 | N25: 0 | O25: 0 | P25: 0 | Q25: =(J25-P25) -> 0
A26: TOTAL | B26: =Reports!C24 -> 0 | C26: =Reports!D24 -> 0 | D26: 0 | E26: 0 | F26: 0 | G26: 0 | H26: 0 | I26: 0 | J26: 0 | K26: 0 | L26: 0 | M26: 0 | N26: 0 | O26: 0 | P26: 0 | Q26: =(J26-P26) -> 0
A27: SOUS-TOTAL | B27: =Reports!C25 -> 0 | C27: =Reports!D25 -> 0 | D27: 11856.88 | E27: 99688.71 | F27: -725.45 | G27: 0 | H27: 0 | I27: 110820.14 | J27: 110820.14 | K27: 15044.73 | L27: 85027.27 | M27: 44069.57 | N27: 0 | O27: 0 | P27: 144141.57 | Q27: =(J27-P27) -> -33321.43
A28: TRANSFERT | B28: =Reports!C26 -> 0 | C28: =Reports!D26 -> 0 | D28: 0 | E28: 0 | F28: 0 | G28: 0 | H28: 0 | I28: 0 | J28: 0 | K28: 0 | L28: 0 | M28: 0 | N28: 0 | O28: 0 | P28: 0 | Q28: 0
A29: TOTAL GENERAL | B29: =Reports!C27 -> 0 | C29: =Reports!D27 -> 0 | D29: 11856.88 | E29: 99688.71 | F29: -725.45 | G29: 0 | H29: 0 | I29: 110820.14 | J29: 110820.14 | K29: 15044.73 | L29: 85027.27 | M29: 44069.57 | N29: 0 | O29: 0 | P29: 144141.57 | Q29: =(J29-P29) -> -33321.43
A31: CERTIFIE CONFORME AUX ECRITURES | J31: VU ET APPROUVE
A32: ="Fait à "&LOOKUP("X",Identification!B2:B344,Identification!G2:G344)&", le 31/12/"&Gestionnaires!H2 ->  | J32: =A32 -> 
A33: =IF(Gestionnaires!L12<>"",IF(Gestionnaires!L19="Monsieur","Le comptable ","La comptable "),IF(Gestionnaires!F12<>"",IF(Gestionnaires!F19="Monsieur","Le comptable ","La comptable "),IF(Gestionnaires!C19="Monsieur","Le comptable ","La comptable ")))&", "&IF(Gestionnaires!L12<>"",Gestionnaires!L21&" "&UPPER(Gestionnaires!L20),IF(Gestionnaires!F12<>"",Gestionnaires!F21&" "&UPPER(Gestionnaires!F20),Gestionnaires!C21&" "&UPPER(Gestionnaires!C20))) -> La comptable , | J33: =IF(Gestionnaires!C2="Monsieur","Le Chef d'étabissement, ","La Cheffe d'établissement, ")&Gestionnaires!C5&" "&UPPER(Gestionnaires!C4) -> La Cheffe d'établissement,

Sheet Compte scindé 30 juin
A1: ="Compte scindé de "&LOOKUP("X",Identification!B2:B344,Identification!D2:D344)&" - Année "&RIGHT(TEXT(Gestionnaires!C12,"jj/mm/aaaa"),4)&" - Situation au 30 juin" ->  | J1: =A1 -> 
A2: 1 | B2: 2 | D2: 3 | E2: 4 | F2: 5 | G2: 6 | I2: 7 | J2: 8 | K2: 9 | L2: 10 | M2: 11 | N2: 12 | O2: 13 | P2: 15 | Q2: 15
A3: COMPTES | D3: RECETTES | K3: DEPENSES
B4: SOLDE AU 31/12 DE L'ANNEE PRECEDENTE | D4: RECETTES DE L'ANNEE EN COURS | J4: TOTAL GENERAL DES RECETTES | K4: DEPENSES DE L'ANNEE EN COURS | P4: TOTAL GENERAL DES DEPENSES | Q4: ="A justifier au 30/06/"&Gestionnaires!H2 -> A justifier au 30/06/1900
D5: Du 1er janvier au 2 mai | E5: Du 3 mai au 3 juin | F5: Du 4 juin au 30 juin | G5: NA | H5: NA | I5: Total des colonnes 3 à 7 | K5: =D5 -> Du 1er janvier au 2 mai | L5: =E5 -> Du 3 mai au 3 juin | M5: Du 4 juin au 30 juin | N5: NA | O5: NA | Q5: COL 6-9
A6: CPTE CAISSE | B6: =Reports!D4 -> 0 | D6: 1532.4 | E6: 7404.33 | F6: 3136.2 | G6: 0 | H6: 0 | I6: =SUM(D6:H6) -> 12072.93 | J6: =B6+I6 -> 12072.93 | K6: 0 | L6: 7687.03 | M6: 4387.03 | N6: 0 | O6: 0 | P6: =SUM(K6:O6) -> 12074.06 | Q6: =(J6-P6) -> -1.13
A7: CPTE COURANT | B7: =Reports!D5 -> 0 | D7: 254.3 | E7: 99915.32 | F7: 10525.38 | G7: 0 | H7: 0 | I7: =SUM(D7:H7) -> 110695 | J7: =B7+I7 -> 110695 | K7: 15044.73 | L7: 85029.7 | M7: 45615.35 | N7: 0 | O7: 0 | P7: =SUM(K7:O7) -> 145689.78 | Q7: -34994.78
A8: CPTE PLAC. N°1 | B8: =Reports!D6 -> 0 | D8: 70.18 | E8: 58.52 | F8: 0 | G8: 0 | H8: 0 | I8: 128.7 | J8: 128.7 | K8: 0 | L8: 0 | M8: 0 | N8: 0 | O8: 0 | P8: 0 | Q8: 128.7
A9: CPTE PLAC. N°2 | B9: =Reports!D7 -> 0 | D9: 0 | E9: 0 | F9: 0 | G9: 0 | H9: 0 | I9: 0 | J9: 0 | K9: 0 | L9: 0 | M9: 0 | N9: 0 | O9: 0 | P9: 0 | Q9: 0
A10: CPTE PLAC. N°3 | B10: =Reports!D8 -> 0 | D10: 0 | E10: 0 | F10: 0 | G10: 0 | H10: 0 | I10: 0 | J10: 0 | K10: 0 | L10: 0 | M10: 0 | N10: 0 | O10: 0 | P10: 0 | Q10: 0
A11: CPTE PLAC. N°4 | B11: =Reports!D9 -> 0 | D11: 0 | E11: 0 | F11: 0 | G11: 0 | H11: 0 | I11: 0 | J11: 0 | K11: 0 | L11: 0 | M11: 0 | N11: 0 | O11: 0 | P11: 0 | Q11: 0 | R11: Avoir en caisse = Totaux financiers - Déficit
A12: CPTE PLAC. N°5 | B12: =Reports!D10 -> 0 | D12: 0 | E12: 0 | F12: 0 | G12: 0 | H12: 0 | I12: 0 | J12: 0 | K12: 0 | L12: 0 | M12: 0 | N12: 0 | O12: 0 | P12: 0 | Q12: 0
A13: PV DE DEFICIT | B13: =Reports!D11 -> 0 | D13: 0 | E13: 0 | F13: 0 | G13: 0 | H13: 0 | I13: 0 | J13: 0 | K13: 0 | L13: 0 | M13: 0 | N13: 0 | O13: 0 | P13: 0 | Q13: 0
A14: SOUS-TOTAL | B14: =Reports!D12 -> 0 | D14: 1856.88 | E14: 107378.17 | F14: 13661.58 | G14: 0 | H14: 0 | I14: 122896.63 | J14: 122896.63 | K14: 15044.73 | L14: 92716.73 | M14: 50002.38 | N14: 0 | O14: 0 | P14: 157763.84 | Q14: -34867.21 | R14: =Q14 -> -34867.21
A15: MOUV. DE FONDS | B15: =Reports!D13 -> 0 | D15: 0 | E15: 7689.46 | F15: 4387.03 | G15: 0 | H15: 0 | I15: 12076.49 | J15: 12076.49 | K15: 0 | L15: 7689.46 | M15: 4387.03 | N15: 0 | O15: 0 | P15: 12076.49 | Q15: 0 | R15: ="(-)"&Q13 -> (-)0
A16: TOTAL | B16: =Reports!D14 -> 0 | D16: 1856.88 | E16: 99688.71 | F16: 9274.55 | G16: 0 | H16: 0 | I16: 110820.14 | J16: 110820.14 | K16: 15044.73 | L16: 85027.27 | M16: 45615.35 | N16: 0 | O16: 0 | P16: 145687.35 | Q16: -34867.21 | R16: =Q16-Q13 -> -34867.21
A17: OP. COURANTES | B17: 2A | C17: 2B
A18: INTENDANCE | B18: =Reports!C16 -> 0 | C18: =Reports!D16 -> 0 | D18: 1647.2 | E18: 7678.3 | F18: 3530.3 | G18: 0 | H18: 0 | I18: 12855.8 | J18: =C18+I18 -> 12855.8 | K18: 1382.9 | L18: 6074.1 | M18: 2087.48 | N18: 0 | O18: 0 | P18: 9544.48 | Q18: =(J18-P18) -> 3311.32
A19: FONCTIONNEMENT | B19: =Reports!C17 -> 0 | C19: =Reports!D17 -> 0 | D19: 209.68 | E19: 92010.41 | F19: 5744.25 | G19: 0 | H19: 0 | I19: 97964.34 | J19: =C19+I19 -> 97964.34 | K19: 12695.04 | L19: 78374.18 | M19: 43527.87 | N19: 0 | O19: 0 | P19: 134597.09 | Q19: =(J19-P19) -> -36632.75
A20: RESERVE | B20: =Reports!C18 -> 0 | C20: =Reports!D18 -> 0 | D20: 0 | E20: 0 | F20: 0 | G20: 0 | H20: 0 | I20: 0 | J20: =C20+I20 -> 0 | K20: 0 | L20: 0 | M20: 0 | N20: 0 | O20: 0 | P20: 0 | Q20: =(J20-P20) -> 0
A21: TOTAL | B21: =Reports!C19 -> 0 | C21: =Reports!D19 -> 0 | D21: 1856.88 | E21: 99688.71 | F21: 9274.55 | G21: 0 | H21: 0 | I21: 110820.14 | J21: =C21+I21 -> 110820.14 | K21: 14077.94 | L21: 84448.28 | M21: 45615.35 | N21: 0 | O21: 0 | P21: 144141.57 | Q21: =(J21-P21) -> -33321.43
A22: OP. DE CAPITAL | B22: =Reports!C20 -> 0 | C22: =Reports!D20 -> 0 | D22: 10000 | E22: 0 | F22: -10000 | G22: 0 | H22: 0 | I22: 0 | J22: =C22+I22 -> 0 | K22: 966.79 | L22: 578.99 | M22: -1545.78 | N22: 0 | O22: 0 | P22: 0 | Q22: =(J22-P22) -> 0
A23: OP. POUR ORDRE
A24: TIERS | B24: =Reports!C22 -> 0 | C24: =Reports!D22 -> 0 | D24: 0 | E24: 0 | F24: 0 | G24: 0 | H24: 0 | I24: 0 | J24: =C24+I24 -> 0 | K24: 0 | L24: 0 | M24: 0 | N24: 0 | O24: 0 | P24: 0 | Q24: =(J24-P24) -> 0
A25: TRESOR | B25: =Reports!C23 -> 0 | C25: =Reports!D23 -> 0 | D25: 0 | E25: 0 | F25: 0 | G25: 0 | H25: 0 | I25: 0 | J25: 0 | K25: 0 | L25: 0 | M25: 0 | N25: 0 | O25: 0 | P25: 0 | Q25: =(J25-P25) -> 0
A26: TOTAL | B26: =Reports!C24 -> 0 | C26: =Reports!D24 -> 0 | D26: 0 | E26: 0 | F26: 0 | G26: 0 | H26: 0 | I26: 0 | J26: 0 | K26: 0 | L26: 0 | M26: 0 | N26: 0 | O26: 0 | P26: 0 | Q26: =(J26-P26) -> 0
A27: SOUS-TOTAL | B27: =Reports!C25 -> 0 | C27: =Reports!D25 -> 0 | D27: 11856.88 | E27: 99688.71 | F27: -725.45 | G27: 0 | H27: 0 | I27: 110820.14 | J27: 110820.14 | K27: 15044.73 | L27: 85027.27 | M27: 44069.57 | N27: 0 | O27: 0 | P27: 144141.57 | Q27: =(J27-P27) -> -33321.43
A28: TRANSFERT | B28: =Reports!C26 -> 0 | C28: =Reports!D26 -> 0 | D28: 0 | E28: 0 | F28: 0 | G28: 0 | H28: 0 | I28: 0 | J28: 0 | K28: 0 | L28: 0 | M28: 0 | N28: 0 | O28: 0 | P28: 0 | Q28: 0
A29: TOTAL GENERAL | B29: =Reports!C27 -> 0 | C29: =Reports!D27 -> 0 | D29: 11856.88 | E29: 99688.71 | F29: -725.45 | G29: 0 | H29: 0 | I29: 110820.14 | J29: 110820.14 | K29: 15044.73 | L29: 85027.27 | M29: 44069.57 | N29: 0 | O29: 0 | P29: 144141.57 | Q29: =(J29-P29) -> -33321.43
A31: CERTIFIE CONFORME AUX ECRITURES | J31: VU ET APPROUVE
A32: ="Fait à "&LOOKUP("X",Identification!B2:B344,Identification!G2:G344)&", le 30/06/"&Gestionnaires!H2 ->  | J32: =A32 -> 
A33: =IF(AND(Gestionnaires!L12<>"",Gestionnaires!L12<DATEVALUE("30/06/"&Gestionnaires!H2)),IF(Gestionnaires!L19="Monsieur","Le comptable ","La comptable "),IF(AND(Gestionnaires!L12<>"",Gestionnaires!L12>DATEVALUE("30/06/"&Gestionnaires!H2)),IF(Gestionnaires!L8="Monsieur","Le comptable ","La comptable "),IF(AND(Gestionnaires!F12<>"",Gestionnaires!F12<DATEVALUE("30/06/"&Gestionnaires!H2)),IF(Gestionnaires!F19="Monsieur","Le comptable ","La comptable "),IF(AND(Gestionnaires!F12<>"",Gestionnaires!F12>DATEVALUE("30/06/"&Gestionnaires!H2)),IF(Gestionnaires!F8="Monsieur","Le comptable ","La comptable "),IF(AND(Gestionnaires!C12<>"",Gestionnaires!F12<DATEVALUE("30/06/"&Gestionnaires!H2)),IF(Gestionnaires!C19="Monsieur","Le compatble ","La comptable "),IF(Gestionnaires!C8="Monsieur","Le comptable ","La comptable "))))))&", "&IF(AND(Gestionnaires!L12<>"",Gestionnaires!L12<DATEVALUE("30/06/"&Gestionnaires!H2)),Gestionnaires!L21&" "&UPPER(Gestionnaires!L20),IF(AND(Gestionnaires!F12<>"",Gestionnaires!F12<DATEVALUE("30/06/"&Gestionnaires!H2)),Gestionnaires!F21&" "&UPPER(Gestionnaires!F20),IF(Gestionnaires!C12<DATEVALUE("30/06/"&Gestionnaires!H2),Gestionnaires!C21&" "&UPPER(Gestionnaires!C20),Gestionnaires!C10&" "&UPPER(Gestionnaires!C9)))) -> La comptable , | J33: =IF(Gestionnaires!C2="Monsieur","Le Chef d'étabissement, ","La Cheffe d'établissement, ")&Gestionnaires!C5&" "&UPPER(Gestionnaires!C4) -> La Cheffe d'établissement,

Sheet Compte scindé RR1
A1: ="Compte scindé de "&LOOKUP("X",Identification!B2:B344,Identification!D2:D344)&" - Année "&RIGHT(TEXT(Gestionnaires!C12,"jj/mm/aaaa"),4)&" - Sortie de "&PROPER(Gestionnaires!C8)&" "&Gestionnaires!C10&" "&UPPER(Gestionnaires!C9) ->  | J1: =A1 -> 
A2: 1 | B2: 2 | D2: 3 | E2: 4 | F2: 5 | G2: 6 | I2: 7 | J2: 8 | K2: 9 | L2: 10 | M2: 11 | N2: 12 | O2: 13 | P2: 15 | Q2: 15
A3: COMPTES | D3: RECETTES | K3: DEPENSES
B4: SOLDE AU 31/12 DE L'ANNEE PRECEDENTE | D4: RECETTES DE L'ANNEE EN COURS | J4: TOTAL GENERAL DES RECETTES | K4: DEPENSES DE L'ANNEE EN COURS | P4: TOTAL GENERAL DES DEPENSES | Q4: ="A justifier au "&TEXT(Gestionnaires!C12,"jj/mm/aaaa") -> A justifier au 00/01/1900
D5: Du 1er janvier au 30 juin | E5: Du 1er juillet au 2 octobre | F5: NA | G5: NA | H5: NA | I5: Total des colonnes 3 à 7 | K5: =D5 -> Du 1er janvier au 30 juin | L5: =E5 -> Du 1er juillet au 2 octobre | M5: NA | N5: NA | O5: NA | Q5: COL 6-9
A6: CPTE CAISSE | B6: =Reports!D4 -> 0 | D6: 12072.93 | E6: -10540.53 | F6: 0 | G6: 0 | H6: 0 | I6: =SUM(D6:H6) -> 1532.4 | J6: =B6+I6 -> 1532.4 | K6: 12074.06 | L6: -12074.06 | M6: 0 | N6: 0 | O6: 0 | P6: =SUM(K6:O6) -> 0 | Q6: =(J6-P6) -> 1532.4
A7: CPTE COURANT | B7: =Reports!D5 -> 0 | D7: 110695 | E7: -110440.7 | F7: 0 | G7: 0 | H7: 0 | I7: =SUM(D7:H7) -> 254.3 | J7: =B7+I7 -> 254.3 | K7: 145689.78 | L7: -130645.05 | M7: 0 | N7: 0 | O7: 0 | P7: =SUM(K7:O7) -> 15044.73 | Q7: -14790.43
A8: CPTE PLAC. N°1 | B8: =Reports!D6 -> 0 | D8: 128.7 | E8: -58.52 | F8: 0 | G8: 0 | H8: 0 | I8: 70.18 | J8: 70.18 | K8: 0 | L8: 0 | M8: 0 | N8: 0 | O8: 0 | P8: 0 | Q8: 70.18
A9: CPTE PLAC. N°2 | B9: =Reports!D7 -> 0 | D9: 0 | E9: 0 | F9: 0 | G9: 0 | H9: 0 | I9: 0 | J9: 0 | K9: 0 | L9: 0 | M9: 0 | N9: 0 | O9: 0 | P9: 0 | Q9: 0
A10: CPTE PLAC. N°3 | B10: =Reports!D8 -> 0 | D10: 0 | E10: 0 | F10: 0 | G10: 0 | H10: 0 | I10: 0 | J10: 0 | K10: 0 | L10: 0 | M10: 0 | N10: 0 | O10: 0 | P10: 0 | Q10: 0
A11: CPTE PLAC. N°4 | B11: =Reports!D9 -> 0 | D11: 0 | E11: 0 | F11: 0 | G11: 0 | H11: 0 | I11: 0 | J11: 0 | K11: 0 | L11: 0 | M11: 0 | N11: 0 | O11: 0 | P11: 0 | Q11: 0 | R11: Avoir en caisse = Totaux financiers - Déficit
A12: CPTE PLAC. N°5 | B12: =Reports!D10 -> 0 | D12: 0 | E12: 0 | F12: 0 | G12: 0 | H12: 0 | I12: 0 | J12: 0 | K12: 0 | L12: 0 | M12: 0 | N12: 0 | O12: 0 | P12: 0 | Q12: 0
A13: PV DE DEFICIT | B13: =Reports!D11 -> 0 | D13: 0 | E13: 0 | F13: 0 | G13: 0 | H13: 0 | I13: 0 | J13: 0 | K13: 0 | L13: 0 | M13: 0 | N13: 0 | O13: 0 | P13: 0 | Q13: 0
A14: SOUS-TOTAL | B14: =Reports!D12 -> 0 | D14: 122896.63 | E14: -121039.75 | F14: 0 | G14: 0 | H14: 0 | I14: 1856.88 | J14: 1856.88 | K14: 157763.84 | L14: -142719.11 | M14: 0 | N14: 0 | O14: 0 | P14: 15044.73 | Q14: -13187.85 | R14: =Q14 -> -13187.85
A15: MOUV. DE FONDS | B15: =Reports!D13 -> 0 | D15: 12076.49 | E15: -12076.49 | F15: 0 | G15: 0 | H15: 0 | I15: 0 | J15: 0 | K15: 12076.49 | L15: -12076.49 | M15: 0 | N15: 0 | O15: 0 | P15: 0 | Q15: 0 | R15: ="(-)"&Q13 -> (-)0
A16: TOTAL | B16: =Reports!D14 -> 0 | D16: 110820.14 | E16: -108963.26 | F16: 0 | G16: 0 | H16: 0 | I16: 1856.88 | J16: 1856.88 | K16: 145687.35 | L16: -130642.62 | M16: 0 | N16: 0 | O16: 0 | P16: 15044.73 | Q16: -13187.85 | R16: =Q16-Q13 -> -13187.85
A17: OP. COURANTES | B17: 2A | C17: 2B
A18: INTENDANCE | B18: =Reports!C16 -> 0 | C18: =Reports!D16 -> 0 | D18: 12855.8 | E18: -11208.6 | F18: 0 | G18: 0 | H18: 0 | I18: 1647.2 | J18: =C18+I18 -> 1647.2 | K18: 9544.48 | L18: -8161.58 | M18: 0 | N18: 0 | O18: 0 | P18: 1382.9 | Q18: =(J18-P18) -> 264.3
A19: FONCTIONNEMENT | B19: =Reports!C17 -> 0 | C19: =Reports!D17 -> 0 | D19: 97964.34 | E19: -97754.66 | F19: 0 | G19: 0 | H19: 0 | I19: 209.68 | J19: =C19+I19 -> 209.68 | K19: 134597.09 | L19: -121902.05 | M19: 0 | N19: 0 | O19: 0 | P19: 12695.04 | Q19: =(J19-P19) -> -12485.36
A20: RESERVE | B20: =Reports!C18 -> 0 | C20: =Reports!D18 -> 0 | D20: 0 | E20: 0 | F20: 0 | G20: 0 | H20: 0 | I20: 0 | J20: =C20+I20 -> 0 | K20: 0 | L20: 0 | M20: 0 | N20: 0 | O20: 0 | P20: 0 | Q20: =(J20-P20) -> 0
A21: TOTAL | B21: =Reports!C19 -> 0 | C21: =Reports!D19 -> 0 | D21: 110820.14 | E21: -108963.26 | F21: 0 | G21: 0 | H21: 0 | I21: 1856.88 | J21: =C21+I21 -> 1856.88 | K21: 144141.57 | L21: -130063.63 | M21: 0 | N21: 0 | O21: 0 | P21: 14077.94 | Q21: =(J21-P21) -> -12221.06
A22: OP. DE CAPITAL | B22: =Reports!C20 -> 0 | C22: =Reports!D20 -> 0 | D22: 0 | E22: 10000 | F22: 0 | G22: 0 | H22: 0 | I22: 10000 | J22: =C22+I22 -> 10000 | K22: 0 | L22: 966.79 | M22: 0 | N22: 0 | O22: 0 | P22: 966.79 | Q22: =(J22-P22) -> 9033.21
A23: OP. POUR ORDRE
A24: TIERS | B24: =Reports!C22 -> 0 | C24: =Reports!D22 -> 0 | D24: 0 | E24: 0 | F24: 0 | G24: 0 | H24: 0 | I24: 0 | J24: =C24+I24 -> 0 | K24: 0 | L24: 0 | M24: 0 | N24: 0 | O24: 0 | P24: 0 | Q24: =(J24-P24) -> 0
A25: TRESOR | B25: =Reports!C23 -> 0 | C25: =Reports!D23 -> 0 | D25: 0 | E25: 0 | F25: 0 | G25: 0 | H25: 0 | I25: 0 | J25: 0 | K25: 0 | L25: 0 | M25: 0 | N25: 0 | O25: 0 | P25: 0 | Q25: =(J25-P25) -> 0
A26: TOTAL | B26: =Reports!C24 -> 0 | C26: =Reports!D24 -> 0 | D26: 0 | E26: 0 | F26: 0 | G26: 0 | H26: 0 | I26: 0 | J26: 0 | K26: 0 | L26: 0 | M26: 0 | N26: 0 | O26: 0 | P26: 0 | Q26: =(J26-P26) -> 0
A27: SOUS-TOTAL | B27: =Reports!C25 -> 0 | C27: =Reports!D25 -> 0 | D27: 110820.14 | E27: -98963.26 | F27: 0 | G27: 0 | H27: 0 | I27: 11856.88 | J27: 11856.88 | K27: 144141.57 | L27: -129096.84 | M27: 0 | N27: 0 | O27: 0 | P27: 15044.73 | Q27: =(J27-P27) -> -3187.85
A28: TRANSFERT | B28: =Reports!C26 -> 0 | C28: =Reports!D26 -> 0 | D28: 0 | E28: 0 | F28: 0 | G28: 0 | H28: 0 | I28: 0 | J28: 0 | K28: 0 | L28: 0 | M28: 0 | N28: 0 | O28: 0 | P28: 0 | Q28: 0
A29: TOTAL GENERAL | B29: =Reports!C27 -> 0 | C29: =Reports!D27 -> 0 | D29: 110820.14 | E29: -98963.26 | F29: 0 | G29: 0 | H29: 0 | I29: 11856.88 | J29: 11856.88 | K29: 144141.57 | L29: -129096.84 | M29: 0 | N29: 0 | O29: 0 | P29: 15044.73 | Q29: =(J29-P29) -> -3187.85
A31: CERTIFIE CONFORME AUX ECRITURES | J31: VU ET APPROUVE
A32: ="Fait à "&LOOKUP("X",Identification!B2:B344,Identification!G2:G344)&", le "&TEXT(Gestionnaires!C12,"jj/mm/aaaa") ->  | J32: =A32 -> 
A33: =IF(Gestionnaires!C8="Monsieur","Le comptable sortant ","La comptable sortante ")&", "&Gestionnaires!C10&" "&UPPER(Gestionnaires!C9) -> La comptable sortante , | J33: =IF(Gestionnaires!C2="Monsieur","Le Chef d'étabissement, ","La Cheffe d'établissement, ")&Gestionnaires!C5&" "&UPPER(Gestionnaires!C4) -> La Cheffe d'établissement,

Sheet Compte scindé RR2
A1: ="Compte scindé de "&LOOKUP("X",Identification!B2:B344,Identification!D2:D344)&" - Année "&RIGHT(TEXT(Gestionnaires!C12,"jj/mm/aaaa"),4)&" - Sortie de "&PROPER(Gestionnaires!F8)&" "&Gestionnaires!F10&" "&UPPER(Gestionnaires!F9) ->  | J1: =A1 -> 
A2: 1 | B2: 2 | D2: 3 | E2: 4 | F2: 5 | G2: 6 | I2: 7 | J2: 8 | K2: 9 | L2: 10 | M2: 11 | N2: 12 | O2: 13 | P2: 15 | Q2: 15
A3: COMPTES | D3: RECETTES | K3: DEPENSES
B4: SOLDE AU 31/12 DE L'ANNEE PRECEDENTE | D4: RECETTES DE L'ANNEE EN COURS | J4: TOTAL GENERAL DES RECETTES | K4: DEPENSES DE L'ANNEE EN COURS | P4: TOTAL GENERAL DES DEPENSES | Q4: ="A justifier au "&TEXT(Gestionnaires!F12,"jj/mm/aaaa") -> A justifier au 00/01/1900
D5: Du 1er janvier au 30 juin | E5: Du 1er juillet au 30 juin | F5: N/A | G5: N/A | H5: N/A | I5: Total des colonnes 3 à 7 | K5: =D5 -> Du 1er janvier au 30 juin | L5: =E5 -> Du 1er juillet au 30 juin | M5: N/A | N5: N/A | O5: N/A | Q5: COL 6-9
A6: CPTE CAISSE | B6: =Reports!D4 -> 0 | D6: 12072.93 | E6: -3136.2 | F6: 0 | G6: 0 | H6: 0 | I6: =SUM(D6:H6) -> 8936.73 | J6: =B6+I6 -> 8936.73 | K6: 12074.06 | L6: -4387.03 | M6: 0 | N6: 0 | O6: 0 | P6: =SUM(K6:O6) -> 7687.03 | Q6: =(J6-P6) -> 1249.7
A7: CPTE COURANT | B7: =Reports!D5 -> 0 | D7: 110695 | E7: -10525.38 | F7: 0 | G7: 0 | H7: 0 | I7: =SUM(D7:H7) -> 100169.62 | J7: =B7+I7 -> 100169.62 | K7: 145689.78 | L7: -45615.35 | M7: 0 | N7: 0 | O7: 0 | P7: =SUM(K7:O7) -> 100074.43 | Q7: 95.19
A8: CPTE PLAC. N°1 | B8: =Reports!D6 -> 0 | D8: 128.7 | E8: 0 | F8: 0 | G8: 0 | H8: 0 | I8: 128.7 | J8: 128.7 | K8: 0 | L8: 0 | M8: 0 | N8: 0 | O8: 0 | P8: 0 | Q8: 128.7
A9: CPTE PLAC. N°2 | B9: =Reports!D7 -> 0 | D9: 0 | E9: 0 | F9: 0 | G9: 0 | H9: 0 | I9: 0 | J9: 0 | K9: 0 | L9: 0 | M9: 0 | N9: 0 | O9: 0 | P9: 0 | Q9: 0
A10: CPTE PLAC. N°3 | B10: =Reports!D8 -> 0 | D10: 0 | E10: 0 | F10: 0 | G10: 0 | H10: 0 | I10: 0 | J10: 0 | K10: 0 | L10: 0 | M10: 0 | N10: 0 | O10: 0 | P10: 0 | Q10: 0
A11: CPTE PLAC. N°4 | B11: =Reports!D9 -> 0 | D11: 0 | E11: 0 | F11: 0 | G11: 0 | H11: 0 | I11: 0 | J11: 0 | K11: 0 | L11: 0 | M11: 0 | N11: 0 | O11: 0 | P11: 0 | Q11: 0 | R11: Avoir en caisse = Totaux financiers - Déficit
A12: CPTE PLAC. N°5 | B12: =Reports!D10 -> 0 | D12: 0 | E12: 0 | F12: 0 | G12: 0 | H12: 0 | I12: 0 | J12: 0 | K12: 0 | L12: 0 | M12: 0 | N12: 0 | O12: 0 | P12: 0 | Q12: 0
A13: PV DE DEFICIT | B13: =Reports!D11 -> 0 | D13: 0 | E13: 0 | F13: 0 | G13: 0 | H13: 0 | I13: 0 | J13: 0 | K13: 0 | L13: 0 | M13: 0 | N13: 0 | O13: 0 | P13: 0 | Q13: 0
A14: SOUS-TOTAL | B14: =Reports!D12 -> 0 | D14: 122896.63 | E14: -13661.58 | F14: 0 | G14: 0 | H14: 0 | I14: 109235.05 | J14: 109235.05 | K14: 157763.84 | L14: -50002.38 | M14: 0 | N14: 0 | O14: 0 | P14: 107761.46 | Q14: 1473.59 | R14: =Q14 -> 1473.59
A15: MOUV. DE FONDS | B15: =Reports!D13 -> 0 | D15: 12076.49 | E15: -4387.03 | F15: 0 | G15: 0 | H15: 0 | I15: 7689.46 | J15: 7689.46 | K15: 12076.49 | L15: -4387.03 | M15: 0 | N15: 0 | O15: 0 | P15: 7689.46 | Q15: 0 | R15: ="(-)"&Q13 -> (-)0
A16: TOTAL | B16: =Reports!D14 -> 0 | D16: 110820.14 | E16: -9274.55 | F16: 0 | G16: 0 | H16: 0 | I16: 101545.59 | J16: 101545.59 | K16: 145687.35 | L16: -45615.35 | M16: 0 | N16: 0 | O16: 0 | P16: 100072 | Q16: 1473.59 | R16: =Q16-Q13 -> 1473.59
A17: OP. COURANTES | B17: 2A | C17: 2B
A18: INTENDANCE | B18: =Reports!C16 -> 0 | C18: =Reports!D16 -> 0 | D18: 12855.8 | E18: -3530.3 | F18: 0 | G18: 0 | H18: 0 | I18: 9325.5 | J18: =C18+I18 -> 9325.5 | K18: 9544.48 | L18: -2087.48 | M18: 0 | N18: 0 | O18: 0 | P18: 7457 | Q18: =(J18-P18) -> 1868.5
A19: FONCTIONNEMENT | B19: =Reports!C17 -> 0 | C19: =Reports!D17 -> 0 | D19: 97964.34 | E19: -5744.25 | F19: 0 | G19: 0 | H19: 0 | I19: 92220.09 | J19: =C19+I19 -> 92220.09 | K19: 134597.09 | L19: -43527.87 | M19: 0 | N19: 0 | O19: 0 | P19: 91069.22 | Q19: =(J19-P19) -> 1150.87
A20: RESERVE | B20: =Reports!C18 -> 0 | C20: =Reports!D18 -> 0 | D20: 0 | E20: 0 | F20: 0 | G20: 0 | H20: 0 | I20: 0 | J20: =C20+I20 -> 0 | K20: 0 | L20: 0 | M20: 0 | N20: 0 | O20: 0 | P20: 0 | Q20: =(J20-P20) -> 0
A21: TOTAL | B21: =Reports!C19 -> 0 | C21: =Reports!D19 -> 0 | D21: 110820.14 | E21: -9274.55 | F21: 0 | G21: 0 | H21: 0 | I21: 101545.59 | J21: =C21+I21 -> 101545.59 | K21: 144141.57 | L21: -45615.35 | M21: 0 | N21: 0 | O21: 0 | P21: 98526.22 | Q21: =(J21-P21) -> 3019.37
A22: OP. DE CAPITAL | B22: =Reports!C20 -> 0 | C22: =Reports!D20 -> 0 | D22: 0 | E22: 10000 | F22: 0 | G22: 0 | H22: 0 | I22: 10000 | J22: =C22+I22 -> 10000 | K22: 0 | L22: 1545.78 | M22: 0 | N22: 0 | O22: 0 | P22: 1545.78 | Q22: =(J22-P22) -> 8454.22
A23: OP. POUR ORDRE
A24: TIERS | B24: =Reports!C22 -> 0 | C24: =Reports!D22 -> 0 | D24: 0 | E24: 0 | F24: 0 | G24: 0 | H24: 0 | I24: 0 | J24: =C24+I24 -> 0 | K24: 0 | L24: 0 | M24: 0 | N24: 0 | O24: 0 | P24: 0 | Q24: =(J24-P24) -> 0
A25: TRESOR | B25: =Reports!C23 -> 0 | C25: =Reports!D23 -> 0 | D25: 0 | E25: 0 | F25: 0 | G25: 0 | H25: 0 | I25: 0 | J25: 0 | K25: 0 | L25: 0 | M25: 0 | N25: 0 | O25: 0 | P25: 0 | Q25: =(J25-P25) -> 0
A26: TOTAL | B26: =Reports!C24 -> 0 | C26: =Reports!D24 -> 0 | D26: 0 | E26: 0 | F26: 0 | G26: 0 | H26: 0 | I26: 0 | J26: 0 | K26: 0 | L26: 0 | M26: 0 | N26: 0 | O26: 0 | P26: 0 | Q26: =(J26-P26) -> 0
A27: SOUS-TOTAL | B27: =Reports!C25 -> 0 | C27: =Reports!D25 -> 0 | D27: 110820.14 | E27: 725.45 | F27: 0 | G27: 0 | H27: 0 | I27: 111545.59 | J27: 111545.59 | K27: 144141.57 | L27: -44069.57 | M27: 0 | N27: 0 | O27: 0 | P27: 100072 | Q27: =(J27-P27) -> 11473.59
A28: TRANSFERT | B28: =Reports!C26 -> 0 | C28: =Reports!D26 -> 0 | D28: 0 | E28: 0 | F28: 0 | G28: 0 | H28: 0 | I28: 0 | J28: 0 | K28: 0 | L28: 0 | M28: 0 | N28: 0 | O28: 0 | P28: 0 | Q28: 0
A29: TOTAL GENERAL | B29: =Reports!C27 -> 0 | C29: =Reports!D27 -> 0 | D29: 110820.14 | E29: 725.45 | F29: 0 | G29: 0 | H29: 0 | I29: 111545.59 | J29: 111545.59 | K29: 144141.57 | L29: -44069.57 | M29: 0 | N29: 0 | O29: 0 | P29: 100072 | Q29: =(J29-P29) -> 11473.59
A31: CERTIFIE CONFORME AUX ECRITURES | J31: VU ET APPROUVE
A32: ="Fait à "&LOOKUP("X",Identification!B2:B344,Identification!G2:G344)&", le "&TEXT(Gestionnaires!F12,"jj/mm/aaaa") ->  | J32: =A32 -> 
A33: =IF(Gestionnaires!F8="Monsieur","Le comptable sortant ","La comptable sortante ")&", "&Gestionnaires!F10&" "&UPPER(Gestionnaires!F9) -> La comptable sortante , | J33: =IF(Gestionnaires!C2="Monsieur","Le Chef d'étabissement, ","La Cheffe d'établissement, ")&Gestionnaires!C5&" "&UPPER(Gestionnaires!C4) -> La Cheffe d'établissement,

Sheet Compte scindé RR3
A1: ="Compte scindé de "&LOOKUP("X",Identification!B2:B344,Identification!D2:D344)&" - Année "&RIGHT(TEXT(Gestionnaires!C12,"jj/mm/aaaa"),4)&" - Sortie de "&PROPER(Gestionnaires!L8)&" "&Gestionnaires!L10&" "&UPPER(Gestionnaires!L9) ->  | J1: =A1 -> 
A2: 1 | B2: 2 | D2: 3 | E2: 4 | F2: 5 | G2: 6 | I2: 7 | J2: 8 | K2: 9 | L2: 10 | M2: 11 | N2: 12 | O2: 13 | P2: 15 | Q2: 15
A3: COMPTES | D3: RECETTES | K3: DEPENSES
B4: SOLDE AU 31/12 DE L'ANNEE PRECEDENTE | D4: RECETTES DE L'ANNEE EN COURS | J4: TOTAL GENERAL DES RECETTES | K4: DEPENSES DE L'ANNEE EN COURS | P4: TOTAL GENERAL DES DEPENSES | Q4: ="A justifier au "&TEXT(Gestionnaires!L12,"jj/mm/aaaa") -> A justifier au 00/01/1900
D5: Du 1er janvier au 2 mai | E5: Du 3 mai au 3 juin | F5: Du 4 juin au 30 juin | G5: NA | H5: NA | I5: Total des colonnes 3 à 7 | K5: =D5 -> Du 1er janvier au 2 mai | L5: =E5 -> Du 3 mai au 3 juin | M5: Du 4 juin au 30 juin | N5: NA | O5: NA | Q5: COL 6-9
A6: CPTE CAISSE | B6: =Reports!D4 -> 0 | D6: 1532.4 | E6: 7404.33 | F6: 3136.2 | G6: 0 | H6: 0 | I6: =SUM(D6:H6) -> 12072.93 | J6: =B6+I6 -> 12072.93 | K6: 0 | L6: 7687.03 | M6: 0 | N6: 0 | O6: 0 | P6: =SUM(K6:O6) -> 7687.03 | Q6: =(J6-P6) -> 4385.9
A7: CPTE COURANT | B7: =Reports!D5 -> 0 | D7: 254.3 | E7: 99915.32 | F7: 10525.38 | G7: 0 | H7: 0 | I7: =SUM(D7:H7) -> 110695 | J7: =B7+I7 -> 110695 | K7: 15044.73 | L7: 85029.7 | M7: 0 | N7: 0 | O7: 0 | P7: =SUM(K7:O7) -> 100074.43 | Q7: 10620.57
A8: CPTE PLAC. N°1 | B8: =Reports!D6 -> 0 | D8: 70.18 | E8: 58.52 | F8: 0 | G8: 0 | H8: 0 | I8: 128.7 | J8: 128.7 | K8: 0 | L8: 0 | M8: 0 | N8: 0 | O8: 0 | P8: 0 | Q8: 128.7
A9: CPTE PLAC. N°2 | B9: =Reports!D7 -> 0 | D9: 0 | E9: 0 | F9: 0 | G9: 0 | H9: 0 | I9: 0 | J9: 0 | K9: 0 | L9: 0 | M9: 0 | N9: 0 | O9: 0 | P9: 0 | Q9: 0
A10: CPTE PLAC. N°3 | B10: =Reports!D8 -> 0 | D10: 0 | E10: 0 | F10: 0 | G10: 0 | H10: 0 | I10: 0 | J10: 0 | K10: 0 | L10: 0 | M10: 0 | N10: 0 | O10: 0 | P10: 0 | Q10: 0
A11: CPTE PLAC. N°4 | B11: =Reports!D9 -> 0 | D11: 0 | E11: 0 | F11: 0 | G11: 0 | H11: 0 | I11: 0 | J11: 0 | K11: 0 | L11: 0 | M11: 0 | N11: 0 | O11: 0 | P11: 0 | Q11: 0 | R11: Avoir en caisse = Totaux financiers - Déficit
A12: CPTE PLAC. N°5 | B12: =Reports!D10 -> 0 | D12: 0 | E12: 0 | F12: 0 | G12: 0 | H12: 0 | I12: 0 | J12: 0 | K12: 0 | L12: 0 | M12: 0 | N12: 0 | O12: 0 | P12: 0 | Q12: 0
A13: PV DE DEFICIT | B13: =Reports!D11 -> 0 | D13: 0 | E13: 0 | F13: 0 | G13: 0 | H13: 0 | I13: 0 | J13: 0 | K13: 0 | L13: 0 | M13: 0 | N13: 0 | O13: 0 | P13: 0 | Q13: 0
A14: SOUS-TOTAL | B14: =Reports!D12 -> 0 | D14: 1856.88 | E14: 107378.17 | F14: 13661.58 | G14: 0 | H14: 0 | I14: 122896.63 | J14: 122896.63 | K14: 15044.73 | L14: 92716.73 | M14: 0 | N14: 0 | O14: 0 | P14: 107761.46 | Q14: 15135.17 | R14: =Q14 -> 15135.17
A15: MOUV. DE FONDS | B15: =Reports!D13 -> 0 | D15: 0 | E15: 7689.46 | F15: 4387.03 | G15: 0 | H15: 0 | I15: 12076.49 | J15: 12076.49 | K15: 0 | L15: 7689.46 | M15: 0 | N15: 0 | O15: 0 | P15: 7689.46 | Q15: 4387.03 | R15: ="(-)"&Q13 -> (-)0
A16: TOTAL | B16: =Reports!D14 -> 0 | D16: 1856.88 | E16: 99688.71 | F16: 9274.55 | G16: 0 | H16: 0 | I16: 110820.14 | J16: 110820.14 | K16: 15044.73 | L16: 85027.27 | M16: 0 | N16: 0 | O16: 0 | P16: 100072 | Q16: 10748.14 | R16: =Q16-Q13 -> 10748.14
A17: OP. COURANTES | B17: 2A | C17: 2B
A18: INTENDANCE | B18: =Reports!C16 -> 0 | C18: =Reports!D16 -> 0 | D18: 1647.2 | E18: 7678.3 | F18: 3530.3 | G18: 0 | H18: 0 | I18: 12855.8 | J18: =C18+I18 -> 12855.8 | K18: 1382.9 | L18: 6074.1 | M18: 0 | N18: 0 | O18: 0 | P18: 7457 | Q18: =(J18-P18) -> 5398.8
A19: FONCTIONNEMENT | B19: =Reports!C17 -> 0 | C19: =Reports!D17 -> 0 | D19: 209.68 | E19: 92010.41 | F19: 5744.25 | G19: 0 | H19: 0 | I19: 97964.34 | J19: =C19+I19 -> 97964.34 | K19: 12695.04 | L19: 78374.18 | M19: 0 | N19: 0 | O19: 0 | P19: 91069.22 | Q19: =(J19-P19) -> 6895.12
A20: RESERVE | B20: =Reports!C18 -> 0 | C20: =Reports!D18 -> 0 | D20: 0 | E20: 0 | F20: 0 | G20: 0 | H20: 0 | I20: 0 | J20: =C20+I20 -> 0 | K20: 0 | L20: 0 | M20: 0 | N20: 0 | O20: 0 | P20: 0 | Q20: =(J20-P20) -> 0
A21: TOTAL | B21: =Reports!C19 -> 0 | C21: =Reports!D19 -> 0 | D21: 1856.88 | E21: 99688.71 | F21: 9274.55 | G21: 0 | H21: 0 | I21: 110820.14 | J21: =C21+I21 -> 110820.14 | K21: 14077.94 | L21: 84448.28 | M21: 0 | N21: 0 | O21: 0 | P21: 98526.22 | Q21: =(J21-P21) -> 12293.92
A22: OP. DE CAPITAL | B22: =Reports!C20 -> 0 | C22: =Reports!D20 -> 0 | D22: 10000 | E22: 0 | F22: -10000 | G22: 0 | H22: 0 | I22: 0 | J22: =C22+I22 -> 0 | K22: 966.79 | L22: 578.99 | M22: 0 | N22: 0 | O22: 0 | P22: 1545.78 | Q22: =(J22-P22) -> -1545.78
A23: OP. POUR ORDRE
A24: TIERS | B24: =Reports!C22 -> 0 | C24: =Reports!D22 -> 0 | D24: 0 | E24: 0 | F24: 0 | G24: 0 | H24: 0 | I24: 0 | J24: =C24+I24 -> 0 | K24: 0 | L24: 0 | M24: 0 | N24: 0 | O24: 0 | P24: 0 | Q24: =(J24-P24) -> 0
A25: TRESOR | B25: =Reports!C23 -> 0 | C25: =Reports!D23 -> 0 | D25: 0 | E25: 0 | F25: 0 | G25: 0 | H25: 0 | I25: 0 | J25: 0 | K25: 0 | L25: 0 | M25: 0 | N25: 0 | O25: 0 | P25: 0 | Q25: =(J25-P25) -> 0
A26: TOTAL | B26: =Reports!C24 -> 0 | C26: =Reports!D24 -> 0 | D26: 0 | E26: 0 | F26: 0 | G26: 0 | H26: 0 | I26: 0 | J26: 0 | K26: 0 | L26: 0 | M26: 0 | N26: 0 | O26: 0 | P26: 0 | Q26: =(J26-P26) -> 0
A27: SOUS-TOTAL | B27: =Reports!C25 -> 0 | C27: =Reports!D25 -> 0 | D27: 11856.88 | E27: 99688.71 | F27: -725.45 | G27: 0 | H27: 0 | I27: 110820.14 | J27: 110820.14 | K27: 15044.73 | L27: 85027.27 | M27: 0 | N27: 0 | O27: 0 | P27: 100072 | Q27: =(J27-P27) -> 10748.14
A28: TRANSFERT | B28: =Reports!C26 -> 0 | C28: =Reports!D26 -> 0 | D28: 0 | E28: 0 | F28: 0 | G28: 0 | H28: 0 | I28: 0 | J28: 0 | K28: 0 | L28: 0 | M28: 0 | N28: 0 | O28: 0 | P28: 0 | Q28: 0
A29: TOTAL GENERAL | B29: =Reports!C27 -> 0 | C29: =Reports!D27 -> 0 | D29: 11856.88 | E29: 99688.71 | F29: -725.45 | G29: 0 | H29: 0 | I29: 110820.14 | J29: 110820.14 | K29: 15044.73 | L29: 85027.27 | M29: 0 | N29: 0 | O29: 0 | P29: 100072 | Q29: =(J29-P29) -> 10748.14
A31: CERTIFIE CONFORME AUX ECRITURES | J31: VU ET APPROUVE
A32: ="Fait à "&LOOKUP("X",Identification!B2:B344,Identification!G2:G344)&", le "&TEXT(Gestionnaires!L12,"jj/mm/aaaa") ->  | J32: =A32 -> 
A33: =IF(Gestionnaires!F8="Monsieur","Le comptable sortant ","La comptable sortante ")&", "&Gestionnaires!L10&" "&UPPER(Gestionnaires!L9) -> La comptable sortante , | J33: =IF(Gestionnaires!C2="Monsieur","Le Chef d'étabissement, ","La Cheffe d'établissement, ")&Gestionnaires!C5&" "&UPPER(Gestionnaires!C4) -> La Cheffe d'établissement,

Sheet Contenu listes (hidden)
A1: Civilité | B1: Titre
A2: Monsieur | B2: Préfet
A3: Monsieur | B3: Directeur
A4: Monsieur | B4: Administrateur
A5: Madame | B5: Préfète
A6: Madame | B6: Directrice
A7: Madame | B7: Administratrice
A8: Mademoiselle | B8: Préfète
A9: Mademoiselle | B9: Directrice
A10: Mademoiselle | B10: Administratrice
A14: Monsieur | B14: Madame | C14: Mademoiselle | F14: Monsieur
A15: Préfet | B15: Préfète | C15: Préfète
A16: Directeur | B16: Directrice | C16: Directrice
A17: Administrateur | B17: Administratrice | C17: Administratrice
